Workbook

Sheet Vejledning
B2: Forpagtningsberegningsmodel
B4: Med dette regneark kan man beregne økonomien ved tilforpagtning eller bortforpagtning afhængig af forventet afgrødesammensætning, priser og omkostningsniveauer mv. Værdier fra gældende afgrødekalkuler foreslås som standard i beregningen. Der er mulighed for at sammenligne med faktiske forpagtningspriser i 2019 pr. driftsgren, JB-type og landsdel. | I4: Udgiver: | J4: SEGES
J5: Erhvervsøkonomi
I6: Udgivelsesdato: | J6: 2020-12-01
I7: Forfatter: | J7: Morten Nyland Christensen og Ove Lund
I8: Version: | J8: 4.0
I10: Datagrundlag: | J10: Afgrødekalkuler fra FarmtalOnline, og forpagtningspriser 2019 fra økonomidatabasen kombineret med udvalgte oplysninger fra Dansk Markdatabase.
B11: Gå til Oplysninger
B14: Gå til Beregning | J14: Afgrødekalkuler opdateres en gang årligt.
I15: Excel version: | J15: Excel 2010
I16: Dokument: | J16: Se vejledning
I17: Ansvar: | J17: Se vilkår
B20: Brugervejledning:
B22: Modellen beregner et realistisk resultat af en given forpagtning eller bortforpagtning. Beregningerne er delvis automatiske, når de lyseblå felter er udfyldt.
B23: De beregnede resultater kan altid ændres via egne værdier
B25: Grundoplysninger om bedriften indtastes i fanen "Oplysninger". De mørkeblå felter er information hentet fra regnskabet, de lyseblå er informationer, der enten skal indtastes eller celler til at overskrive resultaterne fra regnskabet. Der vil være et "rullegardin", hvor der kan vælges mellem bestemte variable, der er markeret med grønt.
B26: I afgrødevalg vælges de relevante afgrøder. Overskydende celler efterlades bare tomme. Afgrødefordelingen i de lyseblå celler er lavet ud fra afgrødefordelingen i regnskabet (total, ikke kun på forpagtet jord). Hvis Ingen eller andet vælges, så skal der indtastes en procentsats i de lyseblå celler, hvis den skal tælle med. Fordelingerne fra regnskabet kan overskrives via de lyseblå celler.
B30: I fanen Beregninger sker selve beregningerne ud fra enten kalkulerne eller fra egne indtastede værdier.
B32: Transportomkostninger kan beregnes mere specifikt ved at trykke på "Gå til transportomkostninger"
B34: Fanen Udskrift samler de overordnede resultater fra beregningerne, og her er der også mulighed for at sammenligne bedriftens forpagtningsafgift med andres.
B35: Dette gøres via en graf, hvor den gennemsnitlige forpagtningsafgift i de forskellige fraktiler vises sammen med bedriftens forpagtningsafgift.
B36: Der kan vælges forskellige grupper at sammenligne med indenfor Driftsgren, Jordbonitet og Landsdele. Sammenligningen kræver et minimum af observationer, så nogle kombinationer vil ikke vise et resultat, hvis der her er for få observationer.
B38: Nedenunder grafen vises en beregnet fremstillngspris pr. afgrødeenhed med og uden korrektion for arbejdstid og fri kapacitet.

Sheet Oplysninger
D3: Oplysninger i mørkeblå felter stammer fra regnskabet. Kan overskrives via de lyseblå felter til højre for. De grønne celler er der en drop down boks, der kan vælges oplysninger til. | J3: Celler som skal skjules
B5: Oplysninger om bedrift og forpagtning
B7: Basisoplysninger
B8: CVR.nr. | D8: =IF(F8<>"",F8,J8) -> 38264125 | F8: 38264125 | J8: =IFERROR(VLOOKUP(L8,#REF!,7,FALSE),"") ->  | L8: 6425
B9: Forpagtet areal (ha)? | D9: =IF(F9<>"",F9,J9) -> 97 | F9: 97 | J9: =IFERROR(VLOOKUP(L9,#REF!,7,FALSE),"") ->  | L9: 3911
B10: Jordbonitet? | D10: =IF(F10<>"",F10,IF(J10=1,Datagrundlag!C8,IF(J10=2,Datagrundlag!C7,IF(J10=5,Datagrundlag!C6,"")))) -> sandjord med vanding | F10: sandjord med vanding | J10: =IFERROR(VLOOKUP(L10,#REF!,7,FALSE),"") ->  | L10: JB_type | M10: sandjord m vand = 1 sandjord u vand = 2 lerjord = 5
B11: Gødskning med husdyrgødning? | D11: Ja | J11: =IF(D11="Ja"," med gylle"," uden gylle") -> med gylle
B12: Anvendes der udelukkende maskinstation? | D12: Nej
B13: Har du ledig arbejdstid? | D13: Ja | E13: *
B14: =IF(D13="Nej"," ","Hvis ja, hvad vil du sælge den til (kr/t)?") -> Hvis ja, hvad vil du sælge den til (kr/t)? | D14: 100
B15: Har du ledig maskinkapacitet? | D15: Nej | E15: *
B16: Er du kornsælger? | D16: =IF(F16="",IF(OR(J16<>0,K16<>0),IF(J16>K16*(-1),"Ja","Nej"),""),F16) -> Ja | F16: Ja | J16: =IFERROR(VLOOKUP(L16,#REF!,7,FALSE),0) -> 0 | K16: =IFERROR(VLOOKUP(M16,#REF!,7,FALSE),0) -> 0 | L16: 6905 | M16: 8201 | N16: 6905 salg kv og 8201 køb kv | O16: hvis salg > køb ?
B18: Afgrødevalg - hovedafgrøde# | J18: ha | K18: procent tilbage til afgrøder:
B19: Afgrøde 1 | C19: Vårbyg | D19: =IFERROR(IF(AND(C19=Datagrundlag!$C$40,Oplysninger!F19=""),0,IF(Oplysninger!F19<>"",F19,L19)),0) -> 0.25 | F19: 0.25 | H19: Hvis der ændres på afgrødefordelingen udover for "ingen eller andet", så HUSK, at summen skal være lig 100% | J19: =IFERROR(VLOOKUP(C19,Datagrundlag!#REF!,Datagrundlag!#REF!,FALSE),0) -> 0 | K19: =100%-SUMIFS(Oplysninger!$D$19:$D$24,Oplysninger!$C$19:$C$24,Datagrundlag!C40) -> 1 | L19: =J19/SUM($J$19:$J$24)*$K$19 ->  | Q19: 0.2
B20: Afgrøde 2 | C20: Vinterhvede | D20: =IFERROR(IF(AND(C20=Datagrundlag!$C$40,Oplysninger!F20=""),0,IF(Oplysninger!F20<>"",F20,L20)),0) -> 0.5 | F20: 0.5 | J20: =IFERROR(VLOOKUP(C20,Datagrundlag!#REF!,Datagrundlag!#REF!,FALSE),0) -> 0 | L20: =J20/SUM($J$19:$J$24)*$K$19 ->  | Q20: 0.2
B21: Afgrøde 3 | C21: Vinterraps | D21: =IFERROR(IF(AND(C21=Datagrundlag!$C$40,Oplysninger!F21=""),0,IF(Oplysninger!F21<>"",F21,L21)),0) -> 0.1 | F21: 0.1 | J21: =IFERROR(VLOOKUP(C21,Datagrundlag!#REF!,Datagrundlag!#REF!,FALSE),0) -> 0 | Q21: 0.2
B22: Afgrøde 4 | C22: Majs til helsæd | D22: =IFERROR(IF(AND(C22=Datagrundlag!$C$40,Oplysninger!F22=""),0,IF(Oplysninger!F22<>"",F22,L22)),0) -> 0.15 | F22: 0.15 | J22: =IFERROR(VLOOKUP(C22,Datagrundlag!#REF!,Datagrundlag!#REF!,FALSE),0) -> 0 | Q22: 0.2
B23: Afgrøde 5 | C23: Fabriksroer | D23: =IFERROR(IF(AND(C23=Datagrundlag!$C$40,Oplysninger!F23=""),0,IF(Oplysninger!F23<>"",F23,L23)),0) -> 0 | F23: 0 | J23: =IFERROR(VLOOKUP(C23,Datagrundlag!#REF!,Datagrundlag!#REF!,FALSE),0) -> 0 | Q23: 0.1
B24: Afgrøde 6 | C24: Slætgræs 4 slæt | D24: =IFERROR(IF(AND(C24=Datagrundlag!$C$40,Oplysninger!F24=""),0,IF(Oplysninger!F24<>"",F24,L24)),0) -> 0 | F24: 0 | J24: =IFERROR(VLOOKUP(C24,Datagrundlag!#REF!,Datagrundlag!#REF!,FALSE),0) -> 0 | Q24: 0.1
D25: =SUM(D19:D24) -> 1
B26: # der beregnes ikke krav til eller økonomi for efterafgrøder
B27: Andre oplysninger
B28: Gødningsværdi eller salgsværdi halm** | D28: 500 | F28: Kr. pr. tons
B29: Forskel mellem pris ved kornkøb og kornsalg | D29: 12 | F29: Kr. pr. hkg
B30: Transportafstand (ud over "normal" transportafstand til egne marker) | D30: 1.5 | F30: Km (enkelt)
B31: Transporthastighed gennemsnit | D31: 25 | F31: Km i timen
B32: Transportomkostning (arbejdstid, drift og kapitalomk.) | D32: 500 | F32: Kr. pr. time
B34: * Beregningen med reducerede arbejds- og maskinomkostninger skal anvendes med omtanke! Det er især kritisk at antage "ledig maskinkapacitet", der forudsætter, at der ikke beregnes yderligere renter og afskrivninger af de anvendte maskiner. Der vil altid være et ekstra værditab ved ekstra brug, og det bør tages med i vurderingen.
B36: ** Maskin- og arbejdsomkostninger og beregning af transportomkostninger omfatter både presning og hjemkørsel af halm.

Sheet Beregninger
B1: Beregning af pris for forpagtning
F2: Kalkule/egne | G2: Enhed | H2: Egne værdier | N2: Skjules | P2: Skjules
B4: Bruttoudbytte
B5: Udbytter: | C5: =IF(Oplysninger!C19="Ingen eller andet","",Oplysninger!C19) -> Vårbyg | D5: =IF(OR(Oplysninger!C19="Ingen eller andet",Oplysninger!C19=""),"",Oplysninger!C19&" på "&Oplysninger!D$10&Oplysninger!J$11) -> Vårbyg på sandjord med vanding med gylle | F5: =IF(H5="",N5,H5) -> 60 | G5: =IF(Oplysninger!$C19="Majs til helsæd","FEN pr. ha",IF(Oplysninger!$C19="Slætgræs 4 slæt","FEN pr. ha","hkg. pr. ha")) -> hkg. pr. ha | J5: =IFERROR(_xlfn.IFS(AND(D5<>"",F5=0),"ingen kalkule, intast egen værdi",D5="","Vælge afgrøde, hvis ønsket"),"") ->  | N5: =IF(ISNUMBER(P5),P5,0) -> 60 | P5: =VLOOKUP(D5,Datagrundlag!C$70:E$153,2,FALSE) -> 60
C6: =IF(Oplysninger!C20="Ingen eller andet","",Oplysninger!C20) -> Vinterhvede | D6: =IF(OR(Oplysninger!C20="Ingen eller andet",Oplysninger!C20=""),"",Oplysninger!C20&" på "&Oplysninger!D$10&Oplysninger!J$11) -> Vinterhvede på sandjord med vanding med gylle | F6: 84 | G6: =IF(Oplysninger!$C20="Majs til helsæd","FEN pr. ha",IF(Oplysninger!$C20="Slætgræs 4 slæt","FEN pr. ha","hkg. pr. ha")) -> hkg. pr. ha | J6: =IFERROR(_xlfn.IFS(AND(D6<>"",F6=0),"ingen kalkule, intast egen værdi",D6="","Vælge afgrøde, hvis ønsket"),"") ->  | N6: =IF(ISNUMBER(P6),P6,0) -> 84 | P6: =VLOOKUP(D6,Datagrundlag!C$70:F$153,2,FALSE) -> 84
C7: =IF(Oplysninger!C21="Ingen eller andet","",Oplysninger!C21) -> Vinterraps | D7: =IF(OR(Oplysninger!C21="Ingen eller andet",Oplysninger!C21=""),"",Oplysninger!C21&" på "&Oplysninger!D$10&Oplysninger!J$11) -> Vinterraps på sandjord med vanding med gylle | F7: 40 | G7: =IF(Oplysninger!$C21="Majs til helsæd","FEN pr. ha",IF(Oplysninger!$C21="Slætgræs 4 slæt","FEN pr. ha","hkg. pr. ha")) -> hkg. pr. ha | J7: =IFERROR(_xlfn.IFS(AND(D7<>"",F7=0),"ingen kalkule, intast egen værdi",D7="","Vælge afgrøde, hvis ønsket"),"") ->  | N7: 40 | P7: =VLOOKUP(D7,Datagrundlag!C$70:F$153,2,FALSE) -> 40
C8: =IF(Oplysninger!C22="Ingen eller andet","",Oplysninger!C22) -> Majs til helsæd | D8: =IF(OR(Oplysninger!C22="Ingen eller andet",Oplysninger!C22=""),"",Oplysninger!C22&" på "&Oplysninger!D$10&Oplysninger!J$11) -> Majs til helsæd på sandjord med vanding med gylle | F8: 11800 | G8: =IF(Oplysninger!$C22="Majs til helsæd","FEN pr. ha",IF(Oplysninger!$C22="Slætgræs 4 slæt","FEN pr. ha","hkg. pr. ha")) -> FEN pr. ha | J8: =IFERROR(_xlfn.IFS(AND(D8<>"",F8=0),"ingen kalkule, intast egen værdi",D8="","Vælge afgrøde, hvis ønsket"),"") ->  | N8: 11800 | P8: =VLOOKUP(D8,Datagrundlag!C$70:F$153,2,FALSE) -> 11800
C9: =IF(Oplysninger!C23="Ingen eller andet","",Oplysninger!C23) -> Fabriksroer | D9: =IF(OR(Oplysninger!C23="Ingen eller andet",Oplysninger!C23=""),"",Oplysninger!C23&" på "&Oplysninger!D$10&Oplysninger!J$11) -> Fabriksroer på sandjord med vanding med gylle | F9: 0 | G9: =IF(Oplysninger!$C23="Majs til helsæd","FEN pr. ha",IF(Oplysninger!$C23="Slætgræs 4 slæt","FEN pr. ha","hkg. pr. ha")) -> hkg. pr. ha | J9: =IFERROR(_xlfn.IFS(AND(D9<>"",F9=0),"ingen kalkule, intast egen værdi",D9="","Vælge afgrøde, hvis ønsket"),"") -> ingen kalkule, intast egen værdi | N9: 0 | P9: =VLOOKUP(D9,Datagrundlag!C$70:F$153,2,FALSE) -> 0
C10: =IF(Oplysninger!C24="Ingen eller andet","",Oplysninger!C24) -> Slætgræs 4 slæt | D10: =IF(OR(Oplysninger!C24="Ingen eller andet",Oplysninger!C24=""),"",Oplysninger!C24&" på "&Oplysninger!D$10&Oplysninger!J$11) -> Slætgræs 4 slæt på sandjord med vanding med gylle | F10: 10100 | G10: =IF(Oplysninger!$C24="Majs til helsæd","FEN pr. ha",IF(Oplysninger!$C24="Slætgræs 4 slæt","FEN pr. ha","hkg. pr. ha")) -> FEN pr. ha | J10: =IFERROR(_xlfn.IFS(AND(D10<>"",F10=0),"ingen kalkule, intast egen værdi",D10="","Vælge afgrøde, hvis ønsket"),"") ->  | N10: 10100 | P10: =VLOOKUP(D10,Datagrundlag!C$70:F$153,2,FALSE) -> 10100
B11: Priser: | D11: =IF(OR(Oplysninger!C19="Ingen eller andet",Oplysninger!C19=""),E5,IF(Oplysninger!C19="Vårbyg","Byg",IF(Oplysninger!C19="Vårhvede","Hvede",IF(Oplysninger!C19="Vinterhvede","Hvede",IF(Oplysninger!C19="Vinterraps","Raps",IF(Oplysninger!C19="Vinterbyg","Byg",IF(Oplysninger!C19="Vinterrug","Rug",Oplysninger!C19))))))) -> Byg | F11: =IF(H11<>0,H11,IF(AND(H11="",Oplysninger!D$16="Ja"),N11,IF(AND(H11="",Oplysninger!D$16="Nej",Oplysninger!C19="Vårbyg"),N11+Oplysninger!D$29,IF(AND(H11="",Oplysninger!C19="Vinterhvede"),N11+Oplysninger!D$29,IF(AND(H11="",Oplysninger!C19="Havre"),N11+Oplysninger!D$29,IF(AND(H11="",Oplysninger!C19="Vinterraps"),N11+Oplysninger!D$29,IF(AND(H11="",Oplysninger!C19="Rug"),N11+Oplysninger!$D$29,IF(AND(H11="",Oplysninger!C19="Vinterbyg"),N11+Oplysninger!D$29,N11)))))))) -> 109 | G11: =IF(OR(Oplysninger!$C19="Majs til helsæd",Oplysninger!C19="Slætgræs 4 slæt"),"Kr. pr. FEN","kr. pr. hkg") -> kr. pr. hkg | N11: 109 | P11: =VLOOKUP(D11,Datagrundlag!E$9:F$22,2,FALSE) -> 109
D12: =IF(OR(Oplysninger!C20="Ingen eller andet",Oplysninger!C20=""),E6,IF(Oplysninger!C20="Vårbyg","Byg",IF(Oplysninger!C20="Vårhvede","Hvede",IF(Oplysninger!C20="Vinterhvede","Hvede",IF(Oplysninger!C20="Vinterraps","Raps",IF(Oplysninger!C20="Vinterbyg","Byg",IF(Oplysninger!C20="Vinterrug","Rug",Oplysninger!C20))))))) -> Hvede | F12: =IF(H12<>0,H12,IF(AND(H12="",Oplysninger!D$16="Ja"),N12,IF(AND(H12="",Oplysninger!D$16="Nej",Oplysninger!C20="Vårbyg"),N12+Oplysninger!D$29,IF(AND(H12="",Oplysninger!C20="Vinterhvede"),N12+Oplysninger!D$29,IF(AND(H12="",Oplysninger!C20="Havre"),N12+Oplysninger!D$29,IF(AND(H12="",Oplysninger!C20="Vinterraps"),N12+Oplysninger!D$29,IF(AND(H12="",Oplysninger!C20="Rug"),N12+Oplysninger!$D$29,IF(AND(H12="",Oplysninger!C20="Vinterbyg"),N12+Oplysninger!D$29,N12)))))))) -> 115 | G12: =IF(OR(Oplysninger!$C20="Majs til helsæd",Oplysninger!C20="Slætgræs 4 slæt"),"Kr. pr. FEN","kr. pr. hkg") -> kr. pr. hkg | N12: 115 | P12: =VLOOKUP(D12,Datagrundlag!E$9:F$22,2,FALSE) -> 115
D13: =IF(OR(Oplysninger!C21="Ingen eller andet",Oplysninger!C21=""),E7,IF(Oplysninger!C21="Vårbyg","Byg",IF(Oplysninger!C21="Vårhvede","Hvede",IF(Oplysninger!C21="Vinterhvede","Hvede",IF(Oplysninger!C21="Vinterraps","Raps",IF(Oplysninger!C21="Vinterbyg","Byg",IF(Oplysninger!C21="Vinterrug","Rug",Oplysninger!C21))))))) -> Raps | F13: =IF(H13<>0,H13,IF(AND(H13="",Oplysninger!D$16="Ja"),N13,IF(AND(H13="",Oplysninger!D$16="Nej",Oplysninger!C21="Vårbyg"),N13+Oplysninger!D$29,IF(AND(H13="",Oplysninger!C21="Vinterhvede"),N13+Oplysninger!D$29,IF(AND(H13="",Oplysninger!C21="Havre"),N13+Oplysninger!D$29,IF(AND(H13="",Oplysninger!C21="Vinterraps"),N13+Oplysninger!D$29,IF(AND(H13="",Oplysninger!C21="Rug"),N13+Oplysninger!$D$29,IF(AND(H13="",Oplysninger!C21="Vinterbyg"),N13+Oplysninger!D$29,N13)))))))) -> 280 | G13: =IF(OR(Oplysninger!$C21="Majs til helsæd",Oplysninger!C21="Slætgræs 4 slæt"),"Kr. pr. FEN","kr. pr. hkg") -> kr. pr. hkg | N13: 280 | P13: =VLOOKUP(D13,Datagrundlag!E$9:F$22,2,FALSE) -> 280
D14: =IF(OR(Oplysninger!C22="Ingen eller andet",Oplysninger!C22=""),E8,IF(Oplysninger!C22="Vårbyg","Byg",IF(Oplysninger!C22="Vårhvede","Hvede",IF(Oplysninger!C22="Vinterhvede","Hvede",IF(Oplysninger!C22="Vinterraps","Raps",IF(Oplysninger!C22="Vinterbyg","Byg",IF(Oplysninger!C22="Vinterrug","Rug",Oplysninger!C22))))))) -> Majs til helsæd | F14: =IF(H14<>0,H14,IF(AND(H14="",Oplysninger!D$16="Ja"),N14,IF(AND(H14="",Oplysninger!D$16="Nej",Oplysninger!C22="Vårbyg"),N14+Oplysninger!D$29,IF(AND(H14="",Oplysninger!C22="Vinterhvede"),N14+Oplysninger!D$29,IF(AND(H14="",Oplysninger!C22="Havre"),N14+Oplysninger!D$29,IF(AND(H14="",Oplysninger!C22="Vinterraps"),N14+Oplysninger!D$29,IF(AND(H14="",Oplysninger!C22="Rug"),N14+Oplysninger!$D$29,IF(AND(H14="",Oplysninger!C22="Vinterbyg"),N14+Oplysninger!D$29,N14)))))))) -> 0 | G14: =IF(OR(Oplysninger!$C22="Majs til helsæd",Oplysninger!C22="Slætgræs 4 slæt"),"Kr. pr. FEN","kr. pr. hkg") -> Kr. pr. FEN | N14: 0 | P14: =VLOOKUP(D14,Datagrundlag!E$9:F$22,2,FALSE) -> 
D15: =IF(OR(Oplysninger!C23="Ingen eller andet",Oplysninger!C23=""),E9,IF(Oplysninger!C23="Vårbyg","Byg",IF(Oplysninger!C23="Vårhvede","Hvede",IF(Oplysninger!C23="Vinterhvede","Hvede",IF(Oplysninger!C23="Vinterraps","Raps",IF(Oplysninger!C23="Vinterbyg","Byg",IF(Oplysninger!C23="Vinterrug","Rug",Oplysninger!C23))))))) -> Fabriksroer | F15: =IF(H15<>0,H15,IF(AND(H15="",Oplysninger!D$16="Ja"),N15,IF(AND(H15="",Oplysninger!D$16="Nej",Oplysninger!C23="Vårbyg"),N15+Oplysninger!D$29,IF(AND(H15="",Oplysninger!C23="Vinterhvede"),N15+Oplysninger!D$29,IF(AND(H15="",Oplysninger!C23="Havre"),N15+Oplysninger!D$29,IF(AND(H15="",Oplysninger!C23="Vinterraps"),N15+Oplysninger!D$29,IF(AND(H15="",Oplysninger!C23="Rug"),N15+Oplysninger!$D$29,IF(AND(H15="",Oplysninger!C23="Vinterbyg"),N15+Oplysninger!D$29,N15)))))))) -> 21 | G15: =IF(OR(Oplysninger!$C23="Majs til helsæd",Oplysninger!C23="Slætgræs 4 slæt"),"Kr. pr. FEN","kr. pr. hkg") -> kr. pr. hkg | N15: 21 | P15: =VLOOKUP(D15,Datagrundlag!E$9:F$22,2,FALSE) -> 21
D16: =IF(OR(Oplysninger!C24="Ingen eller andet",Oplysninger!C24=""),E10,IF(Oplysninger!C24="Vårbyg","Byg",IF(Oplysninger!C24="Vårhvede","Hvede",IF(Oplysninger!C24="Vinterhvede","Hvede",IF(Oplysninger!C24="Vinterraps","Raps",IF(Oplysninger!C24="Vinterbyg","Byg",IF(Oplysninger!C24="Vinterrug","Rug",Oplysninger!C24))))))) -> Slætgræs 4 slæt | F16: =IF(H16<>0,H16,IF(AND(H16="",Oplysninger!D$16="Ja"),N16,IF(AND(H16="",Oplysninger!D$16="Nej",Oplysninger!C24="Vårbyg"),N16+Oplysninger!D$29,IF(AND(H16="",Oplysninger!C24="Vinterhvede"),N16+Oplysninger!D$29,IF(AND(H16="",Oplysninger!C24="Havre"),N16+Oplysninger!D$29,IF(AND(H16="",Oplysninger!C24="Vinterraps"),N16+Oplysninger!D$29,IF(AND(H16="",Oplysninger!C24="Rug"),N16+Oplysninger!$D$29,IF(AND(H16="",Oplysninger!C24="Vinterbyg"),N16+Oplysninger!D$29,N16)))))))) -> 0 | G16: =IF(OR(Oplysninger!$C24="Majs til helsæd",Oplysninger!C24="Slætgræs 4 slæt"),"Kr. pr. FEN","kr. pr. hkg") -> Kr. pr. FEN | N16: 0 | P16: =VLOOKUP(D16,Datagrundlag!E$9:F$22,2,FALSE) -> 
B17: Bruttoudbytte: | D17: =D5 -> Vårbyg på sandjord med vanding med gylle | F17: =F5*F11 -> 6540 | G17: kr. pr. ha
D18: =D6 -> Vinterhvede på sandjord med vanding med gylle | F18: =F6*F12 -> 9660 | G18: kr. pr. ha
D19: Vinterraps på sandjord med vanding med gylle | F19: =F7*F13 -> 11200 | G19: kr. pr. ha
D20: Majs til helsæd på sandjord med vanding med gylle | F20: 0 | G20: kr. pr. ha
D21: Fabriksroer på sandjord med vanding med gylle | F21: 0 | G21: kr. pr. ha
D22: Slætgræs 4 slæt på sandjord med vanding med gylle | F22: 0 | G22: kr. pr. ha
B23: Bruttoudbytte i alt (vægtet gennemsnit) | F23: =(F17*Oplysninger!D19+F18*Oplysninger!D20+F19*Oplysninger!D21+F20*Oplysninger!D22+F21*Oplysninger!D23+F22*Oplysninger!D24) -> 7585 | G23: kr. pr. ha (vægtet)
B24: Halmindtægt | F24: =IF(H24="",N24,H24) -> 1387.5 | G24: kr. pr. ha | N24: 1387.5 | P24: =Datagrundlag!E170*Oplysninger!D28/Oplysninger!D9/1000 -> 1387.5
B25: Stykomkostninger
B26: Stykomkostninger: | D26: =IF(OR(Oplysninger!C19="Ingen eller andet",Oplysninger!C19=""),E5,IF(Oplysninger!D$10="lerjord",Oplysninger!C19&Oplysninger!J$11&" på lerjord",IF(Oplysninger!D$10="Sandjord med vanding",Oplysninger!C19&Oplysninger!J$11&" på sandjord med vanding",Oplysninger!C19&Oplysninger!J$11&" på sandjord uden vanding"))) -> Vårbyg med gylle på sandjord med vanding | F26: =IF(H26="",N26,H26) -> -757 | G26: kr. pr. ha | N26: =IF(ISNUMBER(P26),P26,0) -> -757 | P26: =-VLOOKUP(D26,Datagrundlag!C$174:F$257,2,FALSE) -> -757
D27: =IF(OR(Oplysninger!C20="Ingen eller andet",Oplysninger!C20=""),E6,IF(Oplysninger!D$10="lerjord",Oplysninger!C20&Oplysninger!J$11&" på lerjord",IF(Oplysninger!D$10="Sandjord med vanding",Oplysninger!C20&Oplysninger!J$11&" på sandjord med vanding",Oplysninger!C20&Oplysninger!J$11&" på sandjord uden vanding"))) -> Vinterhvede med gylle på sandjord med vanding | F27: =IF(H27="",N27,H27) -> -1827 | G27: kr. pr. ha | N27: -1827 | P27: =-VLOOKUP(D27,Datagrundlag!C$174:F$257,2,FALSE) -> -1827
D28: =IF(OR(Oplysninger!C21="Ingen eller andet",Oplysninger!C21=""),E7,IF(Oplysninger!D$10="lerjord",Oplysninger!C21&Oplysninger!J$11&" på lerjord",IF(Oplysninger!D$10="Sandjord med vanding",Oplysninger!C21&Oplysninger!J$11&" på sandjord med vanding",Oplysninger!C21&Oplysninger!J$11&" på sandjord uden vanding"))) -> Vinterraps med gylle på sandjord med vanding | F28: -2584 | G28: kr. pr. ha | N28: -2584 | P28: =-VLOOKUP(D28,Datagrundlag!C$174:F$257,2,FALSE) -> -2584
D29: =IF(OR(Oplysninger!C22="Ingen eller andet",Oplysninger!C22=""),E8,IF(Oplysninger!D$10="lerjord",Oplysninger!C22&Oplysninger!J$11&" på lerjord",IF(Oplysninger!D$10="Sandjord med vanding",Oplysninger!C22&Oplysninger!J$11&" på sandjord med vanding",Oplysninger!C22&Oplysninger!J$11&" på sandjord uden vanding"))) -> Majs til helsæd med gylle på sandjord med vanding | F29: -2732 | G29: kr. pr. ha | N29: -2732 | P29: =-VLOOKUP(D29,Datagrundlag!C$174:F$257,2,FALSE) -> -2732
D30: =IF(OR(Oplysninger!C23="Ingen eller andet",Oplysninger!C23=""),E9,IF(Oplysninger!D$10="lerjord",Oplysninger!C23&Oplysninger!J$11&" på lerjord",IF(Oplysninger!D$10="Sandjord med vanding",Oplysninger!C23&Oplysninger!J$11&" på sandjord med vanding",Oplysninger!C23&Oplysninger!J$11&" på sandjord uden vanding"))) -> Fabriksroer med gylle på sandjord med vanding | F30: 0 | G30: kr. pr. ha | N30: 0 | P30: =-VLOOKUP(D30,Datagrundlag!C$174:F$257,2,FALSE) -> 0
D31: =IF(OR(Oplysninger!C24="Ingen eller andet",Oplysninger!C24=""),E10,IF(Oplysninger!D$10="lerjord",Oplysninger!C24&Oplysninger!J$11&" på lerjord",IF(Oplysninger!D$10="Sandjord med vanding",Oplysninger!C24&Oplysninger!J$11&" på sandjord med vanding",Oplysninger!C24&Oplysninger!J$11&" på sandjord uden vanding"))) -> Slætgræs 4 slæt med gylle på sandjord med vanding | F31: -1252 | G31: kr. pr. ha | N31: -1252 | P31: =-VLOOKUP(D31,Datagrundlag!C$174:F$257,2,FALSE) -> -1252
B32: Stykomkostninger (vægtet gennemsnit)* | F32: =F26*Oplysninger!D19+F27*Oplysninger!D20+F28*Oplysninger!D21+F29*Oplysninger!D22+F30*Oplysninger!D23+F31*Oplysninger!D24 -> -1770.95 | G32: kr. pr. ha (vægtet)
B33: Dækningsbidrag | F33: =F23+F24+F32 -> 7201.55 | G33: kr. pr. ha
B34: Kapacitetsomkostninger
B35: Maskinomk. inkl. arb.omk.: | D35: =IF(OR(Oplysninger!C19="Ingen eller andet",Oplysninger!C19=""),E5,IF(Oplysninger!D$10="lerjord",Oplysninger!C19&Oplysninger!J$11&" på lerjord",IF(Oplysninger!D$10="Sandjord med vanding",Oplysninger!C19&Oplysninger!J$11&" på sandjord med vanding",Oplysninger!C19&Oplysninger!J$11&" på sandjord uden vanding"))) -> Vårbyg med gylle på sandjord med vanding | F35: =IF(H35="",N35,H35) -> -7301 | G35: kr. pr. ha | N35: =IF(ISNUMBER(P35),P35,0) -> -7301 | P35: =-VLOOKUP(D35,Datagrundlag!$C$174:$E$257,3,FALSE) -> -7301
D36: =IF(OR(Oplysninger!C20="Ingen eller andet",Oplysninger!C20=""),E6,IF(Oplysninger!D$10="lerjord",Oplysninger!C20&Oplysninger!J$11&" på lerjord",IF(Oplysninger!D$10="Sandjord med vanding",Oplysninger!C20&Oplysninger!J$11&" på sandjord med vanding",Oplysninger!C20&Oplysninger!J$11&" på sandjord uden vanding"))) -> Vinterhvede med gylle på sandjord med vanding | F36: -8469 | G36: kr. pr. ha | N36: -8469 | P36: =-VLOOKUP(D36,Datagrundlag!$C$174:$E$257,3,FALSE) -> -8469
D37: =IF(OR(Oplysninger!C21="Ingen eller andet",Oplysninger!C21=""),E7,IF(Oplysninger!D$10="lerjord",Oplysninger!C21&Oplysninger!J$11&" på lerjord",IF(Oplysninger!D$10="Sandjord med vanding",Oplysninger!C21&Oplysninger!J$11&" på sandjord med vanding",Oplysninger!C21&Oplysninger!J$11&" på sandjord uden vanding"))) -> Vinterraps med gylle på sandjord med vanding | F37: -7556 | G37: kr. pr. ha | N37: -7556 | P37: =-VLOOKUP(D37,Datagrundlag!$C$174:$E$257,3,FALSE) -> -7556
D38: =IF(OR(Oplysninger!C22="Ingen eller andet",Oplysninger!C22=""),E8,IF(Oplysninger!D$10="lerjord",Oplysninger!C22&Oplysninger!J$11&" på lerjord",IF(Oplysninger!D$10="Sandjord med vanding",Oplysninger!C22&Oplysninger!J$11&" på sandjord med vanding",Oplysninger!C22&Oplysninger!J$11&" på sandjord uden vanding"))) -> Majs til helsæd med gylle på sandjord med vanding | F38: -6823 | G38: kr. pr. ha | N38: -6823 | P38: =-VLOOKUP(D38,Datagrundlag!$C$174:$E$257,3,FALSE) -> -6823
D39: =IF(OR(Oplysninger!C23="Ingen eller andet",Oplysninger!C23=""),E9,IF(Oplysninger!D$10="lerjord",Oplysninger!C23&Oplysninger!J$11&" på lerjord",IF(Oplysninger!D$10="Sandjord med vanding",Oplysninger!C23&Oplysninger!J$11&" på sandjord med vanding",Oplysninger!C23&Oplysninger!J$11&" på sandjord uden vanding"))) -> Fabriksroer med gylle på sandjord med vanding | F39: 0 | G39: kr. pr. ha | N39: 0 | P39: =-VLOOKUP(D39,Datagrundlag!$C$174:$E$257,3,FALSE) -> 0
D40: =IF(OR(Oplysninger!C24="Ingen eller andet",Oplysninger!C24=""),E10,IF(Oplysninger!D$10="lerjord",Oplysninger!C24&Oplysninger!J$11&" på lerjord",IF(Oplysninger!D$10="Sandjord med vanding",Oplysninger!C24&Oplysninger!J$11&" på sandjord med vanding",Oplysninger!C24&Oplysninger!J$11&" på sandjord uden vanding"))) -> Slætgræs 4 slæt med gylle på sandjord med vanding | F40: -9496 | G40: kr. pr. ha | N40: -9496 | P40: =-VLOOKUP(D40,Datagrundlag!$C$174:$E$257,3,FALSE) -> -9496
B41: Maskinomk. inkl. arbejde (vægtet gennemsnit) | F41: =F35*Oplysninger!D19+F36*Oplysninger!D20+F37*Oplysninger!D21+F38*Oplysninger!D22+F39*Oplysninger!D23+F40*Oplysninger!D24 -> -7838.8 | G41: kr. pr. ha (vægtet) | N41: 0
B42: Maskinomkostninger inkl. arbejde (korrigeret for arbejdstid og kapacitet) | F42: =-Udskrift!E58 -> -6427.816 | G42: kr. pr. ha | N42: 0
B43: Transportomkostninger: | D43: =IF(D11=0,"",D11) -> Byg | F43: =IF(Oplysninger!D$9=0,0,IF(H43="",N43,H43)) -> -148.7010309 | G43: kr. pr. ha | N43: =IF(D5&E5="",0,P43) -> -148.7010309 | P43: =-Transport!D$27*Oplysninger!D$30*Oplysninger!D$32/Oplysninger!D$31*2 -> -148.7010309
D44: =IF(D12=0,"",D12) -> Hvede | F44: =IF(Oplysninger!D$9=0,0,IF(H44="",N44,H44)) -> -154.8865979 | G44: kr. pr. ha | J44: Gå til trans- portomkost-ninger | N44: -154.8865979 | P44: =-Transport!F$27*Oplysninger!D$30*Oplysninger!D$32/Oplysninger!D$31*2 -> -154.8865979
D45: Raps | F45: =IF(Oplysninger!D$9=0,0,IF(H45="",N45,H45)) -> -202.2680412 | G45: kr. pr. ha | N45: -202.2680412 | P45: =-Transport!H$27*Oplysninger!D$30*Oplysninger!D$32/Oplysninger!D$31*2 -> -202.2680412
D46: Majs til helsæd | F46: =IF(Oplysninger!D$9=0,0,IF(H46="",N46,H46)) -> -224.742268 | G46: kr. pr. ha | N46: -224.742268 | P46: =-Transport!J$27*Oplysninger!D$30*Oplysninger!D$32/Oplysninger!D$31*2 -> -224.742268
D47: Fabriksroer | F47: =IF(Oplysninger!D$9=0,0,IF(H47="",N47,H47)) -> 0 | G47: kr. pr. ha | N47: 0 | P47: =-Transport!L$27*Oplysninger!D$30*Oplysninger!D$32/Oplysninger!D$31*2 -> 0
D48: Slætgræs 4 slæt | F48: =IF(Oplysninger!D$9=0,0,IF(H48="",N48,H48)) -> 0 | G48: kr. pr. ha | N48: 0 | P48: =-Transport!N$27*Oplysninger!D$30*Oplysninger!D$32/Oplysninger!D$31*2 -> 0
B49: Transportomkostninger (vægtet gennemsnit) | F49: =F43*Oplysninger!D19+F44*Oplysninger!D20+F45*Oplysninger!D21+F46*Oplysninger!D22+F47*Oplysninger!D23+F48*Oplysninger!D24 -> -168.556701 | G49: kr. pr. ha (vægtet) | N49: 0
B50: Rest til forpagtning ekskl. andre omk. og EU-støtte | F50: =F33+F42+F49 -> 605.177299 | G50: kr. pr. ha | N50: 0
B51: Andre omkostninger ** | F51: =IF(H51="",N51,H51) -> -500 | G51: kr. pr. ha | H51: -500 | N51: 0
B52: Rest til forpagtning ekskl. EU-støtte | F52: =F50+F51 -> 105.177299 | G52: kr. pr. ha | N52: 0
B53: EU-støtte | F53: =IF(H53="",N53,H53) -> 1900 | G53: kr. pr. ha | H53: 1900 | N53: 0
B54: Forpagtningsafgift | F54: =IF(H54="",N54,H54) -> -4000 | G54: kr. pr. ha | H54: -4000 | N54: 0
B55: Fortjeneste til forpagteren inkl. EU-støtte | F55: =F52+F53+F54 -> -1994.822701 | G55: kr. pr. ha | N55: 0
N56: 0
B58: * For alle kalkuler angives en uspecificeret omkostning til ”øvrige opgaver” på ca. 500 kr. pr. ha pr. år. Denne post dækker omkostninger til f.eks.:
B59: • Tilsyn
B60: • Stensamling
B61: • Lugning af flyvehavre
B62: • Forgæves kørsel (når det regner, lige når man skulle i gang)
B64: ** Ud over ovennævnte poster er der altid omkostninger til maskiner og arbejdstid, som ikke kan henføres direkte til den enkelte afgrøde. Der kan være tale om:
B65: • Kalkning
B66: • Brug af glyphosat
B67: • Klipning af hegn
B68: • Renovering mv. af dræn
B69: • Vedligeholdelse af veje
B70: • Generel driftsledelse af den samlede markdrift
B71: • Osv.
B72: Disse poster, som ikke indgår i den enkelte kalkule, skal medregnes, når man skal beregne de samlede arbejds- og maskinomkostninger på bedriften. Beløbet kan variere meget fra bedrift til bedrift, men i omegnen af 5-10 pct. af de omkostninger, der er totalt på de enkelte afgrøder, er ikke ualmindeligt.
B74: Påvirkning af likviditeten
B75: Vær opmærksom på en eventuel likvid periodeforskydning mellem betaling af forpagtningsafgift, omkostninger til drift af markerne og indtægterne fra afgrøderne.

Sheet Udskrift
B2: Resultat og sammenligning
B4: =Beregninger!B23 -> Bruttoudbytte i alt (vægtet gennemsnit) | F4: =IF(B4=Beregninger!B23,Beregninger!F23,"") -> 7585
B5: =Beregninger!B32 -> Stykomkostninger (vægtet gennemsnit)* | F5: =IF(B5=Beregninger!B32,Beregninger!F32,"") -> -1770.95
B6: =Beregninger!B33 -> Dækningsbidrag | F6: =IF(B6=Beregninger!B33,Beregninger!F33,"") -> 7201.55
B7: =Beregninger!B42 -> Maskinomkostninger inkl. arbejde (korrigeret for arbejdstid og kapacitet) | F7: =IF(B7=Beregninger!B42,Beregninger!F42,"") -> -6427.816
B8: =Beregninger!B49 -> Transportomkostninger (vægtet gennemsnit) | F8: =IF(B8=Beregninger!B49,Beregninger!F49,"") -> -168.556701
B9: =Beregninger!B51 -> Andre omkostninger ** | F9: =IF(B9=Beregninger!B51,Beregninger!F51,"") -> -500
B10: =Beregninger!B52 -> Rest til forpagtning ekskl. EU-støtte | F10: =IF(B10=Beregninger!B52,Beregninger!F52,"") -> 105.177299
B11: =Beregninger!B53 -> EU-støtte | F11: =IF(B11=Beregninger!B53,Beregninger!F53,"") -> 1900
B12: =Beregninger!B54 -> Forpagtningsafgift | F12: =IF(B12=Beregninger!B54,Beregninger!F54,"") -> -4000
B13: =Beregninger!B55 -> Fortjeneste til forpagteren inkl. EU-støtte | F13: =IF(B13=Beregninger!B55,Beregninger!F55,"") -> -1994.822701
B15: Afgrødefordeling | D15: Vælg sammenligningsgrupper til graf:
D16: Driftsgren | E16: Husdyrproduktion
B17: =IF(H20<=50,"For få observationer","") ->  | D17: Jordbonitet | E17: JB5&6
D18: Landsdel | E18: Alle
H20: =IFERROR(+SUMIFS(Tabel1[x.Antal],Tabel1[Landsdel],$E$18,Tabel1[FTO_jbx],$E$17,Tabel1[type],$E$16),"") -> 557
B23: Benchmark
B24: ="Antal observationer: "&IFERROR(+SUMIFS(Tabel1[x.Antal],Tabel1[Landsdel],$E$18,Tabel1[FTO_jbx],$E$17,Tabel1[type],$E$16),"") -> Antal observationer: 557
H25: Gennemsnitlige forpagtningspriser pr. ha
H26: ="("&E16&", "&E18&", "&E17&")" -> (Husdyrproduktion, Alle, JB5&6)
H33: Interval | I33: Kr. pr. ha
H34: Bedrift | I34: =-1*F12 -> 4000
H35: 0-20% | I35: =IFERROR(+SUMIFS(INDIRECT("Tabel1["&$J35&"]"),Tabel1[Landsdel],$E$18,Tabel1[FTO_jbx],$E$17,Tabel1[type],$E$16),"") -> 2627 | J35: x.MQ00_20x
H36: 20-40% | I36: =IFERROR(+SUMIFS(INDIRECT("Tabel1["&$J36&"]"),Tabel1[Landsdel],$E$18,Tabel1[FTO_jbx],$E$17,Tabel1[type],$E$16),"") -> 3782 | J36: x.MQ20_40x
H37: 40-60% | I37: =IFERROR(+SUMIFS(INDIRECT("Tabel1["&$J37&"]"),Tabel1[Landsdel],$E$18,Tabel1[FTO_jbx],$E$17,Tabel1[type],$E$16),"") -> 4347 | J37: x.MQ40_60x
H38: 60-80% | I38: =IFERROR(+SUMIFS(INDIRECT("Tabel1["&$J38&"]"),Tabel1[Landsdel],$E$18,Tabel1[FTO_jbx],$E$17,Tabel1[type],$E$16),"") -> 4928 | J38: x.MQ60_80x
H39: 80-100% | I39: =IFERROR(+SUMIFS(INDIRECT("Tabel1["&$J39&"]"),Tabel1[Landsdel],$E$18,Tabel1[FTO_jbx],$E$17,Tabel1[type],$E$16),"") -> 6201 | J39: x.MQ80_100x
B40: Figur: Gennemsnitlige forpagtningspriser i hver gruppe fra laveste til højeste
B42: Fremstillingspris pr. afgrødeenhed (halmindtægt, stykomkostninger, maskin- og arbejdsomkostninger inkl. transport, andre omkostninger, EU-støtte og forpagtningsafgift) | E42: Ikke korrigeret for ledig arbejdstid og fri kapacitet | F42: Korrigeret for ledig arbejdstid og fri kapacitet
B43: =IF(Beregninger!E5="",Beregninger!D5,Beregninger!E5) -> Vårbyg på sandjord med vanding med gylle | E43: =IF(Beregninger!F5=0,"",(-Beregninger!F26-Beregninger!F35-Beregninger!F43-Beregninger!$F$51-Beregninger!$F$53-Beregninger!$F$54-(Datagrundlag!D164*Oplysninger!D$28/1000))/Beregninger!F5) -> 154.2783505 | F43: =IF(Beregninger!F5=0,"", (IF(AND(Beregninger!H35="",Oplysninger!D12="Ja"),Beregninger!F35, IF(AND(Beregninger!H35="",Oplysninger!D12="Nej",Oplysninger!D13="Ja",Oplysninger!D15="Ja"),-Beregninger!F35*(Datagrundlag!F33+Datagrundlag!F35*Oplysninger!D14/Datagrundlag!C17), IF(AND(Beregninger!H35="",Oplysninger!D12="Nej",Oplysninger!D13="Ja",Oplysninger!D15="Nej"),-Beregninger!F35*(Datagrundlag!F33+Datagrundlag!F35*(Oplysninger!D14/Datagrundlag!C17)+Datagrundlag!F34), IF(AND(Beregninger!H35="",Oplysninger!D12="Nej",Oplysninger!D13="Nej",Oplysninger!D15="Ja"),-Beregninger!F35*(Datagrundlag!F33+Datagrundlag!F35), IF(AND(Beregninger!H35="",Oplysninger!D13="Nej",Oplysninger!D15="Nej"),-Beregninger!F35,-Beregninger!H35)))))-Beregninger!F26-Beregninger!F43-Beregninger!F51-Beregninger!F53-Beregninger!F54-(Datagrundlag!D164*Oplysninger!D28/1000))/Beregninger!F5) -> 132.3753505
B44: =IF(Beregninger!E6="",Beregninger!D6,Beregninger!E6) -> Vinterhvede på sandjord med vanding med gylle | E44: =IF(Beregninger!F6=0,"",(-Beregninger!F27-Beregninger!F36-Beregninger!F44-Beregninger!$F$51-Beregninger!$F$53-Beregninger!$F$54-(Datagrundlag!D165*Oplysninger!D$28/1000))/Beregninger!F6) -> 131.5581738 | F44: =IF(Beregninger!F6=0,"", (IF(AND(Beregninger!H36="",Oplysninger!D12="Ja"),Beregninger!F36, IF(AND(Beregninger!H36="",Oplysninger!D12="Nej",Oplysninger!D13="ja",Oplysninger!D15="Ja"),-Beregninger!F36*(Datagrundlag!F33+Datagrundlag!F35*Oplysninger!D14/Datagrundlag!C17), IF(AND(Beregninger!H36="",Oplysninger!D12="Nej",Oplysninger!D13="Ja",Oplysninger!D15="Nej"),-Beregninger!F36*(Datagrundlag!F33+Datagrundlag!F35*(Oplysninger!D14/Datagrundlag!C17)+Datagrundlag!F34), IF(AND(Beregninger!H36="",Oplysninger!D12="Nej",Oplysninger!D13="Nej",Oplysninger!D15="Ja"),-Beregninger!F36*(Datagrundlag!F33+Datagrundlag!F35), IF(AND(Beregninger!H36="",Oplysninger!D13="Nej",Oplysninger!D15="Nej"),-Beregninger!F36,-Beregninger!H36)))))-Beregninger!F27-Beregninger!F44-Beregninger!F51-Beregninger!F53-Beregninger!F54-(Datagrundlag!D165*Oplysninger!D28/1000))/Beregninger!F6) -> 113.4103166
B45: =IF(Beregninger!E7="",Beregninger!D7,Beregninger!E7) -> Vinterraps på sandjord med vanding med gylle | E45: =IF(Beregninger!F7=0,"",(-Beregninger!F28-Beregninger!F37-Beregninger!F45-Beregninger!$F$51-Beregninger!$F$53-Beregninger!$F$54-(Datagrundlag!D166*Oplysninger!D$28/1000))/Beregninger!F7) -> 323.556701 | F45: =IF(Beregninger!F7=0,"",(IF(AND(Beregninger!H37="",Oplysninger!D12="Ja"),Beregninger!F37, IF(AND(Beregninger!H37="",Oplysninger!D12="Nej",Oplysninger!D13="ja",Oplysninger!D15="Ja"),-Beregninger!F37*(Datagrundlag!F33+Datagrundlag!F35*Oplysninger!D14/Datagrundlag!C17), IF(AND(Beregninger!H37="",Oplysninger!D12="Nej",Oplysninger!D13="Ja",Oplysninger!D15="Nej"),-Beregninger!F37*(Datagrundlag!F33+Datagrundlag!F35*(Oplysninger!D14/Datagrundlag!C17)+Datagrundlag!F34), IF(AND(Beregninger!H37="",Oplysninger!D12="Nej",Oplysninger!D13="Nej",Oplysninger!D15="Ja"),-Beregninger!F37*(Datagrundlag!F33+Datagrundlag!F35), IF(AND(Beregninger!H37="",Oplysninger!D13="Nej",Oplysninger!D15="Nej"),-Beregninger!F37,-Beregninger!H37)))))-Beregninger!F28-Beregninger!F45-Beregninger!F51-Beregninger!F53-Beregninger!F54-(Datagrundlag!D166*Oplysninger!D28/1000))/Beregninger!F7) -> 289.554701
B46: =IF(Beregninger!E8="",Beregninger!D8,Beregninger!E8) -> Majs til helsæd på sandjord med vanding med gylle | E46: =IF(Beregninger!F8=0,"",(-Beregninger!F29-Beregninger!F38-Beregninger!F46-Beregninger!$F$51-Beregninger!$F$53-Beregninger!$F$54-(Datagrundlag!D167*Oplysninger!D$28/1000))/Beregninger!F8) -> 1.049130701 | F46: =IF(Beregninger!F8=0,"",(IF(AND(Beregninger!H38="",Oplysninger!D12="Ja"),Beregninger!F38, IF(AND(Beregninger!H38="",Oplysninger!D12="Nej",Oplysninger!D13="ja",Oplysninger!D15="Ja"),-Beregninger!F38*(Datagrundlag!F33+Datagrundlag!F35*Oplysninger!D14/Datagrundlag!C17), IF(AND(Beregninger!H38="",Oplysninger!D12="Nej",Oplysninger!D13="Ja",Oplysninger!D15="Nej"),-Beregninger!F38*(Datagrundlag!F33+Datagrundlag!F35*(Oplysninger!D14/Datagrundlag!C17)+Datagrundlag!F34), IF(AND(Beregninger!H38="",Oplysninger!D12="Nej",Oplysninger!D13="Nej",Oplysninger!D15="Ja"),-Beregninger!F38*(Datagrundlag!F33+Datagrundlag!F35), IF(AND(Beregninger!H38="",Oplysninger!D13="Nej",Oplysninger!D15="Nej"),-Beregninger!F38,-Beregninger!H38)))))-Beregninger!F29-Beregninger!F46-Beregninger!F51-Beregninger!F53-Beregninger!F54-(Datagrundlag!D167*Oplysninger!D28/1000))/Beregninger!F8) -> 0.9450510397
B47: =IF(Beregninger!E9="",Beregninger!D9,Beregninger!E9) -> Fabriksroer på sandjord med vanding med gylle | E47: =IF(Beregninger!F9=0,"",(-Beregninger!F30-Beregninger!F39-Beregninger!F47-Beregninger!$F$51-Beregninger!$F$53-Beregninger!$F$54-(Datagrundlag!D168*Oplysninger!D$28/1000))/Beregninger!F9) ->  | F47: =IF(Beregninger!F9=0,"",(IF(AND(Beregninger!H39="",Oplysninger!D12="Ja"),Beregninger!F39, IF(AND(Beregninger!H39="",Oplysninger!D12="Nej",Oplysninger!D13="ja",Oplysninger!D15="Ja"),-Beregninger!F39*(Datagrundlag!F33+Datagrundlag!F35*Oplysninger!D14/Datagrundlag!C17), IF(AND(Beregninger!H39="",Oplysninger!D12="Nej",Oplysninger!D13="Ja",Oplysninger!D15="Nej"),-Beregninger!F39*(Datagrundlag!F33+Datagrundlag!F35*(Oplysninger!D14/Datagrundlag!C17)+Datagrundlag!F34), IF(AND(Beregninger!H39="",Oplysninger!D12="Nej",Oplysninger!D13="Nej",Oplysninger!D15="Ja"),-Beregninger!F39*(Datagrundlag!F33+Datagrundlag!F35), IF(AND(Beregninger!H39="",Oplysninger!D13="Nej",Oplysninger!D15="Nej"),-Beregninger!F39,-Beregninger!H39)))))-Beregninger!F30-Beregninger!F47-Beregninger!F51-Beregninger!F53-Beregninger!F54-(Datagrundlag!D168*Oplysninger!D28/1000))/Beregninger!F9) -> 
B48: =IF(Beregninger!E10="",Beregninger!D10,Beregninger!E10) -> Slætgræs 4 slæt på sandjord med vanding med gylle | E48: =IF(Beregninger!F10=0,"",(-Beregninger!F31-Beregninger!F40-Beregninger!F48-Beregninger!$F$51-Beregninger!$F$53-Beregninger!$F$54-(Datagrundlag!D169*Oplysninger!D$28/1000))/Beregninger!F10) -> 1.321584158 | F48: =IF(Beregninger!F10=0,"",(IF(AND(Beregninger!H40="",Oplysninger!D12="Ja"),Beregninger!F40, IF(AND(Beregninger!H40="",Oplysninger!D12="Nej",Oplysninger!D13="ja",Oplysninger!D15="Ja"),-Beregninger!F40*(Datagrundlag!F33+Datagrundlag!F35*Oplysninger!D14/Datagrundlag!C17), IF(AND(Beregninger!H40="",Oplysninger!D12="Nej",Oplysninger!D13="Ja",Oplysninger!D15="Nej"),-Beregninger!F40*(Datagrundlag!F33+Datagrundlag!F35*(Oplysninger!D14/Datagrundlag!C17)+Datagrundlag!F34), IF(AND(Beregninger!H40="",Oplysninger!D12="Nej",Oplysninger!D13="Nej",Oplysninger!D15="Ja"),-Beregninger!F40*(Datagrundlag!F33+Datagrundlag!F35), IF(AND(Beregninger!H40="",Oplysninger!D13="Nej",Oplysninger!D15="Nej"),-Beregninger!F40,-Beregninger!H40)))))-Beregninger!F31-Beregninger!F48-Beregninger!F51-Beregninger!F53-Beregninger!F54-(Datagrundlag!D169*Oplysninger!D28/1000))/Beregninger!F10) -> 1.152348515
B51: Prod.omk. i alt uden korektion | C51: Prod.omk. i alt med korektion | D51: Maskinomk. pr. afgrøde | E51: Maskinomk. i alt
B52: =E43*Beregninger!F5*Oplysninger!D19 -> 2314.175258 | C52: =F43*Beregninger!F5*Oplysninger!D19 -> 1985.630258 | D52: =IF(Beregninger!F5=0,"",F43-(-Beregninger!F26-Beregninger!F43-Beregninger!F51-Beregninger!F53-Beregninger!F54-(Datagrundlag!D164*Oplysninger!D28/1000))/Beregninger!F5) -> 99.78033333 | E52: =IF(Beregninger!F5=0,"",D52*Oplysninger!D19*Beregninger!F5) -> 1496.705
B53: =E44*Beregninger!F6*Oplysninger!D20 -> 5525.443299 | C53: =F44*Beregninger!F6*Oplysninger!D20 -> 4763.233299 | D53: =IF(Beregninger!F6=0,"",F44-(-Beregninger!F27-Beregninger!F44-Beregninger!F51-Beregninger!F53-Beregninger!F54-(Datagrundlag!D165*Oplysninger!D28/1000))/Beregninger!F6) -> 82.67357143 | E53: =IF(Beregninger!F6=0,"",D53*Oplysninger!D20*Beregninger!F6) -> 3472.29
B54: =E45*Beregninger!F7*Oplysninger!D21 -> 1294.226804 | C54: =F45*Beregninger!F7*Oplysninger!D21 -> 1158.218804 | D54: =IF(Beregninger!F7=0,"",F45-(-Beregninger!F28-Beregninger!F45-Beregninger!F51-Beregninger!F53-Beregninger!F54-(Datagrundlag!D166*Oplysninger!D28/1000))/Beregninger!F7) -> 154.898 | E54: =IF(Beregninger!F7=0,"",D54*Oplysninger!D21*Beregninger!F7) -> 619.592
B55: =E46*Beregninger!F8*Oplysninger!D22 -> 1856.96134 | C55: =F46*Beregninger!F8*Oplysninger!D22 -> 1672.74034 | D55: =IF(Beregninger!F8=0,"",F46-(-Beregninger!F29-Beregninger!F46-Beregninger!F51-Beregninger!F53-Beregninger!F54-(Datagrundlag!D167*Oplysninger!D28/1000))/Beregninger!F8) -> 0.474140678 | E55: =IF(Beregninger!F8=0,"",D55*Oplysninger!D22*Beregninger!F8) -> 839.229
B56: =E47*Beregninger!F9*Oplysninger!D23 ->  | C56: =F47*Beregninger!F9*Oplysninger!D23 ->  | D56: =IF(Beregninger!F9=0,"",F47-(-Beregninger!F30-Beregninger!F47-Beregninger!F51-Beregninger!F53-Beregninger!F54-(Datagrundlag!D168*Oplysninger!D28/1000))/Beregninger!F9) ->  | E56: =IF(Beregninger!F9=0,"",D56*Oplysninger!D23*Beregninger!F9) -> 
B57: =E48*Beregninger!F10*Oplysninger!D24 -> 0 | C57: =F48*Beregninger!F10*Oplysninger!D24 -> 0 | D57: =IF(Beregninger!F10=0,"",F48-(-Beregninger!F31-Beregninger!F48-Beregninger!F51-Beregninger!F53-Beregninger!F54-(Datagrundlag!D169*Oplysninger!D28/1000))/Beregninger!F10) -> 0.7709623762 | E57: =IF(Beregninger!F10=0,"",D57*Oplysninger!D24*Beregninger!F10) -> 0
B58: =SUM(B52:B57) ->  | C58: =SUM(C52:C57) ->  | E58: =SUM(E52:E57) -> 6427.816
B59: =Beregninger!F32+Beregninger!F41+Beregninger!F49 -> -9778.306701 | C59: =Beregninger!F32+Beregninger!F42+Beregninger!F49 -> -8367.322701

Sheet Transport
B1: Beregning af tid og omkostninger til transport til forpagtet areal
B3: Antal transporter til og fra forpagtet areal | C3: =IF(Oplysninger!$C19="Ingen eller andet",Beregninger!D11,Oplysninger!$C19) -> Vårbyg | E3: =IF(Oplysninger!$C20="Ingen eller andet",Beregninger!D12,Oplysninger!$C20) -> Vinterhvede | G3: =IF(Oplysninger!$C21="Ingen eller andet",Beregninger!D13,Oplysninger!$C21) -> Vinterraps | I3: =IF(Oplysninger!$C22="Ingen eller andet",Beregninger!D14,Oplysninger!$C22) -> Majs til helsæd | K3: =IF(Oplysninger!$C23="Ingen eller andet",Beregninger!D15,Oplysninger!$C23) -> Fabriksroer | M3: =IF(Oplysninger!$C24="Ingen eller andet",Beregninger!D16,Oplysninger!$C24) -> Slætgræs 4 slæt
C4: =_xlfn.CONCAT("Antal ha: ",TEXT(Oplysninger!$D9*Oplysninger!$D19,"#.##0,0")) -> Antal ha: 24,3 | E4: =_xlfn.CONCAT("Antal ha: ",TEXT(Oplysninger!$D9*Oplysninger!$D20,"#.##0,0")) -> Antal ha: 48,5 | G4: =_xlfn.CONCAT("Antal ha: ",TEXT(Oplysninger!$D9*Oplysninger!$D21,"#.##0,0")) -> Antal ha: 9,7 | I4: =_xlfn.CONCAT("Antal ha: ",TEXT(Oplysninger!$D9*Oplysninger!$D22,"#.##0,0")) -> Antal ha: 14,6 | K4: =_xlfn.CONCAT("Antal ha: ",TEXT(Oplysninger!$D9*Oplysninger!$D23,"#.##0,0")) -> Antal ha: 0,0 | M4: =_xlfn.CONCAT("Antal ha: ",TEXT(Oplysninger!$D9*Oplysninger!$D24,"#.##0,0")) -> Antal ha: 0,0 | R4: Budgetkalkuler (opdateres når behov opstår)
C5: Egen vurdering (alle ha) | D5: Budget-kalkule (alle ha) | E5: Egen vurdering (alle ha) | F5: Budget-kalkule (alle ha) | G5: Egen vurdering (alle ha) | H5: Budget-kalkule (alle ha) | I5: Egen vurdering (alle ha) | J5: Budget-kalkule (alle ha) | K5: Egen vurdering (alle ha) | L5: Budget-kalkule (alle ha) | M5: Egen vurdering (alle ha) | N5: Budget-kalkule (alle ha) | R5: Vårbyg | S5: Vinterrug | T5: Havre | U5: Vinterhvede | V5: Vinterraps | W5: Vinterbyg | X5: Majs til helsæd | Y5: Fabriksroer | Z5: Stivelseskartofler | AA5: Læggekartofler | AB5: Spisekartofler | AC5: Proceskartofler | AD5: Alm. rajgræs | AE5: Slætgræs 4 slæt | AF5: Ingen eller andet
B6: Plov og jordpakker (1) | D6: =IF(C6="",ROUNDUP(HLOOKUP(Oplysninger!$C$19,Transport!$R$5:$AF$26,2,)*Oplysninger!$D$9*Oplysninger!$D$19/$I31,0),0) -> 2 | F6: =IF(E6="",ROUNDUP(HLOOKUP(Oplysninger!$C$20,Transport!$R$5:$AF$26,2,)*Oplysninger!$D$9*Oplysninger!$D$20/$I31,0),0) -> 3 | H6: =IF(G6="",ROUNDUP(HLOOKUP(Oplysninger!$C$21,Transport!$R$5:$AF$26,2,)*Oplysninger!$D$9*Oplysninger!$D$21/$I31,0),0) -> 1 | J6: =IF(I6="",ROUNDUP(HLOOKUP(Oplysninger!$C$22,Transport!$R$5:$AF$26,2,)*Oplysninger!$D$9*Oplysninger!$D$22/$I31,0),0) -> 1 | L6: =IF(K6="",ROUNDUP(HLOOKUP(Oplysninger!$C$23,Transport!$R$5:$AF$26,2,)*Oplysninger!$D$9*Oplysninger!$D$23/$I31,0),0) -> 0 | N6: =IF(M6="",ROUNDUP(HLOOKUP(Oplysninger!$C$24,Transport!$R$5:$AF$26,2,)*Oplysninger!$D$9*Oplysninger!$D$24/$I31,0),0) -> 0 | P6: Plov og jordpakker | R6: 1 | S6: 1 | T6: 1 | U6: 1 | V6: 1 | W6: 1 | X6: 1 | Y6: 1 | Z6: 1 | AA6: 1 | AB6: 1 | AC6: 1
B7: Stensamling | D7: =IF(C7="",HLOOKUP(Oplysninger!$C$19,Transport!$R$5:$AF$26,3,),0) -> 0 | F7: =IF(E7="",HLOOKUP(Oplysninger!$C$20,Transport!$R$5:$AF$26,3,),0) -> 0 | H7: =IF(G7="",HLOOKUP(Oplysninger!$C$21,Transport!$R$5:$AF$26,3,),0) -> 0 | J7: =IF(I7="",HLOOKUP(Oplysninger!$C$22,Transport!$R$5:$AF$26,3,),0) -> 0 | L7: =IF(K7="",HLOOKUP(Oplysninger!$C$23,Transport!$R$5:$AF$26,3,),0) -> 0 | N7: =IF(M7="",HLOOKUP(Oplysninger!$C$24,Transport!$R$5:$AF$26,3,),0) -> 0 | P7: Stensamling
B8: Tromle (2) | D8: =IF(C8="",ROUNDUP(HLOOKUP(Oplysninger!$C$19,Transport!$R$5:$AF$26,4,)*Oplysninger!$D$9*Oplysninger!$D$19/$I32,0),0) -> 0 | F8: =IF(E8="",ROUNDUP(HLOOKUP(Oplysninger!$C$20,Transport!$R$5:$AF$26,4,)*Oplysninger!$D$9*Oplysninger!$D$20/$I32,0),0) -> 0 | H8: =IF(G8="",ROUNDUP(HLOOKUP(Oplysninger!$C$21,Transport!$R$5:$AF$26,4,)*Oplysninger!$D$9*Oplysninger!$D$21/$I32,0),0) -> 0 | J8: =IF(I8="",ROUNDUP(HLOOKUP(Oplysninger!$C$22,Transport!$R$5:$AF$26,4,)*Oplysninger!$D$9*Oplysninger!$D$22/$I32,0),0) -> 1 | L8: =IF(K8="",ROUNDUP(HLOOKUP(Oplysninger!$C$23,Transport!$R$5:$AF$26,4,)*Oplysninger!$D$9*Oplysninger!$D$23/$I32,0),0) -> 0 | N8: =IF(M8="",ROUNDUP(HLOOKUP(Oplysninger!$C$24,Transport!$R$5:$AF$26,4,)*Oplysninger!$D$9*Oplysninger!$D$24/$I32,0),0) -> 0 | P8: Tromle | X8: =X7+1 -> 1 | AC8: =AC7+1 -> 1
B9: Kombihavning og såning (3) | D9: =IF(C9="",ROUNDUP(HLOOKUP(Oplysninger!$C$19,Transport!$R$5:$AF$26,5,)*Oplysninger!$D$9*Oplysninger!$D$19/$I33,0),0) -> 1 | F9: =IF(E9="",ROUNDUP(HLOOKUP(Oplysninger!$C$20,Transport!$R$5:$AF$26,5,)*Oplysninger!$D$9*Oplysninger!$D$20/$I33,0),0) -> 1 | H9: =IF(G9="",ROUNDUP(HLOOKUP(Oplysninger!$C$21,Transport!$R$5:$AF$26,5,)*Oplysninger!$D$9*Oplysninger!$D$21/$I33,0),0) -> 1 | J9: =IF(I9="",ROUNDUP(HLOOKUP(Oplysninger!$C$22,Transport!$R$5:$AF$26,5,)*Oplysninger!$D$9*Oplysninger!$D$22/$I33,0),0) -> 0 | L9: =IF(K9="",ROUNDUP(HLOOKUP(Oplysninger!$C$23,Transport!$R$5:$AF$26,5,)*Oplysninger!$D$9*Oplysninger!$D$23/$I33,0),0) -> 0 | N9: =IF(M9="",ROUNDUP(HLOOKUP(Oplysninger!$C$24,Transport!$R$5:$AF$26,5,)*Oplysninger!$D$9*Oplysninger!$D$24/$I33,0),0) -> 0 | P9: Kombihavning og såning | R9: 1 | S9: 1 | T9: 1 | U9: 1 | V9: 1 | W9: 1 | Y9: 1 | Z9: 1 | AA9: =AA8+1 -> 1 | AB9: =AB8+1 -> 1 | AC9: 1 | AD9: 1
B10: Udsæd (4) | D10: =IF(C10="",ROUNDUP(200*Oplysninger!$D$9*Oplysninger!$D19/$I34,0),0) -> 1 | F10: =IF(E10="",ROUNDUP(200*Oplysninger!$D$9*Oplysninger!$D20/$I34,0),0) -> 1 | H10: =IF(G10="",ROUNDUP(200*Oplysninger!$D$9*Oplysninger!$D21/$I34,0),0) -> 1 | I10: 0 | J10: =IF(I10="",ROUNDUP(200*Oplysninger!$D$9*Oplysninger!$D22/$I34,0),0) -> 0 | L10: =IF(K10="",ROUNDUP(200*Oplysninger!$D$9*Oplysninger!$D23/$I34,0),0) -> 0 | N10: =IF(M10="",ROUNDUP(200*Oplysninger!$D$9*Oplysninger!$D24/$I34,0),0) -> 0 | P10: Udsæd*
B11: Gødningsspreder (5) | D11: =IF(C11="",IF(Oplysninger!$D$11="Ja",HLOOKUP(Oplysninger!$C$19,Transport!$R$5:$AF$26,8,FALSE),HLOOKUP(Oplysninger!$C$19,Transport!$R$5:$AF$26,7,FALSE)),0) -> 1 | F11: =IF(E11="",IF(Oplysninger!$D$11="Ja",HLOOKUP(Oplysninger!$C$20,Transport!$R$5:$AF$26,8,FALSE),HLOOKUP(Oplysninger!$C$20,Transport!$R$5:$AF$26,7,FALSE)),0) -> 1 | H11: =IF(G11="",IF(Oplysninger!$D$11="Ja",HLOOKUP(Oplysninger!$C$21,Transport!$R$5:$AF$26,8,FALSE),HLOOKUP(Oplysninger!$C$21,Transport!$R$5:$AF$26,7,FALSE)),0) -> 1 | J11: =IF(I11="",IF(Oplysninger!$D$11="Ja",HLOOKUP(Oplysninger!$C$22,Transport!$R$5:$AF$26,8,FALSE),HLOOKUP(Oplysninger!$C$22,Transport!$R$5:$AF$26,7,FALSE)),0) -> 0 | L11: =IF(K11="",IF(Oplysninger!$D$11="Ja",HLOOKUP(Oplysninger!$C$23,Transport!$R$5:$AF$26,8,FALSE),HLOOKUP(Oplysninger!$C$23,Transport!$R$5:$AF$26,7,FALSE)),0) -> 0 | N11: =IF(M11="",IF(Oplysninger!$D$11="Ja",HLOOKUP(Oplysninger!$C$24,Transport!$R$5:$AF$26,8,FALSE),HLOOKUP(Oplysninger!$C$24,Transport!$R$5:$AF$26,7,FALSE)),0) -> 2 | P11: Gødningsspreder (u/gylle) | R11: 1 | S11: 2 | T11: 1 | U11: 2 | V11: 2 | W11: 1 | X11: 1 | Y11: 1 | Z11: 1 | AA11: 1 | AB11: 1 | AC11: 1 | AD11: 1 | AE11: 3
B12: Gødning (6) | D12: =IF(C12="",(ROUNDUP(250*Oplysninger!$D$9*Oplysninger!$D19/$I36,0)*D11),0) -> 1 | F12: =IF(E12="",(ROUNDUP(250*Oplysninger!$D$9*Oplysninger!$D20/$I36,0)*F11),0) -> 1 | H12: =IF(G12="",(ROUNDUP(250*Oplysninger!$D$9*Oplysninger!$D21/$I36,0)*H11),0) -> 1 | J12: =IF(I12="",(ROUNDUP(250*Oplysninger!$D$9*Oplysninger!$D22/$I36,0)*J11),0) -> 0 | L12: =IF(K12="",(ROUNDUP(250*Oplysninger!$D$9*Oplysninger!$D23/$I36,0)*L11),0) -> 0 | N12: =IF(M12="",(ROUNDUP(250*Oplysninger!$D$9*Oplysninger!$D24/$I36,0)*N11),0) -> 0 | P12: Gødningsspreder (m/gylle) | R12: 1 | S12: 1 | U12: 1 | V12: 1 | W12: 1 | AD12: 1 | AE12: 2
B13: Gylle (7) | D13: =IF(C13="",IF(AND(HLOOKUP(Oplysninger!$C$19,Transport!$R$5:$AF$31,27,FALSE)="Ja",Oplysninger!$D$11="Ja"),ROUNDUP(Oplysninger!$D$9*Oplysninger!$D$19*30/$I37,1)*HLOOKUP(Oplysninger!$C$19,Transport!$R$5:$AF$31,10,FALSE),0),0) -> 29.1 | F13: =IF(E13="",IF(AND(HLOOKUP(Oplysninger!$C$20,Transport!$R$5:$AF$31,27,FALSE)="Ja",Oplysninger!$D$11="Ja"),ROUNDUP(Oplysninger!$D$9*Oplysninger!$D$20*30/$I37,1)*HLOOKUP(Oplysninger!$C$20,Transport!$R$5:$AF$31,10,FALSE),0),0) -> 58.2 | H13: =IF(G13="",IF(AND(HLOOKUP(Oplysninger!$C$21,Transport!$R$5:$AF$31,27,FALSE)="Ja",Oplysninger!$D$11="Ja"),ROUNDUP(Oplysninger!$D$9*Oplysninger!$D$21*30/$I37,1)*HLOOKUP(Oplysninger!$C$21,Transport!$R$5:$AF$31,10,FALSE),0),0) -> 11.7 | J13: =IF(I13="",IF(AND(HLOOKUP(Oplysninger!$C$22,Transport!$R$5:$AF$31,27,FALSE)="Ja",Oplysninger!$D$11="Ja"),ROUNDUP(Oplysninger!$D$9*Oplysninger!$D$22*30/$I37,1)*HLOOKUP(Oplysninger!$C$22,Transport!$R$5:$AF$31,10,FALSE),0),0) -> 17.5 | L13: =IF(K13="",IF(AND(HLOOKUP(Oplysninger!$C$23,Transport!$R$5:$AF$31,27,FALSE)="Ja",Oplysninger!$D$11="Ja"),ROUNDUP(Oplysninger!$D$9*Oplysninger!$D$23*30/$I37,1)*HLOOKUP(Oplysninger!$C$23,Transport!$R$5:$AF$31,10,FALSE),0),0) -> 0 | N13: =IF(M13="",IF(AND(HLOOKUP(Oplysninger!$C$24,Transport!$R$5:$AF$31,27,FALSE)="Ja",Oplysninger!$D$11="Ja"),ROUNDUP(Oplysninger!$D$9*Oplysninger!$D$24*30/$I37,1)*HLOOKUP(Oplysninger!$C$24,Transport!$R$5:$AF$31,10,FALSE),0),0) -> 0 | P13: Gødning**
B14: Sprøjte (8) | D14: =IF(C14="",ROUNDUP(IF(Oplysninger!$D$9*Oplysninger!$D$19<=$I38,HLOOKUP(Oplysninger!$C$19,Transport!$R$5:$AF$26,11,),HLOOKUP(Oplysninger!$C$19,Transport!$R$5:$AF$26,11,)*2),0),0) -> 3 | F14: =IF(E14="",ROUNDUP(IF(Oplysninger!$D$9*Oplysninger!$D$20<=$I38,HLOOKUP(Oplysninger!$C$20,Transport!$R$5:$AF$26,11,),HLOOKUP(Oplysninger!$C$20,Transport!$R$5:$AF$26,11,)*2),0),0) -> 5 | H14: =IF(G14="",ROUNDUP(IF(Oplysninger!$D$9*Oplysninger!$D$21<=$I38,HLOOKUP(Oplysninger!$C$21,Transport!$R$5:$AF$26,11,),HLOOKUP(Oplysninger!$C$21,Transport!$R$5:$AF$26,11,)*2),0),0) -> 6 | J14: =IF(I14="",ROUNDUP(IF(Oplysninger!$D$9*Oplysninger!$D$22<=$I38,HLOOKUP(Oplysninger!$C$22,Transport!$R$5:$AF$26,11,),HLOOKUP(Oplysninger!$C$22,Transport!$R$5:$AF$26,11,)*2),0),0) -> 2 | L14: =IF(K14="",ROUNDUP(IF(Oplysninger!$D$9*Oplysninger!$D$23<=$I38,HLOOKUP(Oplysninger!$C$23,Transport!$R$5:$AF$26,11,),HLOOKUP(Oplysninger!$C$23,Transport!$R$5:$AF$26,11,)*2),0),0) -> 6 | N14: =IF(M14="",ROUNDUP(IF(Oplysninger!$D$9*Oplysninger!$D$24<=$I38,HLOOKUP(Oplysninger!$C$24,Transport!$R$5:$AF$26,11,),HLOOKUP(Oplysninger!$C$24,Transport!$R$5:$AF$26,11,)*2),0),0) -> 0 | P14: Gylle*** | R14: 1 | S14: 1 | T14: 1 | U14: 1 | V14: 1 | W14: 1 | X14: 1 | Y14: 1 | Z14: 1 | AA14: 1 | AB14: 1 | AC14: 1 | AD14: 1 | AE14: 2
B15: Supplerende vand til planteværn (9) | D15: =IF(C15="",(ROUNDUP(150*Oplysninger!$D$9*Oplysninger!$D19/$I39,0)*D14),0) -> 3 | F15: =IF(E15="",(ROUNDUP(150*Oplysninger!$D$9*Oplysninger!$D20/$I39,0)*F14),0) -> 10 | H15: =IF(G15="",(ROUNDUP(150*Oplysninger!$D$9*Oplysninger!$D21/$I39,0)*H14),0) -> 6 | J15: =IF(I15="",(ROUNDUP(150*Oplysninger!$D$9*Oplysninger!$D22/$I39,0)*J14),0) -> 2 | L15: =IF(K15="",(ROUNDUP(150*Oplysninger!$D$9*Oplysninger!$D23/$I39,0)*L14),0) -> 0 | N15: =IF(M15="",(ROUNDUP(150*Oplysninger!$D$9*Oplysninger!$D24/$I39,0)*N14),0) -> 0 | P15: Sprøjte | R15: 3 | S15: 4 | T15: 2 | U15: 5 | V15: 6 | W15: 4 | X15: 2 | Y15: 6 | Z15: 15 | AA15: 12 | AB15: 10 | AC15: 5 | AD15: 4
B16: Høstmaskine (10) | D16: =IF(C16="",ROUNDUP(IF(Oplysninger!$D$9*Oplysninger!$D$19<=$I40,HLOOKUP(Oplysninger!$C$19,Transport!$R$5:$AF$26,13,),HLOOKUP(Oplysninger!$C$19,Transport!$R$5:$AF$26,13,)*2),0),0) -> 1 | F16: =IF(E16="",ROUNDUP(IF(Oplysninger!$D$9*Oplysninger!$D$20<=$I40,HLOOKUP(Oplysninger!$C$20,Transport!$R$5:$AF$26,13,),HLOOKUP(Oplysninger!$C$20,Transport!$R$5:$AF$26,13,)*2),0),0) -> 1 | H16: =IF(G16="",ROUNDUP(IF(Oplysninger!$D$9*Oplysninger!$D$21<=$I40,HLOOKUP(Oplysninger!$C$21,Transport!$R$5:$AF$26,13,),HLOOKUP(Oplysninger!$C$21,Transport!$R$5:$AF$26,13,)*2),0),0) -> 1 | J16: =IF(I16="",ROUNDUP(IF(Oplysninger!$D$9*Oplysninger!$D$22<=$I40,HLOOKUP(Oplysninger!$C$22,Transport!$R$5:$AF$26,13,),HLOOKUP(Oplysninger!$C$22,Transport!$R$5:$AF$26,13,)*2),0),0) -> 1 | L16: =IF(K16="",ROUNDUP(IF(Oplysninger!$D$9*Oplysninger!$D$23<=$I40,HLOOKUP(Oplysninger!$C$23,Transport!$R$5:$AF$26,13,),HLOOKUP(Oplysninger!$C$23,Transport!$R$5:$AF$26,13,)*2),0),0) -> 1 | N16: =IF(M16="",ROUNDUP(IF(Oplysninger!$D$9*Oplysninger!$D$24<=$I40,HLOOKUP(Oplysninger!$C$24,Transport!$R$5:$AF$26,13,),HLOOKUP(Oplysninger!$C$24,Transport!$R$5:$AF$26,13,)*2),0),0) -> 4 | P16: Supplerende vand til planteværn****
B17: Hjemkørsel afgrøde (11) | D17: =IF(C17="",ROUNDUP(HLOOKUP(Oplysninger!$C$19,Transport!$R$5:$AF$30,25,)*Oplysninger!$D$9*Oplysninger!$D19/$I41,0),0) -> 10 | F17: =IF(E17="",ROUNDUP(HLOOKUP(Oplysninger!$C$20,Transport!$R$5:$AF$30,25,)*Oplysninger!$D$9*Oplysninger!$D20/$I41,0),0) -> 26 | H17: =IF(G17="",ROUNDUP(HLOOKUP(Oplysninger!$C$21,Transport!$R$5:$AF$30,25,)*Oplysninger!$D$9*Oplysninger!$D21/$I41,0),0) -> 3 | J17: =IF(I17="",ROUNDUP(HLOOKUP(Oplysninger!$C$22,Transport!$R$5:$AF$30,25,)*Oplysninger!$D$9*Oplysninger!$D22/$I41,0),0) -> 29 | L17: =IF(K17="",ROUNDUP(HLOOKUP(Oplysninger!$C$23,Transport!$R$5:$AF$30,25,)*Oplysninger!$D$9*Oplysninger!$D23/$I41,0),0) -> 0 | N17: =IF(M17="",ROUNDUP(HLOOKUP(Oplysninger!$C$24,Transport!$R$5:$AF$30,25,)*Oplysninger!$D$9*Oplysninger!$D24/$I41,0),0) -> 0 | P17: Høstmaskine | R17: 1 | S17: =S16+1 -> 1 | T17: 1 | U17: 1 | V17: 1 | W17: 1 | X17: 1 | Y17: 1 | Z17: 1 | AA17: 1 | AB17: 1 | AC17: 1 | AD17: 1 | AE17: 4
B18: Halmpresser (12) | D18: =IF(C18="",ROUNDUP(HLOOKUP(Oplysninger!$C$19,Transport!$R$5:$AF$26,15,)*Oplysninger!$D$9*Oplysninger!$D$19/$I42,0),0) -> 1 | F18: =IF(E18="",ROUNDUP(HLOOKUP(Oplysninger!$C$20,Transport!$R$5:$AF$26,15,)*Oplysninger!$D$9*Oplysninger!$D$20/$I42,0),0) -> 1 | H18: =IF(G18="",ROUNDUP(HLOOKUP(Oplysninger!$C$21,Transport!$R$5:$AF$26,15,)*Oplysninger!$D$9*Oplysninger!$D$21/$I42,0),0) -> 0 | J18: =IF(I18="",ROUNDUP(HLOOKUP(Oplysninger!$C$22,Transport!$R$5:$AF$26,15,)*Oplysninger!$D$9*Oplysninger!$D$22/$I42,0),0) -> 0 | L18: =IF(K18="",ROUNDUP(HLOOKUP(Oplysninger!$C$23,Transport!$R$5:$AF$26,15,)*Oplysninger!$D$9*Oplysninger!$D$23/$I42,0),0) -> 0 | N18: =IF(M18="",ROUNDUP(HLOOKUP(Oplysninger!$C$24,Transport!$R$5:$AF$26,15,)*Oplysninger!$D$9*Oplysninger!$D$24/$I42,0),0) -> 0 | P18: Hjemkørsel afgrøde*****
B19: Hjemkørsel halm (13) | D19: =IF(C19="",ROUNDUP(HLOOKUP(Oplysninger!$C$19,Transport!$R$5:$AF$30,26,)*Oplysninger!$D$9*Oplysninger!$D19/$I43,0),0) -> 7 | F19: =IF(E19="",ROUNDUP(HLOOKUP(Oplysninger!$C$20,Transport!$R$5:$AF$30,26,)*Oplysninger!$D$9*Oplysninger!$D20/$I43,0),0) -> 17 | H19: =IF(G19="",ROUNDUP(HLOOKUP(Oplysninger!$C$21,Transport!$R$5:$AF$30,26,)*Oplysninger!$D$9*Oplysninger!$D21/$I43,0),0) -> 0 | J19: =IF(I19="",ROUNDUP(HLOOKUP(Oplysninger!$C$22,Transport!$R$5:$AF$30,26,)*Oplysninger!$D$9*Oplysninger!$D22/$I43,0),0) -> 0 | L19: =IF(K19="",ROUNDUP(HLOOKUP(Oplysninger!$C$23,Transport!$R$5:$AF$30,26,)*Oplysninger!$D$9*Oplysninger!$D23/$I43,0),0) -> 0 | N19: =IF(M19="",ROUNDUP(HLOOKUP(Oplysninger!$C$24,Transport!$R$5:$AF$30,26,)*Oplysninger!$D$9*Oplysninger!$D24/$I43,0),0) -> 0 | P19: Halmpresser | R19: 1 | S19: =S18+1 -> 1 | T19: =T18+1 -> 1 | U19: =U18+1 -> 1 | W19: =W18+1 -> 1 | AD19: =AD18+1 -> 1
B20: Stubharve med såmaskine efterafgrøde | D20: =IF(C20="",HLOOKUP(Oplysninger!$C$19,Transport!$R$5:$AF$26,17,),0) -> 0 | F20: =IF(E20="",HLOOKUP(Oplysninger!$C$20,Transport!$R$5:$AF$26,17,),0) -> 0 | H20: =IF(G20="",HLOOKUP(Oplysninger!$C$21,Transport!$R$5:$AF$26,17,),0) -> 0 | J20: =IF(I20="",HLOOKUP(Oplysninger!$C$22,Transport!$R$5:$AF$26,17,),0) -> 0 | L20: =IF(K20="",HLOOKUP(Oplysninger!$C$23,Transport!$R$5:$AF$26,17,),0) -> 0 | N20: =IF(M20="",HLOOKUP(Oplysninger!$C$24,Transport!$R$5:$AF$26,17,),0) -> 0 | P20: Hjemkørsel halm******
B21: Såbedsharvning/efterharvning | D21: =IF(C21="",HLOOKUP(Oplysninger!$C$19,Transport!$R$5:$AF$26,18,),0) -> 0 | F21: =IF(E21="",HLOOKUP(Oplysninger!$C$20,Transport!$R$5:$AF$26,18,),0) -> 0 | H21: =IF(G21="",HLOOKUP(Oplysninger!$C$21,Transport!$R$5:$AF$26,18,),0) -> 0 | J21: =IF(I21="",HLOOKUP(Oplysninger!$C$22,Transport!$R$5:$AF$26,18,),0) -> 1 | L21: =IF(K21="",HLOOKUP(Oplysninger!$C$23,Transport!$R$5:$AF$26,18,),0) -> 2 | N21: =IF(M21="",HLOOKUP(Oplysninger!$C$24,Transport!$R$5:$AF$26,18,),0) -> 0 | P21: Stubharve med såmaskine efterafgrøde
B22: Skårlægning | D22: =IF(C22="",HLOOKUP(Oplysninger!$C$19,Transport!$R$5:$AF$26,19,),0) -> 0 | F22: =IF(E22="",HLOOKUP(Oplysninger!$C$20,Transport!$R$5:$AF$26,19,),0) -> 0 | H22: =IF(G22="",HLOOKUP(Oplysninger!$C$21,Transport!$R$5:$AF$26,19,),0) -> 0 | J22: =IF(I22="",HLOOKUP(Oplysninger!$C$22,Transport!$R$5:$AF$26,19,),0) -> 0 | L22: =IF(K22="",HLOOKUP(Oplysninger!$C$23,Transport!$R$5:$AF$26,19,),0) -> 0 | N22: =IF(M22="",HLOOKUP(Oplysninger!$C$24,Transport!$R$5:$AF$26,19,),0) -> 4 | P22: Såbedsharvning/efterharvning | X22: 1 | Y22: 2 | Z22: 1 | AA22: 1 | AB22: 1 | AC22: 3
B23: Sammenrivning | D23: =IF(C23="",HLOOKUP(Oplysninger!$C$19,Transport!$R$5:$AF$26,20,),0) -> 0 | F23: =IF(E23="",HLOOKUP(Oplysninger!$C$20,Transport!$R$5:$AF$26,20,),0) -> 0 | H23: =IF(G23="",HLOOKUP(Oplysninger!$C$21,Transport!$R$5:$AF$26,20,),0) -> 0 | J23: =IF(I23="",HLOOKUP(Oplysninger!$C$22,Transport!$R$5:$AF$26,20,),0) -> 0 | L23: =IF(K23="",HLOOKUP(Oplysninger!$C$23,Transport!$R$5:$AF$26,20,),0) -> 0 | N23: =IF(M23="",HLOOKUP(Oplysninger!$C$24,Transport!$R$5:$AF$26,20,),0) -> 4 | P23: Skårlægning | AE23: 4
B24: Radrensning/hypning | D24: =IF(C24="",HLOOKUP(Oplysninger!$C$19,Transport!$R$5:$AF$26,21,),0) -> 0 | F24: =IF(E24="",HLOOKUP(Oplysninger!$C$20,Transport!$R$5:$AF$26,21,),0) -> 0 | H24: =IF(G24="",HLOOKUP(Oplysninger!$C$21,Transport!$R$5:$AF$26,21,),0) -> 0 | J24: =IF(I24="",HLOOKUP(Oplysninger!$C$22,Transport!$R$5:$AF$26,21,),0) -> 0 | L24: =IF(K24="",HLOOKUP(Oplysninger!$C$23,Transport!$R$5:$AF$26,21,),0) -> 1 | N24: =IF(M24="",HLOOKUP(Oplysninger!$C$24,Transport!$R$5:$AF$26,21,),0) -> 0 | P24: Sammenrivning | AE24: 4
B25: Stenstrenglægning | D25: =IF(C25="",HLOOKUP(Oplysninger!$C$19,Transport!$R$5:$AF$26,22,),0) -> 0 | F25: =IF(E25="",HLOOKUP(Oplysninger!$C$20,Transport!$R$5:$AF$26,22,),0) -> 0 | H25: =IF(G25="",HLOOKUP(Oplysninger!$C$21,Transport!$R$5:$AF$26,22,),0) -> 0 | J25: =IF(I25="",HLOOKUP(Oplysninger!$C$22,Transport!$R$5:$AF$26,22,),0) -> 0 | L25: =IF(K25="",HLOOKUP(Oplysninger!$C$23,Transport!$R$5:$AF$26,22,),0) -> 0 | N25: =IF(M25="",HLOOKUP(Oplysninger!$C$24,Transport!$R$5:$AF$26,22,),0) -> 0 | P25: Radrensning/hypning | Y25: 1 | AA25: 2 | AB25: 1 | AC25: 1
B26: I alt antal kørsler uden returkørsel | D26: =SUM(C6:D25) -> 60.1 | F26: =SUM(E6:F25) -> 125.2 | H26: =SUM(G6:H25) -> 32.7 | J26: =SUM(I6:J25) -> 54.5 | L26: =SUM(K6:L25) -> 10 | N26: =SUM(M6:N25) -> 14 | P26: Stenstrenglægning | Z26: 1 | AA26: 1 | AB26: 1
B27: I alt antal kørsler pr. ha (gns) | D27: =IFERROR(D26/(Oplysninger!$D$9*Oplysninger!$D$19),0) -> 2.478350515 | F27: =IFERROR(F26/(Oplysninger!$D$9*Oplysninger!$D$20),0) -> 2.581443299 | H27: =IFERROR(H26/(Oplysninger!$D$9*Oplysninger!$D$21),0) -> 3.371134021 | J27: =IFERROR(J26/(Oplysninger!$D$9*Oplysninger!$D$22),0) -> 3.745704467 | L27: =IFERROR(L26/(Oplysninger!$D$9*Oplysninger!$D$23),0) -> 0 | N27: =IFERROR(N26/(Oplysninger!$D$9*Oplysninger!$D$24),0) -> 0
B28: Omkostning pr. ha
P29: Afgrøde (kg. pr. ha) | R29: =IF(Transport!$D13="Nej",VLOOKUP(Oplysninger!$D$10,Transport!$P$44:$AF$46,3,FALSE),VLOOKUP(Oplysninger!$D$10,Transport!$P$50:$AF$52,3,FALSE)) -> 6000 | S29: =IF(Transport!D13="Nej",VLOOKUP(Oplysninger!$D$10,Transport!$P$44:$AF$46,4,FALSE),VLOOKUP(Oplysninger!$D$10,Transport!$P$50:$AF$52,4,FALSE)) -> 6600 | T29: =IF(Transport!D13="Nej",VLOOKUP(Oplysninger!$D$10,Transport!$P$44:$AF$46,5,FALSE),VLOOKUP(Oplysninger!$D$10,Transport!$P$50:$AF$52,5,FALSE)) -> 5900 | U29: =IF(Transport!D13="Nej",VLOOKUP(Oplysninger!$D$10,Transport!$P$44:$AF$46,6,FALSE),VLOOKUP(Oplysninger!$D$10,Transport!$P$50:$AF$52,6,FALSE)) -> 8400 | V29: =IF(Transport!D13="Nej",VLOOKUP(Oplysninger!$D$10,Transport!$P$44:$AF$46,7,FALSE),VLOOKUP(Oplysninger!$D$10,Transport!$P$50:$AF$52,7,FALSE)) -> 4000 | W29: =IF(Transport!D13="Nej",VLOOKUP(Oplysninger!$D$10,Transport!$P$44:$AF$46,8,FALSE),VLOOKUP(Oplysninger!$D$10,Transport!$P$50:$AF$52,8,FALSE)) -> 6600 | X29: =IF(Transport!D13="Nej",VLOOKUP(Oplysninger!$D$10,Transport!$P$44:$AF$46,9,FALSE),VLOOKUP(Oplysninger!$D$10,Transport!$P$50:$AF$52,9,FALSE))/X33*X34/22*16 -> 30823.0303 | Y29: =IF(Transport!D13="Nej",VLOOKUP(Oplysninger!$D$10,Transport!$P$44:$AF$46,11,FALSE),VLOOKUP(Oplysninger!$D$10,Transport!$P$50:$AF$52,11,FALSE))*100 -> 0 | Z29: =IF(Transport!D13="Nej",VLOOKUP(Oplysninger!$D$10,Transport!$P$44:$AF$46,12,FALSE),VLOOKUP(Oplysninger!$D$10,Transport!$P$50:$AF$52,12,FALSE))*100 -> 59500 | AA29: =IF(Transport!D13="Nej",VLOOKUP(Oplysninger!$D$10,Transport!$P$44:$AF$46,13,FALSE),VLOOKUP(Oplysninger!$D$10,Transport!$P$50:$AF$52,13,FALSE))*100 -> 32500 | AB29: =IF(Transport!D13="Nej",VLOOKUP(Oplysninger!$D$10,Transport!$P$44:$AF$46,14,FALSE),VLOOKUP(Oplysninger!$D$10,Transport!$P$50:$AF$52,14,FALSE))*100 -> 37900 | AC29: =IF(Transport!D13="Nej",VLOOKUP(Oplysninger!$D$10,Transport!$P$44:$AF$46,15,FALSE),VLOOKUP(Oplysninger!$D$10,Transport!$P$50:$AF$52,15,FALSE))*100 -> 0 | AD29: =IF(Transport!D13="Nej",VLOOKUP(Oplysninger!$D$10,Transport!$P$44:$AF$46,16,FALSE),VLOOKUP(Oplysninger!$D$10,Transport!$P$50:$AF$52,16,FALSE)) -> 1500 | AE29: =IF(Transport!D13="Nej",VLOOKUP(Oplysninger!$D$10,Transport!$P$44:$AF$46,10,FALSE),VLOOKUP(Oplysninger!$D$10,Transport!$P$50:$AF$52,10,FALSE))/AE33*AE34/22*16 -> 24135.06494
I30: Valg af kapacitet | P30: Halm (kg. pr. ha) | R30: =IF(Transport!$D13="Nej",VLOOKUP(Oplysninger!$D$10,Transport!$P$47:$AF$49,3,FALSE),VLOOKUP(Oplysninger!$D$10,Transport!$P$53:$AF$55,3,FALSE)) -> 3100 | S30: =IF(Transport!$D13="Nej",VLOOKUP(Oplysninger!$D$10,Transport!$P$47:$AF$49,4,FALSE),VLOOKUP(Oplysninger!$D$10,Transport!$P$53:$AF$55,4,FALSE)) -> 4300 | T30: =IF(Transport!$D13="Nej",VLOOKUP(Oplysninger!$D$10,Transport!$P$47:$AF$49,5,FALSE),VLOOKUP(Oplysninger!$D$10,Transport!$P$53:$AF$55,5,FALSE)) -> 3200 | U30: =IF(Transport!$D13="Nej",VLOOKUP(Oplysninger!$D$10,Transport!$P$47:$AF$49,6,FALSE),VLOOKUP(Oplysninger!$D$10,Transport!$P$53:$AF$55,6,FALSE)) -> 4000 | V30: =IF(Transport!$D13="Nej",VLOOKUP(Oplysninger!$D$10,Transport!$P$47:$AF$49,7,FALSE),VLOOKUP(Oplysninger!$D$10,Transport!$P$53:$AF$55,7,FALSE)) -> 0 | W30: =IF(Transport!$D13="Nej",VLOOKUP(Oplysninger!$D$10,Transport!$P$47:$AF$49,8,FALSE),VLOOKUP(Oplysninger!$D$10,Transport!$P$53:$AF$55,8,FALSE)) -> 3000 | X30: =IF(Transport!$D13="Nej",VLOOKUP(Oplysninger!$D$10,Transport!$P$47:$AF$49,9,FALSE),VLOOKUP(Oplysninger!$D$10,Transport!$P$53:$AF$55,9,FALSE)) -> 0 | Y30: =IF(Transport!$D13="Nej",VLOOKUP(Oplysninger!$D$10,Transport!$P$47:$AF$49,11,FALSE),VLOOKUP(Oplysninger!$D$10,Transport!$P$53:$AF$55,11,FALSE))*100 -> 0 | Z30: =IF(Transport!$D13="Nej",VLOOKUP(Oplysninger!$D$10,Transport!$P$47:$AF$49,12,FALSE),VLOOKUP(Oplysninger!$D$10,Transport!$P$53:$AF$55,12,FALSE))*100 -> 0 | AA30: =IF(Transport!$D13="Nej",VLOOKUP(Oplysninger!$D$10,Transport!$P$47:$AF$49,13,FALSE),VLOOKUP(Oplysninger!$D$10,Transport!$P$53:$AF$55,13,FALSE))*100 -> 0 | AB30: =IF(Transport!$D13="Nej",VLOOKUP(Oplysninger!$D$10,Transport!$P$47:$AF$49,14,FALSE),VLOOKUP(Oplysninger!$D$10,Transport!$P$53:$AF$55,14,FALSE))*100 -> 0 | AC30: =IF(Transport!$D13="Nej",VLOOKUP(Oplysninger!$D$10,Transport!$P$47:$AF$49,15,FALSE),VLOOKUP(Oplysninger!$D$10,Transport!$P$53:$AF$55,15,FALSE))*100 -> 0 | AD30: =IF(Transport!$D13="Nej",VLOOKUP(Oplysninger!$D$10,Transport!$P$47:$AF$49,16,FALSE),VLOOKUP(Oplysninger!$D$10,Transport!$P$53:$AF$55,16,FALSE)) -> 5300 | AE30: =IF(Transport!$D13="Nej",VLOOKUP(Oplysninger!$D$10,Transport!$P$47:$AF$49,10,FALSE),VLOOKUP(Oplysninger!$D$10,Transport!$P$53:$AF$55,10,FALSE)) -> 0
B31: ="1. Pløjning pr. dag estimeret til maksimalt "&I31&" ha" -> 1. Pløjning pr. dag estimeret til maksimalt 20 ha | I31: 20 | M31: Gå tilbage til fane med beregning | P31: Gylle "ja" eller "nej" | R31: Ja | S31: Ja | T31: Ja | U31: Ja | V31: Ja | W31: Ja | X31: Ja | Y31: Nej | Z31: Nej | AA31: Nej | AB31: Nej | AC31: Nej | AD31: Ja | AE31: Ja
B32: 2. Tromling pr. dag estimeret til maksimalt 100 ha | I32: 100
B33: ="3. Kombihavning og såning pr. dag estimeret til maksimalt "&I33&" ha" -> 3. Kombihavning og såning pr. dag estimeret til maksimalt 100 ha | I33: 100 | U33: Majs helsæd (FEN) | X33: 12000 | AE33: 9800
B34: ="4. 200 kg. udsæd pr. ha transporteret på "&I34& " kg vogn" -> 4. 200 kg. udsæd pr. ha transporteret på 16000 kg vogn | I34: 16000 | U34: Majs helsæd (kg. grønmasse) | X34: 43100 | AE34: 32200
B35: 5. Gødningsspredning pr. dag estimeret til maksimalt 250 ha | U35: Kilde. Grovfoderseminar 2016 (HSL) | AE35: Kilde. Grovfoderseminar 2016 (HSL)
B36: ="6. 250 kg gødning pr. ha transporteret på en "&I36&" kg vogn" -> 6. 250 kg gødning pr. ha transporteret på en 16000 kg vogn | I36: 16000
B37: ="7. 30 ton gylle pr. ha udlagt fra en "&I37&" ton vogn" -> 7. 30 ton gylle pr. ha udlagt fra en 25 ton vogn | I37: 25
B38: ="8. Sprøjtning pr. dag estimeret til maksimalt "&I38&" ha" -> 8. Sprøjtning pr. dag estimeret til maksimalt 150 ha | I38: 150
B39: ="9. 150 liter supplerende vand til planteværn transporteret i en "&I39&" liter vogn" -> 9. 150 liter supplerende vand til planteværn transporteret i en 4000 liter vogn | I39: 4000
B40: ="10. Høst pr. dag estimeret til maksimalt "&I40&" ha" -> 10. Høst pr. dag estimeret til maksimalt 100 ha | I40: 100
B41: ="11. Afgrøde kørt hjem i en "&I41& " kg vogn (korn og andre afgrøder), eller en 22000 kg vogn (grovfoder)" -> 11. Afgrøde kørt hjem i en 16000 kg vogn (korn og andre afgrøder), eller en 22000 kg vogn (grovfoder) | I41: 16000
B42: ="12. Halmpresning pr. dag estimeret til maksimalt "&I42&" ha" -> 12. Halmpresning pr. dag estimeret til maksimalt 100 ha | I42: 100
B43: ="13. Halm kørt hjem på en "&I43&" kg vogn" -> 13. Halm kørt hjem på en 12000 kg vogn | I43: 12000 | P43: Tabel med afgrødeudbytter og halmudbytter (opdateres automatisk fra datagrundlaget)
P44: lerjord | Q44: afgrøde | R44: =Datagrundlag!$D70*100 -> 6700 | S44: =Datagrundlag!$D71*100 -> 7900 | T44: =Datagrundlag!$D72*100 -> 6000 | U44: =Datagrundlag!$D73*100 -> 10000 | V44: =Datagrundlag!$D74*100 -> 4500 | W44: =Datagrundlag!$D75*100 -> 8200 | X44: =Datagrundlag!$D76 -> 11700 | Y44: =Datagrundlag!$D77 -> 8850 | Z44: =Datagrundlag!$D78*100 -> 0 | AA44: =Datagrundlag!$D79*100 -> 0 | AB44: =Datagrundlag!$D80*100 -> 0 | AC44: =Datagrundlag!$D81*100 -> 0 | AD44: =Datagrundlag!$D82*100 -> 0 | AE44: =Datagrundlag!$D83*100 -> 0
P45: sandjord uden vanding | Q45: afgrøde | R45: =Datagrundlag!$D84*100 -> 4700 | S45: =Datagrundlag!$D85*100 -> 5300 | T45: =Datagrundlag!$D86*100 -> 4600 | U45: =Datagrundlag!$D87*100 -> 6300 | V45: =Datagrundlag!$D88*100 -> 3200 | W45: =Datagrundlag!$D89*100 -> 5800 | X45: =Datagrundlag!$D90 -> 10750 | Y45: =Datagrundlag!$D91 -> 8300 | Z45: =Datagrundlag!$D92*100 -> 0 | AA45: =Datagrundlag!$D93*100 -> 0 | AB45: =Datagrundlag!$D94*100 -> 0 | AC45: =Datagrundlag!$D95*100 -> 0 | AD45: =Datagrundlag!$D96*100 -> 0 | AE45: =Datagrundlag!$D97*100 -> 0
P46: sandjord med vanding | Q46: afgrøde | R46: =Datagrundlag!$D98*100 -> 6000 | S46: =Datagrundlag!$D99*100 -> 6600 | T46: =Datagrundlag!$D100*100 -> 5900 | U46: =Datagrundlag!$D101*100 -> 8400 | V46: =Datagrundlag!$D102*100 -> 4000 | W46: =Datagrundlag!$D103*100 -> 6600 | X46: =Datagrundlag!$D104 -> 11800 | Y46: =Datagrundlag!$D105 -> 10100 | Z46: =Datagrundlag!$D106*100 -> 0 | AA46: =Datagrundlag!$D107*100 -> 0 | AB46: =Datagrundlag!$D108*100 -> 0 | AC46: =Datagrundlag!$D109*100 -> 0 | AD46: =Datagrundlag!$D110*100 -> 0 | AE46: =Datagrundlag!$D111*100 -> 0
P47: lerjord | Q47: halm | R47: =Datagrundlag!$E70 -> 3500 | S47: =Datagrundlag!$E71 -> 5400 | T47: =Datagrundlag!$E72 -> 3300 | U47: =Datagrundlag!$E73 -> 4800 | V47: =Datagrundlag!$E74 -> 0 | W47: =Datagrundlag!$E75 -> 3900 | X47: =Datagrundlag!$E76 -> 0 | Y47: =Datagrundlag!$E77 -> 0 | Z47: =Datagrundlag!$E78 -> 0 | AA47: =Datagrundlag!$E79 -> 0 | AB47: =Datagrundlag!$E80 -> 0 | AC47: =Datagrundlag!$E81 -> 0 | AD47: =Datagrundlag!$E82 -> 0 | AE47: =Datagrundlag!$E83 -> 0
P48: sandjord uden vanding | Q48: halm | R48: =Datagrundlag!$E84 -> 2400 | S48: =Datagrundlag!$E85 -> 3400 | T48: =Datagrundlag!$E86 -> 2500 | U48: =Datagrundlag!$E87 -> 2900 | V48: =Datagrundlag!$E88 -> 0 | W48: =Datagrundlag!$E89 -> 2600 | X48: =Datagrundlag!$E90 -> 0 | Y48: =Datagrundlag!$E91 -> 0 | Z48: =Datagrundlag!$E92 -> 0 | AA48: =Datagrundlag!$E93 -> 0 | AB48: =Datagrundlag!$E94 -> 0 | AC48: =Datagrundlag!$E95 -> 0 | AD48: =Datagrundlag!$E96 -> 0 | AE48: =Datagrundlag!$E97 -> 0
P49: sandjord med vanding | Q49: halm | R49: =Datagrundlag!$E98 -> 3100 | S49: =Datagrundlag!$E99 -> 4300 | T49: =Datagrundlag!$E100 -> 3200 | U49: =Datagrundlag!$E101 -> 4000 | V49: =Datagrundlag!$E102 -> 0 | W49: =Datagrundlag!$E103 -> 3000 | X49: =Datagrundlag!$E104 -> 0 | Y49: =Datagrundlag!$E105 -> 0 | Z49: =Datagrundlag!$E106 -> 0 | AA49: =Datagrundlag!$E107 -> 0 | AB49: =Datagrundlag!$E108 -> 0 | AC49: =Datagrundlag!$E109 -> 0 | AD49: =Datagrundlag!$E110 -> 0 | AE49: =Datagrundlag!$E111 -> 0
P50: lerjord | Q50: afgrøde m gylle | R50: =Datagrundlag!$D112*100 -> 6700 | S50: =Datagrundlag!$D113*100 -> 7900 | T50: =Datagrundlag!$D114*100 -> 6000 | U50: =Datagrundlag!$D115*100 -> 10000 | V50: =Datagrundlag!$D116*100 -> 4500 | W50: =Datagrundlag!$D117*100 -> 8200 | X50: =Datagrundlag!$D118 -> 11700 | Y50: =Datagrundlag!$D119 -> 8850 | Z50: =Datagrundlag!$D120 -> 676 | AA50: =Datagrundlag!$D121 -> 595 | AB50: =Datagrundlag!$D122 -> 325 | AC50: =Datagrundlag!$D123 -> 379 | AD50: =Datagrundlag!$D124 -> 0 | AE50: =Datagrundlag!$D125*100 -> 1600
P51: sandjord uden vanding | Q51: afgrøde m gylle | R51: =Datagrundlag!$D126*100 -> 4700 | S51: =Datagrundlag!$D127*100 -> 5300 | T51: =Datagrundlag!$D128*100 -> 4600 | U51: =Datagrundlag!$D129*100 -> 6300 | V51: =Datagrundlag!$D130*100 -> 3200 | W51: =Datagrundlag!$D131*100 -> 5800 | X51: =Datagrundlag!$D132 -> 10750 | Y51: =Datagrundlag!$D133 -> 8300 | Z51: =Datagrundlag!$D134 -> 0 | AA51: =Datagrundlag!$D135 -> 0 | AB51: =Datagrundlag!$D136 -> 0 | AC51: =Datagrundlag!$D137 -> 0 | AD51: =Datagrundlag!$D138 -> 0 | AE51: =Datagrundlag!$D139*100 -> 1100
P52: sandjord med vanding | Q52: afgrøde m gylle | R52: =Datagrundlag!$D140*100 -> 6000 | S52: =Datagrundlag!$D141*100 -> 6600 | T52: =Datagrundlag!$D142*100 -> 5900 | U52: =Datagrundlag!$D143*100 -> 8400 | V52: =Datagrundlag!$D144*100 -> 4000 | W52: =Datagrundlag!$D145*100 -> 6600 | X52: =Datagrundlag!$D146 -> 11800 | Y52: =Datagrundlag!$D147 -> 10100 | Z52: =Datagrundlag!$D148 -> 0 | AA52: =Datagrundlag!$D149 -> 595 | AB52: =Datagrundlag!$D150 -> 325 | AC52: =Datagrundlag!$D151 -> 379 | AD52: =Datagrundlag!$D152 -> 0 | AE52: =Datagrundlag!$D153*100 -> 1500
P53: lerjord | Q53: halm m gylle | R53: =Datagrundlag!$E112 -> 3500 | S53: =Datagrundlag!$E113 -> 5400 | T53: =Datagrundlag!$E114 -> 3300 | U53: =Datagrundlag!$E115 -> 4800 | V53: =Datagrundlag!$E116 -> 0 | W53: =Datagrundlag!$E117 -> 3900 | X53: =Datagrundlag!$E118 -> 0 | Y53: =Datagrundlag!$E119 -> 0 | Z53: =Datagrundlag!$E120 -> 0 | AA53: =Datagrundlag!$E121 -> 0 | AB53: =Datagrundlag!$E122 -> 0 | AC53: =Datagrundlag!$E123 -> 0 | AD53: =Datagrundlag!$E124 -> 0 | AE53: =Datagrundlag!$E125 -> 5300
P54: sandjord uden vanding | Q54: halm m gylle | R54: =Datagrundlag!$E126 -> 2400 | S54: =Datagrundlag!$E127 -> 3400 | T54: =Datagrundlag!$E128 -> 2500 | U54: =Datagrundlag!$E129 -> 2900 | V54: =Datagrundlag!$E130 -> 0 | W54: =Datagrundlag!$E131 -> 2600 | X54: =Datagrundlag!$E132 -> 0 | Y54: =Datagrundlag!$E133 -> 0 | Z54: =Datagrundlag!$E134 -> 0 | AA54: =Datagrundlag!$E135 -> 0 | AB54: =Datagrundlag!$E136 -> 0 | AC54: =Datagrundlag!$E137 -> 0 | AD54: =Datagrundlag!$E138 -> 0 | AE54: =Datagrundlag!$E139 -> 3800
P55: sandjord med vanding | Q55: halm m gylle | R55: =Datagrundlag!$E140 -> 3100 | S55: =Datagrundlag!$E141 -> 4300 | T55: =Datagrundlag!$E142 -> 3200 | U55: =Datagrundlag!$E143 -> 4000 | V55: =Datagrundlag!$E144 -> 0 | W55: =Datagrundlag!$E145 -> 3000 | X55: =Datagrundlag!$E146 -> 0 | Y55: =Datagrundlag!$E147 -> 0 | Z55: =Datagrundlag!$E148 -> 0 | AA55: =Datagrundlag!$E149 -> 0 | AB55: =Datagrundlag!$E150 -> 0 | AC55: =Datagrundlag!$E151 -> 0 | AD55: =Datagrundlag!$E152 -> 0 | AE55: =Datagrundlag!$E153 -> 5300

Sheet Datagrundlag
C1: DATAGRUNDLAG (budgetkalkuler okt. 2020 for 2021)
C2: Opdateret 21.10.2020 ovl
E3: Valgfelt (ja/nej)
C4: Jordbund | F4: Ja
F5: Nej
C6: lerjord
C7: sandjord uden vanding | E7: Opdateres årligt efter budgetkalkulerne i FarmtalOnline
C8: sandjord med vanding | E8: Priser | F8: Kr. pr. hkg.
E9: Byg | F9: 109
C10: Faste specifikationer (opdateres ikke) | E10: Hvede | F10: 115
C11: Salgspris arbejde | E11: Havre | F11: 98
E12: Raps | F12: 280
C13: 0 | E13: Rug | F13: 100
C14: 50 | E14: Slætgræs 4 slæt
C15: 100 | E15: Majs til helsæd
C16: 150 | E16: Fabriksroer | F16: 21
C17: 200 | E17: Stivelseskartofler | F17: 64
C18: 250 | E18: Læggekartofler | F18: 185
C19: 300 | E19: Spisekartofler | F19: 118
C20: 350 | E20: Proceskartofler | F20: 64
C21: 400 | E21: Alm. rajgræs | F21: 825
E22: Ingen eller andet
C23: Faste specifikationer (opdateres ikke)
C24: Afgrøder | E24: Salgsafgrøder | F24: Pct.
E25: Drift ekskl. maskinstation | F25: 0.315
C26: Vårbyg | E26: Renter og afskrivninger | F26: 0.347
C27: Vinterrug | E27: Løn | F27: 0.338
C28: Havre | E28: Grovfoder | F28: Pct.
C29: Vinterhvede | E29: Drift ekskl. maskinstation | F29: 0.331
C30: Vinterraps | E30: Renter og afskrivninger | F30: 0.288
C31: Vinterbyg | E31: Løn | F31: 0.381
C32: Majs til helsæd | E32: Afrundet gennemsnit | F32: Pct.
C33: Slætgræs 4 slæt | E33: Drift ekskl. maskinstation | F33: =ROUND((F25+F29)/2,2) -> 0.32
C34: Fabriksroer | E34: Renter og afskrivninger | F34: =ROUND((F26+F30)/2,2) -> 0.32
C35: Stivelseskartofler | E35: Løn | F35: 0.36
C36: Læggekartofler | F36: =SUM(F33:F35) -> 1
C37: Spisekartofler
C38: Proceskartofler
C39: Alm. rajgræs
C40: Ingen eller andet
C42: Faste specifikationer (opdateres ikke)
C43: Driftsform | E43: Dummy1
C45: Husdyrproduktion
C46: Planteavl
C47: Alle
C49: Faste specifikationer (opdateres ikke)
C50: Jordbonitet | E50: Dummy2
C52: JB1&3 | D52: 1
C53: JB2&4 | D53: 2
C54: JB5&6 | D54: 3
C55: JB7&8 | D55: 4
C56: Alle | D56: Alle
C58: Faste specifikationer (opdateres ikke)
C59: Landsdel
C61: Lolland-Falster | D61: Lolland-Falster
C62: Nordjylland | D62: Nordjylland
C63: Sjælland Bornholm | D63: Sjælland Bornholm
C64: Vestjylland | D64: Vestjylland
C65: Østjylland-Fyn | D65: Østjylland-Fyn
C66: Alle | D66: Alle
C68: Opdateres årligt efter budgetkalkulerne i FarmtalOnline
C69: Afgrøde-og halmudbytter | D69: Afgrøder (hkg./FEN) | E69: Halm (kg.)
C70: =C26&" på"&" "&C$6&" med gylle" -> Vårbyg på lerjord med gylle | D70: 67 | E70: 3500
C71: Vinterrug på lerjord med gylle | D71: 79 | E71: 5400
C72: Havre på lerjord med gylle | D72: 60 | E72: 3300
C73: Vinterhvede på lerjord med gylle | D73: 100 | E73: 4800
C74: Vinterraps på lerjord med gylle | D74: 45 | E74: 0
C75: Vinterbyg på lerjord med gylle | D75: 82 | E75: 3900
C76: Majs til helsæd på lerjord med gylle | D76: 11700 | E76: 0
C77: Slætgræs 4 slæt på lerjord med gylle | D77: 8850 | E77: 0
C78: Fabriksroer på lerjord med gylle | E78: 0
C79: Stivelseskartofler på lerjord med gylle | E79: 0
C80: Læggekartofler på lerjord med gylle | E80: 0
C81: Spisekartofler på lerjord med gylle | E81: 0
C82: Proceskartofler på lerjord med gylle | E82: 0
C83: Alm. rajgræs på lerjord med gylle
C84: =C26&" på"&" "&C$7&" med gylle" -> Vårbyg på sandjord uden vanding med gylle | D84: 47 | E84: 2400
C85: Vinterrug på sandjord uden vanding med gylle | D85: 53 | E85: 3400
C86: Havre på sandjord uden vanding med gylle | D86: 46 | E86: 2500
C87: Vinterhvede på sandjord uden vanding med gylle | D87: 63 | E87: 2900
C88: Vinterraps på sandjord uden vanding med gylle | D88: 32 | E88: 0
C89: Vinterbyg på sandjord uden vanding med gylle | D89: 58 | E89: 2600
C90: Majs til helsæd på sandjord uden vanding med gylle | D90: 10750 | E90: 0
C91: Slætgræs 4 slæt på sandjord uden vanding med gylle | D91: 8300 | E91: 0
C92: Fabriksroer på sandjord uden vanding med gylle | E92: 0
C93: Stivelseskartofler på sandjord uden vanding med gylle | E93: 0
C94: Læggekartofler på sandjord uden vanding med gylle | E94: 0
C95: Spisekartofler på sandjord uden vanding med gylle | E95: 0
C96: Proceskartofler på sandjord uden vanding med gylle | E96: 0
C97: Alm. rajgræs på sandjord uden vanding med gylle
C98: =C26&" på"&" "&C$8&" med gylle" -> Vårbyg på sandjord med vanding med gylle | D98: 60 | E98: 3100
C99: Vinterrug på sandjord med vanding med gylle | D99: 66 | E99: 4300
C100: Havre på sandjord med vanding med gylle | D100: 59 | E100: 3200
C101: Vinterhvede på sandjord med vanding med gylle | D101: 84 | E101: 4000
C102: Vinterraps på sandjord med vanding med gylle | D102: 40 | E102: 0
C103: Vinterbyg på sandjord med vanding med gylle | D103: 66 | E103: 3000
C104: Majs til helsæd på sandjord med vanding med gylle | D104: 11800 | E104: 0
C105: Slætgræs 4 slæt på sandjord med vanding med gylle | D105: 10100 | E105: 0
C106: Fabriksroer på sandjord med vanding med gylle | D106: 0 | E106: 0
C107: Stivelseskartofler på sandjord med vanding med gylle | D107: 0 | E107: 0
C108: Læggekartofler på sandjord med vanding med gylle | D108: 0 | E108: 0
C109: Spisekartofler på sandjord med vanding med gylle | D109: 0 | E109: 0
C110: Proceskartofler på sandjord med vanding med gylle | D110: 0 | E110: 0
C111: Alm. rajgræs på sandjord med vanding med gylle | D111: 0 | E111: 0
C112: =C26&" på"&" "&C$6&" uden gylle" -> Vårbyg på lerjord uden gylle | D112: 67 | E112: 3500
C113: Vinterrug på lerjord uden gylle | D113: 79 | E113: 5400
C114: Havre på lerjord uden gylle | D114: 60 | E114: 3300
C115: Vinterhvede på lerjord uden gylle | D115: 100 | E115: 4800
C116: Vinterraps på lerjord uden gylle | D116: 45 | E116: 0
C117: Vinterbyg på lerjord uden gylle | D117: 82 | E117: 3900
C118: Majs til helsæd på lerjord uden gylle | D118: 11700 | E118: 0
C119: Slætgræs 4 slæt på lerjord uden gylle | D119: 8850 | E119: 0
C120: Fabriksroer på lerjord uden gylle | D120: 676 | E120: 0
C121: Stivelseskartofler på lerjord uden gylle | D121: 595 | E121: 0
C122: Læggekartofler på lerjord uden gylle | D122: 325 | E122: 0
C123: Spisekartofler på lerjord uden gylle | D123: 379 | E123: 0
C124: Proceskartofler på lerjord uden gylle | E124: 0
C125: Alm. rajgræs på lerjord uden gylle | D125: 16 | E125: 5300
C126: =C26&" på"&" "&C$7&" uden gylle" -> Vårbyg på sandjord uden vanding uden gylle | D126: 47 | E126: 2400
C127: Vinterrug på sandjord uden vanding uden gylle | D127: 53 | E127: 3400
C128: Havre på sandjord uden vanding uden gylle | D128: 46 | E128: 2500
C129: Vinterhvede på sandjord uden vanding uden gylle | D129: 63 | E129: 2900
C130: Vinterraps på sandjord uden vanding uden gylle | D130: 32 | E130: 0
C131: Vinterbyg på sandjord uden vanding uden gylle | D131: 58 | E131: 2600
C132: Majs til helsæd på sandjord uden vanding uden gylle | D132: 10750 | E132: 0
C133: Slætgræs 4 slæt på sandjord uden vanding uden gylle | D133: 8300 | E133: 0
C134: Fabriksroer på sandjord uden vanding uden gylle | E134: 0
C135: Stivelseskartofler på sandjord uden vanding uden gylle | E135: 0
C136: Læggekartofler på sandjord uden vanding uden gylle | E136: 0
C137: Spisekartofler på sandjord uden vanding uden gylle | E137: 0
C138: Proceskartofler på sandjord uden vanding uden gylle | E138: 0
C139: Alm. rajgræs på sandjord uden vanding uden gylle | D139: 11 | E139: 3800
C140: =C26&" på"&" "&C$8&" uden gylle" -> Vårbyg på sandjord med vanding uden gylle | D140: 60 | E140: 3100
C141: Vinterrug på sandjord med vanding uden gylle | D141: 66 | E141: 4300
C142: Havre på sandjord med vanding uden gylle | D142: 59 | E142: 3200
C143: Vinterhvede på sandjord med vanding uden gylle | D143: 84 | E143: 4000
C144: Vinterraps på sandjord med vanding uden gylle | D144: 40 | E144: 0
C145: Vinterbyg på sandjord med vanding uden gylle | D145: 66 | E145: 3000
C146: Majs til helsæd på sandjord med vanding uden gylle | D146: 11800 | E146: 0
C147: Slætgræs 4 slæt på sandjord med vanding uden gylle | D147: 10100 | E147: 0
C148: Fabriksroer på sandjord med vanding uden gylle | E148: 0
C149: Stivelseskartofler på sandjord med vanding uden gylle | D149: 595 | E149: 0
C150: Læggekartofler på sandjord med vanding uden gylle | D150: 325 | E150: 0
C151: Spisekartofler på sandjord med vanding uden gylle | D151: 379 | E151: 0
C152: Proceskartofler på sandjord med vanding uden gylle | E152: 0
C153: Alm. rajgræs på sandjord med vanding uden gylle | D153: 15 | E153: 5300
C154: Ingen eller andet på lerjord uden gylle | D154: 0 | E154: 0
C155: Ingen eller andet på sandjord uden vanding uden gylle | D155: 0 | E155: 0
C156: Ingen eller andet på sandjord med vanding uden gylle | D156: 0 | E156: 0
C157: Ingen eller andet på lerjord med gylle | D157: 0 | E157: 0
C158: Ingen eller andet på sandjord uden vanding med gylle | D158: 0 | E158: 0
C159: Ingen eller andet på sandjord med vanding med gylle | D159: 0 | E159: 0
D160: 0 | E160: 0
C162: Beregning af halmproduktion uden @Risk (opdateres ikke)
C163: Omkostninger | D163: Kg. halm pr. ha | E163: Kg. halm i alt
C164: =Beregninger!D5 -> Vårbyg på sandjord med vanding med gylle | D164: =IFERROR(IF(C164="",0,VLOOKUP(C164,$C$70:$E$160,3,FALSE)),0) -> 3100 | E164: =IFERROR(D164*Oplysninger!D$9*Oplysninger!D19,0) -> 75175
C165: =Beregninger!D6 -> Vinterhvede på sandjord med vanding med gylle | D165: =IFERROR(IF(C165="",0,VLOOKUP(C165,$C$70:$E$160,3,FALSE)),0) -> 4000 | E165: =IFERROR(D165*Oplysninger!D$9*Oplysninger!D20,0) -> 194000
C166: =Beregninger!D7 -> Vinterraps på sandjord med vanding med gylle | D166: 0 | E166: =IFERROR(D166*Oplysninger!D$9*Oplysninger!D21,0) -> 0
C167: =Beregninger!D8 -> Majs til helsæd på sandjord med vanding med gylle | D167: 0 | E167: =IFERROR(D167*Oplysninger!D$9*Oplysninger!D22,0) -> 0
C168: =Beregninger!D9 -> Fabriksroer på sandjord med vanding med gylle | D168: 0 | E168: =IFERROR(D168*Oplysninger!D$9*Oplysninger!D23,0) -> 0
C169: =Beregninger!D10 -> Slætgræs 4 slæt på sandjord med vanding med gylle | D169: 0 | E169: =IFERROR(D169*Oplysninger!D$9*Oplysninger!D24,0) -> 0
C170: I alt | E170: =SUM(E164:E169) -> 269175
C172: Opdateres årligt efter budgetkalkulerne i FarmtalOnline
C173: Omkostninger | D173: Stykomk. | E173: Maskinomk.
C174: =C26&" med gylle"&" på lerjord" -> Vårbyg med gylle på lerjord | D174: 757 | E174: 5765
C175: Vinterrug med gylle på lerjord | D175: 1339 | E175: 6498
C176: Havre med gylle på lerjord | D176: 753 | E176: 5198
C177: Vinterhvede med gylle på lerjord | D177: 1860 | E177: 6961
A178: JB 5-6 | C178: Vinterraps med gylle på lerjord | D178: 2663 | E178: 5844
C179: Vinterbyg med gylle på lerjord | D179: 1423 | E179: 6245
C180: Majs til helsæd med gylle på lerjord | D180: 2730 | E180: 5016
C181: Slætgræs 4 slæt med gylle på lerjord | D181: 1138 | E181: 7070
C182: Fabriksroer med gylle på lerjord | D182: 0 | E182: 0
C183: Stivelseskartofler med gylle på lerjord | D183: 0 | E183: 0
C184: Læggekartofler med gylle på lerjord | D184: 0 | E184: 0
C185: Spisekartofler med gylle på lerjord | D185: 0 | E185: 0
C186: Proceskartofler med gylle på lerjord | D186: 0 | E186: 0
C187: Alm. rajgræs med gylle på lerjord
C188: =C26&" med gylle"&" på sandjord uden vanding" -> Vårbyg med gylle på sandjord uden vanding | D188: 757 | E188: 4974
C189: Vinterrug med gylle på sandjord uden vanding | D189: 1257 | E189: 5437
C190: Havre med gylle på sandjord uden vanding | D190: 753 | E190: 4647
C191: Vinterhvede med gylle på sandjord uden vanding | D191: 1679 | E191: 5707
A192: JB 1-3 | C192: Vinterraps med gylle på sandjord uden vanding | D192: 2462 | E192: 5214
C193: Vinterbyg med gylle på sandjord uden vanding | D193: 1357 | E193: 5379
C194: Majs til helsæd med gylle på sandjord uden vanding | D194: 2697 | E194: 4815
C195: Slætgræs 4 slæt med gylle på sandjord uden vanding | D195: 1079 | E195: 6758
C196: Fabriksroer med gylle på sandjord uden vanding | D196: 0 | E196: 0
C197: Stivelseskartofler med gylle på sandjord uden vanding | D197: 0 | E197: 0
C198: Læggekartofler med gylle på sandjord uden vanding | D198: 0 | E198: 0
C199: Spisekartofler med gylle på sandjord uden vanding | D199: 0 | E199: 0
C200: Proceskartofler med gylle på sandjord uden vanding | D200: 0 | E200: 0
C201: Alm. rajgræs med gylle på sandjord uden vanding
C202: =C26&" med gylle"&" på sandjord med vanding" -> Vårbyg med gylle på sandjord med vanding | D202: 757 | E202: 7301
C203: Vinterrug med gylle på sandjord med vanding | D203: 1334 | E203: 8002
C204: Havre med gylle på sandjord med vanding | D204: 753 | E204: 6994
C205: Vinterhvede med gylle på sandjord med vanding | D205: 1827 | E205: 8469
C206: Vinterraps med gylle på sandjord med vanding | D206: 2584 | E206: 7556
A207: JB 1-4 m. vanding | C207: Vinterbyg med gylle på sandjord med vanding | D207: 1406 | E207: 7742
C208: Majs til helsæd med gylle på sandjord med vanding | D208: 2732 | E208: 6823
C209: Slætgræs 4 slæt med gylle på sandjord med vanding | D209: 1252 | E209: 9496
... 48 more rows

Sheet Fraktilgrupper (hidden)
A1: Landsdel | B1: type | C1: FTO_jb | D1: FTO_jbx | E1: x.Antal | F1: x.MQ00_20 | G1: x.MQ00_20x | H1: x.MQ20_40 | I1: x.MQ20_40x | J1: x.MQ40_60 | K1: x.MQ40_60x | L1: x.MQ60_80 | M1: x.MQ60_80x | N1: x.MQ80_100 | O1: x.MQ80_100x | P1: Dummy 1 | Q1: Dummy2
A2: Lolland-Falster | B2: Husdyrproduktion | C2: 2 | D2: =_xlfn.IFS(Tabel1[[#This Row],[FTO_jb]]="1","JB1&3",Tabel1[[#This Row],[FTO_jb]]="2","JB2&4",Tabel1[[#This Row],[FTO_jb]]="3","JB5&6",Tabel1[[#This Row],[FTO_jb]]="4","JB7&8",Tabel1[[#This Row],[FTO_jb]]="Alle",Tabel1[[#This Row],[FTO_jb]]) -> JB2&4 | E2: 2 | F2: NaN | G2: =IF(Tabel1[[#This Row],[x.MQ00_20]]="NaN","",VALUE(Tabel1[[#This Row],[x.MQ00_20]])) ->  | H2: NaN | I2: =IF(Tabel1[[#This Row],[x.MQ20_40]]="NaN","",VALUE(Tabel1[[#This Row],[x.MQ20_40]])) ->  | J2: NaN | K2: =IF(Tabel1[[#This Row],[x.MQ40_60]]="NaN","",VALUE(Tabel1[[#This Row],[x.MQ40_60]])) ->  | L2: NaN | M2: =IF(Tabel1[[#This Row],[x.MQ60_80]]="NaN","",VALUE(Tabel1[[#This Row],[x.MQ60_80]])) ->  | N2: NaN | O2: =IF(Tabel1[[#This Row],[x.MQ80_100]]="NaN","",VALUE(Tabel1[[#This Row],[x.MQ80_100]])) -> 
A3: Lolland-Falster | B3: Husdyrproduktion | C3: 3 | D3: =_xlfn.IFS(Tabel1[[#This Row],[FTO_jb]]="1","JB1&3",Tabel1[[#This Row],[FTO_jb]]="2","JB2&4",Tabel1[[#This Row],[FTO_jb]]="3","JB5&6",Tabel1[[#This Row],[FTO_jb]]="4","JB7&8",Tabel1[[#This Row],[FTO_jb]]="Alle",Tabel1[[#This Row],[FTO_jb]]) -> JB5&6 | E3: 23 | F3: NaN | G3: =IF(Tabel1[[#This Row],[x.MQ00_20]]="NaN","",VALUE(Tabel1[[#This Row],[x.MQ00_20]])) ->  | H3: NaN | I3: =IF(Tabel1[[#This Row],[x.MQ20_40]]="NaN","",VALUE(Tabel1[[#This Row],[x.MQ20_40]])) ->  | J3: NaN | K3: =IF(Tabel1[[#This Row],[x.MQ40_60]]="NaN","",VALUE(Tabel1[[#This Row],[x.MQ40_60]])) ->  | L3: NaN | M3: =IF(Tabel1[[#This Row],[x.MQ60_80]]="NaN","",VALUE(Tabel1[[#This Row],[x.MQ60_80]])) ->  | N3: NaN | O3: =IF(Tabel1[[#This Row],[x.MQ80_100]]="NaN","",VALUE(Tabel1[[#This Row],[x.MQ80_100]])) -> 
A4: Lolland-Falster | B4: Husdyrproduktion | C4: 4 | D4: =_xlfn.IFS(Tabel1[[#This Row],[FTO_jb]]="1","JB1&3",Tabel1[[#This Row],[FTO_jb]]="2","JB2&4",Tabel1[[#This Row],[FTO_jb]]="3","JB5&6",Tabel1[[#This Row],[FTO_jb]]="4","JB7&8",Tabel1[[#This Row],[FTO_jb]]="Alle",Tabel1[[#This Row],[FTO_jb]]) -> JB7&8 | E4: 12 | F4: NaN | G4: =IF(Tabel1[[#This Row],[x.MQ00_20]]="NaN","",VALUE(Tabel1[[#This Row],[x.MQ00_20]])) ->  | H4: NaN | I4: =IF(Tabel1[[#This Row],[x.MQ20_40]]="NaN","",VALUE(Tabel1[[#This Row],[x.MQ20_40]])) ->  | J4: NaN | K4: =IF(Tabel1[[#This Row],[x.MQ40_60]]="NaN","",VALUE(Tabel1[[#This Row],[x.MQ40_60]])) ->  | L4: NaN | M4: =IF(Tabel1[[#This Row],[x.MQ60_80]]="NaN","",VALUE(Tabel1[[#This Row],[x.MQ60_80]])) ->  | N4: NaN | O4: =IF(Tabel1[[#This Row],[x.MQ80_100]]="NaN","",VALUE(Tabel1[[#This Row],[x.MQ80_100]])) -> 
A5: Lolland-Falster | B5: Planteavl | C5: 1 | D5: =_xlfn.IFS(Tabel1[[#This Row],[FTO_jb]]="1","JB1&3",Tabel1[[#This Row],[FTO_jb]]="2","JB2&4",Tabel1[[#This Row],[FTO_jb]]="3","JB5&6",Tabel1[[#This Row],[FTO_jb]]="4","JB7&8",Tabel1[[#This Row],[FTO_jb]]="Alle",Tabel1[[#This Row],[FTO_jb]]) -> JB1&3 | E5: 1 | F5: NaN | G5: =IF(Tabel1[[#This Row],[x.MQ00_20]]="NaN","",VALUE(Tabel1[[#This Row],[x.MQ00_20]])) ->  | H5: NaN | I5: =IF(Tabel1[[#This Row],[x.MQ20_40]]="NaN","",VALUE(Tabel1[[#This Row],[x.MQ20_40]])) ->  | J5: NaN | K5: =IF(Tabel1[[#This Row],[x.MQ40_60]]="NaN","",VALUE(Tabel1[[#This Row],[x.MQ40_60]])) ->  | L5: NaN | M5: =IF(Tabel1[[#This Row],[x.MQ60_80]]="NaN","",VALUE(Tabel1[[#This Row],[x.MQ60_80]])) ->  | N5: NaN | O5: =IF(Tabel1[[#This Row],[x.MQ80_100]]="NaN","",VALUE(Tabel1[[#This Row],[x.MQ80_100]])) -> 
A6: Lolland-Falster | B6: Planteavl | C6: 2 | D6: =_xlfn.IFS(Tabel1[[#This Row],[FTO_jb]]="1","JB1&3",Tabel1[[#This Row],[FTO_jb]]="2","JB2&4",Tabel1[[#This Row],[FTO_jb]]="3","JB5&6",Tabel1[[#This Row],[FTO_jb]]="4","JB7&8",Tabel1[[#This Row],[FTO_jb]]="Alle",Tabel1[[#This Row],[FTO_jb]]) -> JB2&4 | E6: 6 | F6: NaN | G6: =IF(Tabel1[[#This Row],[x.MQ00_20]]="NaN","",VALUE(Tabel1[[#This Row],[x.MQ00_20]])) ->  | H6: NaN | I6: =IF(Tabel1[[#This Row],[x.MQ20_40]]="NaN","",VALUE(Tabel1[[#This Row],[x.MQ20_40]])) ->  | J6: NaN | K6: =IF(Tabel1[[#This Row],[x.MQ40_60]]="NaN","",VALUE(Tabel1[[#This Row],[x.MQ40_60]])) ->  | L6: NaN | M6: =IF(Tabel1[[#This Row],[x.MQ60_80]]="NaN","",VALUE(Tabel1[[#This Row],[x.MQ60_80]])) ->  | N6: NaN | O6: =IF(Tabel1[[#This Row],[x.MQ80_100]]="NaN","",VALUE(Tabel1[[#This Row],[x.MQ80_100]])) -> 
A7: Lolland-Falster | B7: Planteavl | C7: 3 | D7: =_xlfn.IFS(Tabel1[[#This Row],[FTO_jb]]="1","JB1&3",Tabel1[[#This Row],[FTO_jb]]="2","JB2&4",Tabel1[[#This Row],[FTO_jb]]="3","JB5&6",Tabel1[[#This Row],[FTO_jb]]="4","JB7&8",Tabel1[[#This Row],[FTO_jb]]="Alle",Tabel1[[#This Row],[FTO_jb]]) -> JB5&6 | E7: 39 | F7: NaN | G7: =IF(Tabel1[[#This Row],[x.MQ00_20]]="NaN","",VALUE(Tabel1[[#This Row],[x.MQ00_20]])) ->  | H7: NaN | I7: =IF(Tabel1[[#This Row],[x.MQ20_40]]="NaN","",VALUE(Tabel1[[#This Row],[x.MQ20_40]])) ->  | J7: NaN | K7: =IF(Tabel1[[#This Row],[x.MQ40_60]]="NaN","",VALUE(Tabel1[[#This Row],[x.MQ40_60]])) ->  | L7: NaN | M7: =IF(Tabel1[[#This Row],[x.MQ60_80]]="NaN","",VALUE(Tabel1[[#This Row],[x.MQ60_80]])) ->  | N7: NaN | O7: =IF(Tabel1[[#This Row],[x.MQ80_100]]="NaN","",VALUE(Tabel1[[#This Row],[x.MQ80_100]])) -> 
A8: Lolland-Falster | B8: Planteavl | C8: 4 | D8: =_xlfn.IFS(Tabel1[[#This Row],[FTO_jb]]="1","JB1&3",Tabel1[[#This Row],[FTO_jb]]="2","JB2&4",Tabel1[[#This Row],[FTO_jb]]="3","JB5&6",Tabel1[[#This Row],[FTO_jb]]="4","JB7&8",Tabel1[[#This Row],[FTO_jb]]="Alle",Tabel1[[#This Row],[FTO_jb]]) -> JB7&8 | E8: 36 | F8: NaN | G8: =IF(Tabel1[[#This Row],[x.MQ00_20]]="NaN","",VALUE(Tabel1[[#This Row],[x.MQ00_20]])) ->  | H8: NaN | I8: =IF(Tabel1[[#This Row],[x.MQ20_40]]="NaN","",VALUE(Tabel1[[#This Row],[x.MQ20_40]])) ->  | J8: NaN | K8: =IF(Tabel1[[#This Row],[x.MQ40_60]]="NaN","",VALUE(Tabel1[[#This Row],[x.MQ40_60]])) ->  | L8: NaN | M8: =IF(Tabel1[[#This Row],[x.MQ60_80]]="NaN","",VALUE(Tabel1[[#This Row],[x.MQ60_80]])) ->  | N8: NaN | O8: =IF(Tabel1[[#This Row],[x.MQ80_100]]="NaN","",VALUE(Tabel1[[#This Row],[x.MQ80_100]])) -> 
A9: Nordjylland | B9: Husdyrproduktion | C9: 1 | D9: =_xlfn.IFS(Tabel1[[#This Row],[FTO_jb]]="1","JB1&3",Tabel1[[#This Row],[FTO_jb]]="2","JB2&4",Tabel1[[#This Row],[FTO_jb]]="3","JB5&6",Tabel1[[#This Row],[FTO_jb]]="4","JB7&8",Tabel1[[#This Row],[FTO_jb]]="Alle",Tabel1[[#This Row],[FTO_jb]]) -> JB1&3 | E9: 74 | F9: 2114 | G9: =IF(Tabel1[[#This Row],[x.MQ00_20]]="NaN","",VALUE(Tabel1[[#This Row],[x.MQ00_20]])) -> 2114 | H9: 3367 | I9: =IF(Tabel1[[#This Row],[x.MQ20_40]]="NaN","",VALUE(Tabel1[[#This Row],[x.MQ20_40]])) -> 3367 | J9: 3877 | K9: =IF(Tabel1[[#This Row],[x.MQ40_60]]="NaN","",VALUE(Tabel1[[#This Row],[x.MQ40_60]])) -> 3877 | L9: 4515 | M9: =IF(Tabel1[[#This Row],[x.MQ60_80]]="NaN","",VALUE(Tabel1[[#This Row],[x.MQ60_80]])) -> 4515 | N9: 5764 | O9: =IF(Tabel1[[#This Row],[x.MQ80_100]]="NaN","",VALUE(Tabel1[[#This Row],[x.MQ80_100]])) -> 5764
A10: Nordjylland | B10: Husdyrproduktion | C10: 2 | D10: =_xlfn.IFS(Tabel1[[#This Row],[FTO_jb]]="1","JB1&3",Tabel1[[#This Row],[FTO_jb]]="2","JB2&4",Tabel1[[#This Row],[FTO_jb]]="3","JB5&6",Tabel1[[#This Row],[FTO_jb]]="4","JB7&8",Tabel1[[#This Row],[FTO_jb]]="Alle",Tabel1[[#This Row],[FTO_jb]]) -> JB2&4 | E10: 391 | F10: 2038 | G10: =IF(Tabel1[[#This Row],[x.MQ00_20]]="NaN","",VALUE(Tabel1[[#This Row],[x.MQ00_20]])) -> 2038 | H10: 3322 | I10: =IF(Tabel1[[#This Row],[x.MQ20_40]]="NaN","",VALUE(Tabel1[[#This Row],[x.MQ20_40]])) -> 3322 | J10: 3902 | K10: =IF(Tabel1[[#This Row],[x.MQ40_60]]="NaN","",VALUE(Tabel1[[#This Row],[x.MQ40_60]])) -> 3902 | L10: 4524 | M10: =IF(Tabel1[[#This Row],[x.MQ60_80]]="NaN","",VALUE(Tabel1[[#This Row],[x.MQ60_80]])) -> 4524 | N10: 5890 | O10: =IF(Tabel1[[#This Row],[x.MQ80_100]]="NaN","",VALUE(Tabel1[[#This Row],[x.MQ80_100]])) -> 5890
A11: Nordjylland | B11: Husdyrproduktion | C11: 3 | D11: =_xlfn.IFS(Tabel1[[#This Row],[FTO_jb]]="1","JB1&3",Tabel1[[#This Row],[FTO_jb]]="2","JB2&4",Tabel1[[#This Row],[FTO_jb]]="3","JB5&6",Tabel1[[#This Row],[FTO_jb]]="4","JB7&8",Tabel1[[#This Row],[FTO_jb]]="Alle",Tabel1[[#This Row],[FTO_jb]]) -> JB5&6 | E11: 54 | F11: 2063 | G11: =IF(Tabel1[[#This Row],[x.MQ00_20]]="NaN","",VALUE(Tabel1[[#This Row],[x.MQ00_20]])) -> 2063 | H11: 3923 | I11: =IF(Tabel1[[#This Row],[x.MQ20_40]]="NaN","",VALUE(Tabel1[[#This Row],[x.MQ20_40]])) -> 3923 | J11: 4436 | K11: =IF(Tabel1[[#This Row],[x.MQ40_60]]="NaN","",VALUE(Tabel1[[#This Row],[x.MQ40_60]])) -> 4436 | L11: 5181 | M11: =IF(Tabel1[[#This Row],[x.MQ60_80]]="NaN","",VALUE(Tabel1[[#This Row],[x.MQ60_80]])) -> 5181 | N11: 6498 | O11: =IF(Tabel1[[#This Row],[x.MQ80_100]]="NaN","",VALUE(Tabel1[[#This Row],[x.MQ80_100]])) -> 6498
A12: Nordjylland | B12: Husdyrproduktion | C12: 4 | D12: =_xlfn.IFS(Tabel1[[#This Row],[FTO_jb]]="1","JB1&3",Tabel1[[#This Row],[FTO_jb]]="2","JB2&4",Tabel1[[#This Row],[FTO_jb]]="3","JB5&6",Tabel1[[#This Row],[FTO_jb]]="4","JB7&8",Tabel1[[#This Row],[FTO_jb]]="Alle",Tabel1[[#This Row],[FTO_jb]]) -> JB7&8 | E12: 10 | F12: NaN | G12: =IF(Tabel1[[#This Row],[x.MQ00_20]]="NaN","",VALUE(Tabel1[[#This Row],[x.MQ00_20]])) ->  | H12: NaN | I12: =IF(Tabel1[[#This Row],[x.MQ20_40]]="NaN","",VALUE(Tabel1[[#This Row],[x.MQ20_40]])) ->  | J12: NaN | K12: =IF(Tabel1[[#This Row],[x.MQ40_60]]="NaN","",VALUE(Tabel1[[#This Row],[x.MQ40_60]])) ->  | L12: NaN | M12: =IF(Tabel1[[#This Row],[x.MQ60_80]]="NaN","",VALUE(Tabel1[[#This Row],[x.MQ60_80]])) ->  | N12: NaN | O12: =IF(Tabel1[[#This Row],[x.MQ80_100]]="NaN","",VALUE(Tabel1[[#This Row],[x.MQ80_100]])) -> 
A13: Nordjylland | B13: Planteavl | C13: 1 | D13: =_xlfn.IFS(Tabel1[[#This Row],[FTO_jb]]="1","JB1&3",Tabel1[[#This Row],[FTO_jb]]="2","JB2&4",Tabel1[[#This Row],[FTO_jb]]="3","JB5&6",Tabel1[[#This Row],[FTO_jb]]="4","JB7&8",Tabel1[[#This Row],[FTO_jb]]="Alle",Tabel1[[#This Row],[FTO_jb]]) -> JB1&3 | E13: 22 | F13: NaN | G13: =IF(Tabel1[[#This Row],[x.MQ00_20]]="NaN","",VALUE(Tabel1[[#This Row],[x.MQ00_20]])) ->  | H13: NaN | I13: =IF(Tabel1[[#This Row],[x.MQ20_40]]="NaN","",VALUE(Tabel1[[#This Row],[x.MQ20_40]])) ->  | J13: NaN | K13: =IF(Tabel1[[#This Row],[x.MQ40_60]]="NaN","",VALUE(Tabel1[[#This Row],[x.MQ40_60]])) ->  | L13: NaN | M13: =IF(Tabel1[[#This Row],[x.MQ60_80]]="NaN","",VALUE(Tabel1[[#This Row],[x.MQ60_80]])) ->  | N13: NaN | O13: =IF(Tabel1[[#This Row],[x.MQ80_100]]="NaN","",VALUE(Tabel1[[#This Row],[x.MQ80_100]])) -> 
A14: Nordjylland | B14: Planteavl | C14: 2 | D14: =_xlfn.IFS(Tabel1[[#This Row],[FTO_jb]]="1","JB1&3",Tabel1[[#This Row],[FTO_jb]]="2","JB2&4",Tabel1[[#This Row],[FTO_jb]]="3","JB5&6",Tabel1[[#This Row],[FTO_jb]]="4","JB7&8",Tabel1[[#This Row],[FTO_jb]]="Alle",Tabel1[[#This Row],[FTO_jb]]) -> JB2&4 | E14: 109 | F14: 1249 | G14: =IF(Tabel1[[#This Row],[x.MQ00_20]]="NaN","",VALUE(Tabel1[[#This Row],[x.MQ00_20]])) -> 1249 | H14: 2761 | I14: =IF(Tabel1[[#This Row],[x.MQ20_40]]="NaN","",VALUE(Tabel1[[#This Row],[x.MQ20_40]])) -> 2761 | J14: 3551 | K14: =IF(Tabel1[[#This Row],[x.MQ40_60]]="NaN","",VALUE(Tabel1[[#This Row],[x.MQ40_60]])) -> 3551 | L14: 4108 | M14: =IF(Tabel1[[#This Row],[x.MQ60_80]]="NaN","",VALUE(Tabel1[[#This Row],[x.MQ60_80]])) -> 4108 | N14: 5228 | O14: =IF(Tabel1[[#This Row],[x.MQ80_100]]="NaN","",VALUE(Tabel1[[#This Row],[x.MQ80_100]])) -> 5228
A15: Nordjylland | B15: Planteavl | C15: 3 | D15: =_xlfn.IFS(Tabel1[[#This Row],[FTO_jb]]="1","JB1&3",Tabel1[[#This Row],[FTO_jb]]="2","JB2&4",Tabel1[[#This Row],[FTO_jb]]="3","JB5&6",Tabel1[[#This Row],[FTO_jb]]="4","JB7&8",Tabel1[[#This Row],[FTO_jb]]="Alle",Tabel1[[#This Row],[FTO_jb]]) -> JB5&6 | E15: 20 | F15: NaN | G15: =IF(Tabel1[[#This Row],[x.MQ00_20]]="NaN","",VALUE(Tabel1[[#This Row],[x.MQ00_20]])) ->  | H15: NaN | I15: =IF(Tabel1[[#This Row],[x.MQ20_40]]="NaN","",VALUE(Tabel1[[#This Row],[x.MQ20_40]])) ->  | J15: NaN | K15: =IF(Tabel1[[#This Row],[x.MQ40_60]]="NaN","",VALUE(Tabel1[[#This Row],[x.MQ40_60]])) ->  | L15: NaN | M15: =IF(Tabel1[[#This Row],[x.MQ60_80]]="NaN","",VALUE(Tabel1[[#This Row],[x.MQ60_80]])) ->  | N15: NaN | O15: =IF(Tabel1[[#This Row],[x.MQ80_100]]="NaN","",VALUE(Tabel1[[#This Row],[x.MQ80_100]])) -> 
A16: Sjælland Bornholm | B16: Husdyrproduktion | C16: 1 | D16: =_xlfn.IFS(Tabel1[[#This Row],[FTO_jb]]="1","JB1&3",Tabel1[[#This Row],[FTO_jb]]="2","JB2&4",Tabel1[[#This Row],[FTO_jb]]="3","JB5&6",Tabel1[[#This Row],[FTO_jb]]="4","JB7&8",Tabel1[[#This Row],[FTO_jb]]="Alle",Tabel1[[#This Row],[FTO_jb]]) -> JB1&3 | E16: 2 | F16: NaN | G16: =IF(Tabel1[[#This Row],[x.MQ00_20]]="NaN","",VALUE(Tabel1[[#This Row],[x.MQ00_20]])) ->  | H16: NaN | I16: =IF(Tabel1[[#This Row],[x.MQ20_40]]="NaN","",VALUE(Tabel1[[#This Row],[x.MQ20_40]])) ->  | J16: NaN | K16: =IF(Tabel1[[#This Row],[x.MQ40_60]]="NaN","",VALUE(Tabel1[[#This Row],[x.MQ40_60]])) ->  | L16: NaN | M16: =IF(Tabel1[[#This Row],[x.MQ60_80]]="NaN","",VALUE(Tabel1[[#This Row],[x.MQ60_80]])) ->  | N16: NaN | O16: =IF(Tabel1[[#This Row],[x.MQ80_100]]="NaN","",VALUE(Tabel1[[#This Row],[x.MQ80_100]])) -> 
A17: Sjælland Bornholm | B17: Husdyrproduktion | C17: 2 | D17: =_xlfn.IFS(Tabel1[[#This Row],[FTO_jb]]="1","JB1&3",Tabel1[[#This Row],[FTO_jb]]="2","JB2&4",Tabel1[[#This Row],[FTO_jb]]="3","JB5&6",Tabel1[[#This Row],[FTO_jb]]="4","JB7&8",Tabel1[[#This Row],[FTO_jb]]="Alle",Tabel1[[#This Row],[FTO_jb]]) -> JB2&4 | E17: 15 | F17: NaN | G17: =IF(Tabel1[[#This Row],[x.MQ00_20]]="NaN","",VALUE(Tabel1[[#This Row],[x.MQ00_20]])) ->  | H17: NaN | I17: =IF(Tabel1[[#This Row],[x.MQ20_40]]="NaN","",VALUE(Tabel1[[#This Row],[x.MQ20_40]])) ->  | J17: NaN | K17: =IF(Tabel1[[#This Row],[x.MQ40_60]]="NaN","",VALUE(Tabel1[[#This Row],[x.MQ40_60]])) ->  | L17: NaN | M17: =IF(Tabel1[[#This Row],[x.MQ60_80]]="NaN","",VALUE(Tabel1[[#This Row],[x.MQ60_80]])) ->  | N17: NaN | O17: =IF(Tabel1[[#This Row],[x.MQ80_100]]="NaN","",VALUE(Tabel1[[#This Row],[x.MQ80_100]])) -> 
A18: Sjælland Bornholm | B18: Husdyrproduktion | C18: 3 | D18: =_xlfn.IFS(Tabel1[[#This Row],[FTO_jb]]="1","JB1&3",Tabel1[[#This Row],[FTO_jb]]="2","JB2&4",Tabel1[[#This Row],[FTO_jb]]="3","JB5&6",Tabel1[[#This Row],[FTO_jb]]="4","JB7&8",Tabel1[[#This Row],[FTO_jb]]="Alle",Tabel1[[#This Row],[FTO_jb]]) -> JB5&6 | E18: 112 | F18: 2456 | G18: =IF(Tabel1[[#This Row],[x.MQ00_20]]="NaN","",VALUE(Tabel1[[#This Row],[x.MQ00_20]])) -> 2456 | H18: 3500 | I18: =IF(Tabel1[[#This Row],[x.MQ20_40]]="NaN","",VALUE(Tabel1[[#This Row],[x.MQ20_40]])) -> 3500 | J18: 4016 | K18: =IF(Tabel1[[#This Row],[x.MQ40_60]]="NaN","",VALUE(Tabel1[[#This Row],[x.MQ40_60]])) -> 4016 | L18: 4631 | M18: =IF(Tabel1[[#This Row],[x.MQ60_80]]="NaN","",VALUE(Tabel1[[#This Row],[x.MQ60_80]])) -> 4631 | N18: 5621 | O18: =IF(Tabel1[[#This Row],[x.MQ80_100]]="NaN","",VALUE(Tabel1[[#This Row],[x.MQ80_100]])) -> 5621
A19: Sjælland Bornholm | B19: Husdyrproduktion | C19: 4 | D19: =_xlfn.IFS(Tabel1[[#This Row],[FTO_jb]]="1","JB1&3",Tabel1[[#This Row],[FTO_jb]]="2","JB2&4",Tabel1[[#This Row],[FTO_jb]]="3","JB5&6",Tabel1[[#This Row],[FTO_jb]]="4","JB7&8",Tabel1[[#This Row],[FTO_jb]]="Alle",Tabel1[[#This Row],[FTO_jb]]) -> JB7&8 | E19: 18 | F19: NaN | G19: =IF(Tabel1[[#This Row],[x.MQ00_20]]="NaN","",VALUE(Tabel1[[#This Row],[x.MQ00_20]])) ->  | H19: NaN | I19: =IF(Tabel1[[#This Row],[x.MQ20_40]]="NaN","",VALUE(Tabel1[[#This Row],[x.MQ20_40]])) ->  | J19: NaN | K19: =IF(Tabel1[[#This Row],[x.MQ40_60]]="NaN","",VALUE(Tabel1[[#This Row],[x.MQ40_60]])) ->  | L19: NaN | M19: =IF(Tabel1[[#This Row],[x.MQ60_80]]="NaN","",VALUE(Tabel1[[#This Row],[x.MQ60_80]])) ->  | N19: NaN | O19: =IF(Tabel1[[#This Row],[x.MQ80_100]]="NaN","",VALUE(Tabel1[[#This Row],[x.MQ80_100]])) -> 
A20: Sjælland Bornholm | B20: Planteavl | C20: 2 | D20: =_xlfn.IFS(Tabel1[[#This Row],[FTO_jb]]="1","JB1&3",Tabel1[[#This Row],[FTO_jb]]="2","JB2&4",Tabel1[[#This Row],[FTO_jb]]="3","JB5&6",Tabel1[[#This Row],[FTO_jb]]="4","JB7&8",Tabel1[[#This Row],[FTO_jb]]="Alle",Tabel1[[#This Row],[FTO_jb]]) -> JB2&4 | E20: 20 | F20: NaN | G20: =IF(Tabel1[[#This Row],[x.MQ00_20]]="NaN","",VALUE(Tabel1[[#This Row],[x.MQ00_20]])) ->  | H20: NaN | I20: =IF(Tabel1[[#This Row],[x.MQ20_40]]="NaN","",VALUE(Tabel1[[#This Row],[x.MQ20_40]])) ->  | J20: NaN | K20: =IF(Tabel1[[#This Row],[x.MQ40_60]]="NaN","",VALUE(Tabel1[[#This Row],[x.MQ40_60]])) ->  | L20: NaN | M20: =IF(Tabel1[[#This Row],[x.MQ60_80]]="NaN","",VALUE(Tabel1[[#This Row],[x.MQ60_80]])) ->  | N20: NaN | O20: =IF(Tabel1[[#This Row],[x.MQ80_100]]="NaN","",VALUE(Tabel1[[#This Row],[x.MQ80_100]])) -> 
A21: Sjælland Bornholm | B21: Planteavl | C21: 3 | D21: =_xlfn.IFS(Tabel1[[#This Row],[FTO_jb]]="1","JB1&3",Tabel1[[#This Row],[FTO_jb]]="2","JB2&4",Tabel1[[#This Row],[FTO_jb]]="3","JB5&6",Tabel1[[#This Row],[FTO_jb]]="4","JB7&8",Tabel1[[#This Row],[FTO_jb]]="Alle",Tabel1[[#This Row],[FTO_jb]]) -> JB5&6 | E21: 168 | F21: 1951 | G21: =IF(Tabel1[[#This Row],[x.MQ00_20]]="NaN","",VALUE(Tabel1[[#This Row],[x.MQ00_20]])) -> 1951 | H21: 3094 | I21: =IF(Tabel1[[#This Row],[x.MQ20_40]]="NaN","",VALUE(Tabel1[[#This Row],[x.MQ20_40]])) -> 3094 | J21: 3801 | K21: =IF(Tabel1[[#This Row],[x.MQ40_60]]="NaN","",VALUE(Tabel1[[#This Row],[x.MQ40_60]])) -> 3801 | L21: 4327 | M21: =IF(Tabel1[[#This Row],[x.MQ60_80]]="NaN","",VALUE(Tabel1[[#This Row],[x.MQ60_80]])) -> 4327 | N21: 5470 | O21: =IF(Tabel1[[#This Row],[x.MQ80_100]]="NaN","",VALUE(Tabel1[[#This Row],[x.MQ80_100]])) -> 5470
A22: Sjælland Bornholm | B22: Planteavl | C22: 4 | D22: =_xlfn.IFS(Tabel1[[#This Row],[FTO_jb]]="1","JB1&3",Tabel1[[#This Row],[FTO_jb]]="2","JB2&4",Tabel1[[#This Row],[FTO_jb]]="3","JB5&6",Tabel1[[#This Row],[FTO_jb]]="4","JB7&8",Tabel1[[#This Row],[FTO_jb]]="Alle",Tabel1[[#This Row],[FTO_jb]]) -> JB7&8 | E22: 44 | F22: NaN | G22: =IF(Tabel1[[#This Row],[x.MQ00_20]]="NaN","",VALUE(Tabel1[[#This Row],[x.MQ00_20]])) ->  | H22: NaN | I22: =IF(Tabel1[[#This Row],[x.MQ20_40]]="NaN","",VALUE(Tabel1[[#This Row],[x.MQ20_40]])) ->  | J22: NaN | K22: =IF(Tabel1[[#This Row],[x.MQ40_60]]="NaN","",VALUE(Tabel1[[#This Row],[x.MQ40_60]])) ->  | L22: NaN | M22: =IF(Tabel1[[#This Row],[x.MQ60_80]]="NaN","",VALUE(Tabel1[[#This Row],[x.MQ60_80]])) ->  | N22: NaN | O22: =IF(Tabel1[[#This Row],[x.MQ80_100]]="NaN","",VALUE(Tabel1[[#This Row],[x.MQ80_100]])) -> 
A23: Vestjylland | B23: Husdyrproduktion | C23: 1 | D23: =_xlfn.IFS(Tabel1[[#This Row],[FTO_jb]]="1","JB1&3",Tabel1[[#This Row],[FTO_jb]]="2","JB2&4",Tabel1[[#This Row],[FTO_jb]]="3","JB5&6",Tabel1[[#This Row],[FTO_jb]]="4","JB7&8",Tabel1[[#This Row],[FTO_jb]]="Alle",Tabel1[[#This Row],[FTO_jb]]) -> JB1&3 | E23: 570 | F23: 1885 | G23: =IF(Tabel1[[#This Row],[x.MQ00_20]]="NaN","",VALUE(Tabel1[[#This Row],[x.MQ00_20]])) -> 1885 | H23: 3141 | I23: =IF(Tabel1[[#This Row],[x.MQ20_40]]="NaN","",VALUE(Tabel1[[#This Row],[x.MQ20_40]])) -> 3141 | J23: 3685 | K23: =IF(Tabel1[[#This Row],[x.MQ40_60]]="NaN","",VALUE(Tabel1[[#This Row],[x.MQ40_60]])) -> 3685 | L23: 4267 | M23: =IF(Tabel1[[#This Row],[x.MQ60_80]]="NaN","",VALUE(Tabel1[[#This Row],[x.MQ60_80]])) -> 4267 | N23: 5573 | O23: =IF(Tabel1[[#This Row],[x.MQ80_100]]="NaN","",VALUE(Tabel1[[#This Row],[x.MQ80_100]])) -> 5573
A24: Vestjylland | B24: Husdyrproduktion | C24: 2 | D24: =_xlfn.IFS(Tabel1[[#This Row],[FTO_jb]]="1","JB1&3",Tabel1[[#This Row],[FTO_jb]]="2","JB2&4",Tabel1[[#This Row],[FTO_jb]]="3","JB5&6",Tabel1[[#This Row],[FTO_jb]]="4","JB7&8",Tabel1[[#This Row],[FTO_jb]]="Alle",Tabel1[[#This Row],[FTO_jb]]) -> JB2&4 | E24: 141 | F24: 2167 | G24: =IF(Tabel1[[#This Row],[x.MQ00_20]]="NaN","",VALUE(Tabel1[[#This Row],[x.MQ00_20]])) -> 2167 | H24: 3252 | I24: =IF(Tabel1[[#This Row],[x.MQ20_40]]="NaN","",VALUE(Tabel1[[#This Row],[x.MQ20_40]])) -> 3252 | J24: 3827 | K24: =IF(Tabel1[[#This Row],[x.MQ40_60]]="NaN","",VALUE(Tabel1[[#This Row],[x.MQ40_60]])) -> 3827 | L24: 4369 | M24: =IF(Tabel1[[#This Row],[x.MQ60_80]]="NaN","",VALUE(Tabel1[[#This Row],[x.MQ60_80]])) -> 4369 | N24: 5647 | O24: =IF(Tabel1[[#This Row],[x.MQ80_100]]="NaN","",VALUE(Tabel1[[#This Row],[x.MQ80_100]])) -> 5647
A25: Vestjylland | B25: Husdyrproduktion | C25: 3 | D25: =_xlfn.IFS(Tabel1[[#This Row],[FTO_jb]]="1","JB1&3",Tabel1[[#This Row],[FTO_jb]]="2","JB2&4",Tabel1[[#This Row],[FTO_jb]]="3","JB5&6",Tabel1[[#This Row],[FTO_jb]]="4","JB7&8",Tabel1[[#This Row],[FTO_jb]]="Alle",Tabel1[[#This Row],[FTO_jb]]) -> JB5&6 | E25: 62 | F25: 2744 | G25: =IF(Tabel1[[#This Row],[x.MQ00_20]]="NaN","",VALUE(Tabel1[[#This Row],[x.MQ00_20]])) -> 2744 | H25: 3932 | I25: =IF(Tabel1[[#This Row],[x.MQ20_40]]="NaN","",VALUE(Tabel1[[#This Row],[x.MQ20_40]])) -> 3932 | J25: 4461 | K25: =IF(Tabel1[[#This Row],[x.MQ40_60]]="NaN","",VALUE(Tabel1[[#This Row],[x.MQ40_60]])) -> 4461 | L25: 4851 | M25: =IF(Tabel1[[#This Row],[x.MQ60_80]]="NaN","",VALUE(Tabel1[[#This Row],[x.MQ60_80]])) -> 4851 | N25: 5802 | O25: =IF(Tabel1[[#This Row],[x.MQ80_100]]="NaN","",VALUE(Tabel1[[#This Row],[x.MQ80_100]])) -> 5802
A26: Vestjylland | B26: Husdyrproduktion | C26: 4 | D26: =_xlfn.IFS(Tabel1[[#This Row],[FTO_jb]]="1","JB1&3",Tabel1[[#This Row],[FTO_jb]]="2","JB2&4",Tabel1[[#This Row],[FTO_jb]]="3","JB5&6",Tabel1[[#This Row],[FTO_jb]]="4","JB7&8",Tabel1[[#This Row],[FTO_jb]]="Alle",Tabel1[[#This Row],[FTO_jb]]) -> JB7&8 | E26: 31 | F26: NaN | G26: =IF(Tabel1[[#This Row],[x.MQ00_20]]="NaN","",VALUE(Tabel1[[#This Row],[x.MQ00_20]])) ->  | H26: NaN | I26: =IF(Tabel1[[#This Row],[x.MQ20_40]]="NaN","",VALUE(Tabel1[[#This Row],[x.MQ20_40]])) ->  | J26: NaN | K26: =IF(Tabel1[[#This Row],[x.MQ40_60]]="NaN","",VALUE(Tabel1[[#This Row],[x.MQ40_60]])) ->  | L26: NaN | M26: =IF(Tabel1[[#This Row],[x.MQ60_80]]="NaN","",VALUE(Tabel1[[#This Row],[x.MQ60_80]])) ->  | N26: NaN | O26: =IF(Tabel1[[#This Row],[x.MQ80_100]]="NaN","",VALUE(Tabel1[[#This Row],[x.MQ80_100]])) -> 
A27: Vestjylland | B27: Planteavl | C27: 1 | D27: =_xlfn.IFS(Tabel1[[#This Row],[FTO_jb]]="1","JB1&3",Tabel1[[#This Row],[FTO_jb]]="2","JB2&4",Tabel1[[#This Row],[FTO_jb]]="3","JB5&6",Tabel1[[#This Row],[FTO_jb]]="4","JB7&8",Tabel1[[#This Row],[FTO_jb]]="Alle",Tabel1[[#This Row],[FTO_jb]]) -> JB1&3 | E27: 155 | F27: 1857 | G27: =IF(Tabel1[[#This Row],[x.MQ00_20]]="NaN","",VALUE(Tabel1[[#This Row],[x.MQ00_20]])) -> 1857 | H27: 3037 | I27: =IF(Tabel1[[#This Row],[x.MQ20_40]]="NaN","",VALUE(Tabel1[[#This Row],[x.MQ20_40]])) -> 3037 | J27: 3544 | K27: =IF(Tabel1[[#This Row],[x.MQ40_60]]="NaN","",VALUE(Tabel1[[#This Row],[x.MQ40_60]])) -> 3544 | L27: 4335 | M27: =IF(Tabel1[[#This Row],[x.MQ60_80]]="NaN","",VALUE(Tabel1[[#This Row],[x.MQ60_80]])) -> 4335 | N27: 5751 | O27: =IF(Tabel1[[#This Row],[x.MQ80_100]]="NaN","",VALUE(Tabel1[[#This Row],[x.MQ80_100]])) -> 5751
A28: Vestjylland | B28: Planteavl | C28: 2 | D28: =_xlfn.IFS(Tabel1[[#This Row],[FTO_jb]]="1","JB1&3",Tabel1[[#This Row],[FTO_jb]]="2","JB2&4",Tabel1[[#This Row],[FTO_jb]]="3","JB5&6",Tabel1[[#This Row],[FTO_jb]]="4","JB7&8",Tabel1[[#This Row],[FTO_jb]]="Alle",Tabel1[[#This Row],[FTO_jb]]) -> JB2&4 | E28: 39 | F28: NaN | G28: =IF(Tabel1[[#This Row],[x.MQ00_20]]="NaN","",VALUE(Tabel1[[#This Row],[x.MQ00_20]])) ->  | H28: NaN | I28: =IF(Tabel1[[#This Row],[x.MQ20_40]]="NaN","",VALUE(Tabel1[[#This Row],[x.MQ20_40]])) ->  | J28: NaN | K28: =IF(Tabel1[[#This Row],[x.MQ40_60]]="NaN","",VALUE(Tabel1[[#This Row],[x.MQ40_60]])) ->  | L28: NaN | M28: =IF(Tabel1[[#This Row],[x.MQ60_80]]="NaN","",VALUE(Tabel1[[#This Row],[x.MQ60_80]])) ->  | N28: NaN | O28: =IF(Tabel1[[#This Row],[x.MQ80_100]]="NaN","",VALUE(Tabel1[[#This Row],[x.MQ80_100]])) -> 
A29: Vestjylland | B29: Planteavl | C29: 3 | D29: =_xlfn.IFS(Tabel1[[#This Row],[FTO_jb]]="1","JB1&3",Tabel1[[#This Row],[FTO_jb]]="2","JB2&4",Tabel1[[#This Row],[FTO_jb]]="3","JB5&6",Tabel1[[#This Row],[FTO_jb]]="4","JB7&8",Tabel1[[#This Row],[FTO_jb]]="Alle",Tabel1[[#This Row],[FTO_jb]]) -> JB5&6 | E29: 9 | F29: NaN | G29: =IF(Tabel1[[#This Row],[x.MQ00_20]]="NaN","",VALUE(Tabel1[[#This Row],[x.MQ00_20]])) ->  | H29: NaN | I29: =IF(Tabel1[[#This Row],[x.MQ20_40]]="NaN","",VALUE(Tabel1[[#This Row],[x.MQ20_40]])) ->  | J29: NaN | K29: =IF(Tabel1[[#This Row],[x.MQ40_60]]="NaN","",VALUE(Tabel1[[#This Row],[x.MQ40_60]])) ->  | L29: NaN | M29: =IF(Tabel1[[#This Row],[x.MQ60_80]]="NaN","",VALUE(Tabel1[[#This Row],[x.MQ60_80]])) ->  | N29: NaN | O29: =IF(Tabel1[[#This Row],[x.MQ80_100]]="NaN","",VALUE(Tabel1[[#This Row],[x.MQ80_100]])) -> 
A30: Vestjylland | B30: Planteavl | C30: 4 | D30: =_xlfn.IFS(Tabel1[[#This Row],[FTO_jb]]="1","JB1&3",Tabel1[[#This Row],[FTO_jb]]="2","JB2&4",Tabel1[[#This Row],[FTO_jb]]="3","JB5&6",Tabel1[[#This Row],[FTO_jb]]="4","JB7&8",Tabel1[[#This Row],[FTO_jb]]="Alle",Tabel1[[#This Row],[FTO_jb]]) -> JB7&8 | E30: 7 | F30: NaN | G30: =IF(Tabel1[[#This Row],[x.MQ00_20]]="NaN","",VALUE(Tabel1[[#This Row],[x.MQ00_20]])) ->  | H30: NaN | I30: =IF(Tabel1[[#This Row],[x.MQ20_40]]="NaN","",VALUE(Tabel1[[#This Row],[x.MQ20_40]])) ->  | J30: NaN | K30: =IF(Tabel1[[#This Row],[x.MQ40_60]]="NaN","",VALUE(Tabel1[[#This Row],[x.MQ40_60]])) ->  | L30: NaN | M30: =IF(Tabel1[[#This Row],[x.MQ60_80]]="NaN","",VALUE(Tabel1[[#This Row],[x.MQ60_80]])) ->  | N30: NaN | O30: =IF(Tabel1[[#This Row],[x.MQ80_100]]="NaN","",VALUE(Tabel1[[#This Row],[x.MQ80_100]])) -> 
A31: Østjylland-Fyn | B31: Husdyrproduktion | C31: 1 | D31: =_xlfn.IFS(Tabel1[[#This Row],[FTO_jb]]="1","JB1&3",Tabel1[[#This Row],[FTO_jb]]="2","JB2&4",Tabel1[[#This Row],[FTO_jb]]="3","JB5&6",Tabel1[[#This Row],[FTO_jb]]="4","JB7&8",Tabel1[[#This Row],[FTO_jb]]="Alle",Tabel1[[#This Row],[FTO_jb]]) -> JB1&3 | E31: 241 | F31: 2464 | G31: =IF(Tabel1[[#This Row],[x.MQ00_20]]="NaN","",VALUE(Tabel1[[#This Row],[x.MQ00_20]])) -> 2464 | H31: 3272 | I31: =IF(Tabel1[[#This Row],[x.MQ20_40]]="NaN","",VALUE(Tabel1[[#This Row],[x.MQ20_40]])) -> 3272 | J31: 3685 | K31: =IF(Tabel1[[#This Row],[x.MQ40_60]]="NaN","",VALUE(Tabel1[[#This Row],[x.MQ40_60]])) -> 3685 | L31: 4194 | M31: =IF(Tabel1[[#This Row],[x.MQ60_80]]="NaN","",VALUE(Tabel1[[#This Row],[x.MQ60_80]])) -> 4194 | N31: 5546 | O31: =IF(Tabel1[[#This Row],[x.MQ80_100]]="NaN","",VALUE(Tabel1[[#This Row],[x.MQ80_100]])) -> 5546
A32: Østjylland-Fyn | B32: Husdyrproduktion | C32: 2 | D32: =_xlfn.IFS(Tabel1[[#This Row],[FTO_jb]]="1","JB1&3",Tabel1[[#This Row],[FTO_jb]]="2","JB2&4",Tabel1[[#This Row],[FTO_jb]]="3","JB5&6",Tabel1[[#This Row],[FTO_jb]]="4","JB7&8",Tabel1[[#This Row],[FTO_jb]]="Alle",Tabel1[[#This Row],[FTO_jb]]) -> JB2&4 | E32: 152 | F32: 2427 | G32: =IF(Tabel1[[#This Row],[x.MQ00_20]]="NaN","",VALUE(Tabel1[[#This Row],[x.MQ00_20]])) -> 2427 | H32: 3520 | I32: =IF(Tabel1[[#This Row],[x.MQ20_40]]="NaN","",VALUE(Tabel1[[#This Row],[x.MQ20_40]])) -> 3520 | J32: 4010 | K32: =IF(Tabel1[[#This Row],[x.MQ40_60]]="NaN","",VALUE(Tabel1[[#This Row],[x.MQ40_60]])) -> 4010 | L32: 4470 | M32: =IF(Tabel1[[#This Row],[x.MQ60_80]]="NaN","",VALUE(Tabel1[[#This Row],[x.MQ60_80]])) -> 4470 | N32: 5743 | O32: =IF(Tabel1[[#This Row],[x.MQ80_100]]="NaN","",VALUE(Tabel1[[#This Row],[x.MQ80_100]])) -> 5743
A33: Østjylland-Fyn | B33: Husdyrproduktion | C33: 3 | D33: =_xlfn.IFS(Tabel1[[#This Row],[FTO_jb]]="1","JB1&3",Tabel1[[#This Row],[FTO_jb]]="2","JB2&4",Tabel1[[#This Row],[FTO_jb]]="3","JB5&6",Tabel1[[#This Row],[FTO_jb]]="4","JB7&8",Tabel1[[#This Row],[FTO_jb]]="Alle",Tabel1[[#This Row],[FTO_jb]]) -> JB5&6 | E33: 306 | F33: 2808 | G33: =IF(Tabel1[[#This Row],[x.MQ00_20]]="NaN","",VALUE(Tabel1[[#This Row],[x.MQ00_20]])) -> 2808 | H33: 3833 | I33: =IF(Tabel1[[#This Row],[x.MQ20_40]]="NaN","",VALUE(Tabel1[[#This Row],[x.MQ20_40]])) -> 3833 | J33: 4365 | K33: =IF(Tabel1[[#This Row],[x.MQ40_60]]="NaN","",VALUE(Tabel1[[#This Row],[x.MQ40_60]])) -> 4365 | L33: 4894 | M33: =IF(Tabel1[[#This Row],[x.MQ60_80]]="NaN","",VALUE(Tabel1[[#This Row],[x.MQ60_80]])) -> 4894 | N33: 6115 | O33: =IF(Tabel1[[#This Row],[x.MQ80_100]]="NaN","",VALUE(Tabel1[[#This Row],[x.MQ80_100]])) -> 6115
A34: Østjylland-Fyn | B34: Husdyrproduktion | C34: 4 | D34: =_xlfn.IFS(Tabel1[[#This Row],[FTO_jb]]="1","JB1&3",Tabel1[[#This Row],[FTO_jb]]="2","JB2&4",Tabel1[[#This Row],[FTO_jb]]="3","JB5&6",Tabel1[[#This Row],[FTO_jb]]="4","JB7&8",Tabel1[[#This Row],[FTO_jb]]="Alle",Tabel1[[#This Row],[FTO_jb]]) -> JB7&8 | E34: 32 | F34: NaN | G34: =IF(Tabel1[[#This Row],[x.MQ00_20]]="NaN","",VALUE(Tabel1[[#This Row],[x.MQ00_20]])) ->  | H34: NaN | I34: =IF(Tabel1[[#This Row],[x.MQ20_40]]="NaN","",VALUE(Tabel1[[#This Row],[x.MQ20_40]])) ->  | J34: NaN | K34: =IF(Tabel1[[#This Row],[x.MQ40_60]]="NaN","",VALUE(Tabel1[[#This Row],[x.MQ40_60]])) ->  | L34: NaN | M34: =IF(Tabel1[[#This Row],[x.MQ60_80]]="NaN","",VALUE(Tabel1[[#This Row],[x.MQ60_80]])) ->  | N34: NaN | O34: =IF(Tabel1[[#This Row],[x.MQ80_100]]="NaN","",VALUE(Tabel1[[#This Row],[x.MQ80_100]])) -> 
A35: Østjylland-Fyn | B35: Planteavl | C35: 1 | D35: =_xlfn.IFS(Tabel1[[#This Row],[FTO_jb]]="1","JB1&3",Tabel1[[#This Row],[FTO_jb]]="2","JB2&4",Tabel1[[#This Row],[FTO_jb]]="3","JB5&6",Tabel1[[#This Row],[FTO_jb]]="4","JB7&8",Tabel1[[#This Row],[FTO_jb]]="Alle",Tabel1[[#This Row],[FTO_jb]]) -> JB1&3 | E35: 73 | F35: 965 | G35: =IF(Tabel1[[#This Row],[x.MQ00_20]]="NaN","",VALUE(Tabel1[[#This Row],[x.MQ00_20]])) -> 965 | H35: 2353 | I35: =IF(Tabel1[[#This Row],[x.MQ20_40]]="NaN","",VALUE(Tabel1[[#This Row],[x.MQ20_40]])) -> 2353 | J35: 3237 | K35: =IF(Tabel1[[#This Row],[x.MQ40_60]]="NaN","",VALUE(Tabel1[[#This Row],[x.MQ40_60]])) -> 3237 | L35: 3883 | M35: =IF(Tabel1[[#This Row],[x.MQ60_80]]="NaN","",VALUE(Tabel1[[#This Row],[x.MQ60_80]])) -> 3883 | N35: 5021 | O35: =IF(Tabel1[[#This Row],[x.MQ80_100]]="NaN","",VALUE(Tabel1[[#This Row],[x.MQ80_100]])) -> 5021
A36: Østjylland-Fyn | B36: Planteavl | C36: 2 | D36: =_xlfn.IFS(Tabel1[[#This Row],[FTO_jb]]="1","JB1&3",Tabel1[[#This Row],[FTO_jb]]="2","JB2&4",Tabel1[[#This Row],[FTO_jb]]="3","JB5&6",Tabel1[[#This Row],[FTO_jb]]="4","JB7&8",Tabel1[[#This Row],[FTO_jb]]="Alle",Tabel1[[#This Row],[FTO_jb]]) -> JB2&4 | E36: 57 | F36: 1887 | G36: =IF(Tabel1[[#This Row],[x.MQ00_20]]="NaN","",VALUE(Tabel1[[#This Row],[x.MQ00_20]])) -> 1887 | H36: 3192 | I36: =IF(Tabel1[[#This Row],[x.MQ20_40]]="NaN","",VALUE(Tabel1[[#This Row],[x.MQ20_40]])) -> 3192 | J36: 3738 | K36: =IF(Tabel1[[#This Row],[x.MQ40_60]]="NaN","",VALUE(Tabel1[[#This Row],[x.MQ40_60]])) -> 3738 | L36: 4262 | M36: =IF(Tabel1[[#This Row],[x.MQ60_80]]="NaN","",VALUE(Tabel1[[#This Row],[x.MQ60_80]])) -> 4262 | N36: 6123 | O36: =IF(Tabel1[[#This Row],[x.MQ80_100]]="NaN","",VALUE(Tabel1[[#This Row],[x.MQ80_100]])) -> 6123
A37: Østjylland-Fyn | B37: Planteavl | C37: 3 | D37: =_xlfn.IFS(Tabel1[[#This Row],[FTO_jb]]="1","JB1&3",Tabel1[[#This Row],[FTO_jb]]="2","JB2&4",Tabel1[[#This Row],[FTO_jb]]="3","JB5&6",Tabel1[[#This Row],[FTO_jb]]="4","JB7&8",Tabel1[[#This Row],[FTO_jb]]="Alle",Tabel1[[#This Row],[FTO_jb]]) -> JB5&6 | E37: 210 | F37: 2039 | G37: =IF(Tabel1[[#This Row],[x.MQ00_20]]="NaN","",VALUE(Tabel1[[#This Row],[x.MQ00_20]])) -> 2039 | H37: 3395 | I37: =IF(Tabel1[[#This Row],[x.MQ20_40]]="NaN","",VALUE(Tabel1[[#This Row],[x.MQ20_40]])) -> 3395 | J37: 3967 | K37: =IF(Tabel1[[#This Row],[x.MQ40_60]]="NaN","",VALUE(Tabel1[[#This Row],[x.MQ40_60]])) -> 3967 | L37: 4482 | M37: =IF(Tabel1[[#This Row],[x.MQ60_80]]="NaN","",VALUE(Tabel1[[#This Row],[x.MQ60_80]])) -> 4482 | N37: 5835 | O37: =IF(Tabel1[[#This Row],[x.MQ80_100]]="NaN","",VALUE(Tabel1[[#This Row],[x.MQ80_100]])) -> 5835
A38: Østjylland-Fyn | B38: Planteavl | C38: 4 | D38: =_xlfn.IFS(Tabel1[[#This Row],[FTO_jb]]="1","JB1&3",Tabel1[[#This Row],[FTO_jb]]="2","JB2&4",Tabel1[[#This Row],[FTO_jb]]="3","JB5&6",Tabel1[[#This Row],[FTO_jb]]="4","JB7&8",Tabel1[[#This Row],[FTO_jb]]="Alle",Tabel1[[#This Row],[FTO_jb]]) -> JB7&8 | E38: 15 | F38: NaN | G38: =IF(Tabel1[[#This Row],[x.MQ00_20]]="NaN","",VALUE(Tabel1[[#This Row],[x.MQ00_20]])) ->  | H38: NaN | I38: =IF(Tabel1[[#This Row],[x.MQ20_40]]="NaN","",VALUE(Tabel1[[#This Row],[x.MQ20_40]])) ->  | J38: NaN | K38: =IF(Tabel1[[#This Row],[x.MQ40_60]]="NaN","",VALUE(Tabel1[[#This Row],[x.MQ40_60]])) ->  | L38: NaN | M38: =IF(Tabel1[[#This Row],[x.MQ60_80]]="NaN","",VALUE(Tabel1[[#This Row],[x.MQ60_80]])) ->  | N38: NaN | O38: =IF(Tabel1[[#This Row],[x.MQ80_100]]="NaN","",VALUE(Tabel1[[#This Row],[x.MQ80_100]])) -> 
A39: Lolland-Falster | B39: Husdyrproduktion | C39: Alle | D39: =_xlfn.IFS(Tabel1[[#This Row],[FTO_jb]]="1","JB1&3",Tabel1[[#This Row],[FTO_jb]]="2","JB2&4",Tabel1[[#This Row],[FTO_jb]]="3","JB5&6",Tabel1[[#This Row],[FTO_jb]]="4","JB7&8",Tabel1[[#This Row],[FTO_jb]]="Alle",Tabel1[[#This Row],[FTO_jb]]) -> Alle | E39: 37 | F39: NaN | G39: =IF(Tabel1[[#This Row],[x.MQ00_20]]="NaN","",VALUE(Tabel1[[#This Row],[x.MQ00_20]])) ->  | H39: NaN | I39: =IF(Tabel1[[#This Row],[x.MQ20_40]]="NaN","",VALUE(Tabel1[[#This Row],[x.MQ20_40]])) ->  | J39: NaN | K39: =IF(Tabel1[[#This Row],[x.MQ40_60]]="NaN","",VALUE(Tabel1[[#This Row],[x.MQ40_60]])) ->  | L39: NaN | M39: =IF(Tabel1[[#This Row],[x.MQ60_80]]="NaN","",VALUE(Tabel1[[#This Row],[x.MQ60_80]])) ->  | N39: NaN | O39: =IF(Tabel1[[#This Row],[x.MQ80_100]]="NaN","",VALUE(Tabel1[[#This Row],[x.MQ80_100]])) -> 
A40: Lolland-Falster | B40: Planteavl | C40: Alle | D40: =_xlfn.IFS(Tabel1[[#This Row],[FTO_jb]]="1","JB1&3",Tabel1[[#This Row],[FTO_jb]]="2","JB2&4",Tabel1[[#This Row],[FTO_jb]]="3","JB5&6",Tabel1[[#This Row],[FTO_jb]]="4","JB7&8",Tabel1[[#This Row],[FTO_jb]]="Alle",Tabel1[[#This Row],[FTO_jb]]) -> Alle | E40: 82 | F40: 3194 | G40: =IF(Tabel1[[#This Row],[x.MQ00_20]]="NaN","",VALUE(Tabel1[[#This Row],[x.MQ00_20]])) -> 3194 | H40: 5108 | I40: =IF(Tabel1[[#This Row],[x.MQ20_40]]="NaN","",VALUE(Tabel1[[#This Row],[x.MQ20_40]])) -> 5108 | J40: 5901 | K40: =IF(Tabel1[[#This Row],[x.MQ40_60]]="NaN","",VALUE(Tabel1[[#This Row],[x.MQ40_60]])) -> 5901 | L40: 6491 | M40: =IF(Tabel1[[#This Row],[x.MQ60_80]]="NaN","",VALUE(Tabel1[[#This Row],[x.MQ60_80]])) -> 6491 | N40: 7655 | O40: =IF(Tabel1[[#This Row],[x.MQ80_100]]="NaN","",VALUE(Tabel1[[#This Row],[x.MQ80_100]])) -> 7655
A41: Nordjylland | B41: Husdyrproduktion | C41: Alle | D41: =_xlfn.IFS(Tabel1[[#This Row],[FTO_jb]]="1","JB1&3",Tabel1[[#This Row],[FTO_jb]]="2","JB2&4",Tabel1[[#This Row],[FTO_jb]]="3","JB5&6",Tabel1[[#This Row],[FTO_jb]]="4","JB7&8",Tabel1[[#This Row],[FTO_jb]]="Alle",Tabel1[[#This Row],[FTO_jb]]) -> Alle | E41: 529 | F41: 2018 | G41: =IF(Tabel1[[#This Row],[x.MQ00_20]]="NaN","",VALUE(Tabel1[[#This Row],[x.MQ00_20]])) -> 2018 | H41: 3369 | I41: =IF(Tabel1[[#This Row],[x.MQ20_40]]="NaN","",VALUE(Tabel1[[#This Row],[x.MQ20_40]])) -> 3369 | J41: 3958 | K41: =IF(Tabel1[[#This Row],[x.MQ40_60]]="NaN","",VALUE(Tabel1[[#This Row],[x.MQ40_60]])) -> 3958 | L41: 4604 | M41: =IF(Tabel1[[#This Row],[x.MQ60_80]]="NaN","",VALUE(Tabel1[[#This Row],[x.MQ60_80]])) -> 4604 | N41: 5963 | O41: =IF(Tabel1[[#This Row],[x.MQ80_100]]="NaN","",VALUE(Tabel1[[#This Row],[x.MQ80_100]])) -> 5963
A42: Nordjylland | B42: Planteavl | C42: Alle | D42: =_xlfn.IFS(Tabel1[[#This Row],[FTO_jb]]="1","JB1&3",Tabel1[[#This Row],[FTO_jb]]="2","JB2&4",Tabel1[[#This Row],[FTO_jb]]="3","JB5&6",Tabel1[[#This Row],[FTO_jb]]="4","JB7&8",Tabel1[[#This Row],[FTO_jb]]="Alle",Tabel1[[#This Row],[FTO_jb]]) -> Alle | E42: 151 | F42: 1255 | G42: =IF(Tabel1[[#This Row],[x.MQ00_20]]="NaN","",VALUE(Tabel1[[#This Row],[x.MQ00_20]])) -> 1255 | H42: 2930 | I42: =IF(Tabel1[[#This Row],[x.MQ20_40]]="NaN","",VALUE(Tabel1[[#This Row],[x.MQ20_40]])) -> 2930 | J42: 3706 | K42: =IF(Tabel1[[#This Row],[x.MQ40_60]]="NaN","",VALUE(Tabel1[[#This Row],[x.MQ40_60]])) -> 3706 | L42: 4246 | M42: =IF(Tabel1[[#This Row],[x.MQ60_80]]="NaN","",VALUE(Tabel1[[#This Row],[x.MQ60_80]])) -> 4246 | N42: 5121 | O42: =IF(Tabel1[[#This Row],[x.MQ80_100]]="NaN","",VALUE(Tabel1[[#This Row],[x.MQ80_100]])) -> 5121
A43: Sjælland Bornholm | B43: Husdyrproduktion | C43: Alle | D43: =_xlfn.IFS(Tabel1[[#This Row],[FTO_jb]]="1","JB1&3",Tabel1[[#This Row],[FTO_jb]]="2","JB2&4",Tabel1[[#This Row],[FTO_jb]]="3","JB5&6",Tabel1[[#This Row],[FTO_jb]]="4","JB7&8",Tabel1[[#This Row],[FTO_jb]]="Alle",Tabel1[[#This Row],[FTO_jb]]) -> Alle | E43: 147 | F43: 2432 | G43: =IF(Tabel1[[#This Row],[x.MQ00_20]]="NaN","",VALUE(Tabel1[[#This Row],[x.MQ00_20]])) -> 2432 | H43: 3502 | I43: =IF(Tabel1[[#This Row],[x.MQ20_40]]="NaN","",VALUE(Tabel1[[#This Row],[x.MQ20_40]])) -> 3502 | J43: 4010 | K43: =IF(Tabel1[[#This Row],[x.MQ40_60]]="NaN","",VALUE(Tabel1[[#This Row],[x.MQ40_60]])) -> 4010 | L43: 4555 | M43: =IF(Tabel1[[#This Row],[x.MQ60_80]]="NaN","",VALUE(Tabel1[[#This Row],[x.MQ60_80]])) -> 4555 | N43: 5519 | O43: =IF(Tabel1[[#This Row],[x.MQ80_100]]="NaN","",VALUE(Tabel1[[#This Row],[x.MQ80_100]])) -> 5519
A44: Sjælland Bornholm | B44: Planteavl | C44: Alle | D44: =_xlfn.IFS(Tabel1[[#This Row],[FTO_jb]]="1","JB1&3",Tabel1[[#This Row],[FTO_jb]]="2","JB2&4",Tabel1[[#This Row],[FTO_jb]]="3","JB5&6",Tabel1[[#This Row],[FTO_jb]]="4","JB7&8",Tabel1[[#This Row],[FTO_jb]]="Alle",Tabel1[[#This Row],[FTO_jb]]) -> Alle | E44: 232 | F44: 1798 | G44: =IF(Tabel1[[#This Row],[x.MQ00_20]]="NaN","",VALUE(Tabel1[[#This Row],[x.MQ00_20]])) -> 1798 | H44: 3030 | I44: =IF(Tabel1[[#This Row],[x.MQ20_40]]="NaN","",VALUE(Tabel1[[#This Row],[x.MQ20_40]])) -> 3030 | J44: 3736 | K44: =IF(Tabel1[[#This Row],[x.MQ40_60]]="NaN","",VALUE(Tabel1[[#This Row],[x.MQ40_60]])) -> 3736 | L44: 4270 | M44: =IF(Tabel1[[#This Row],[x.MQ60_80]]="NaN","",VALUE(Tabel1[[#This Row],[x.MQ60_80]])) -> 4270 | N44: 5430 | O44: =IF(Tabel1[[#This Row],[x.MQ80_100]]="NaN","",VALUE(Tabel1[[#This Row],[x.MQ80_100]])) -> 5430
A45: Vestjylland | B45: Husdyrproduktion | C45: Alle | D45: =_xlfn.IFS(Tabel1[[#This Row],[FTO_jb]]="1","JB1&3",Tabel1[[#This Row],[FTO_jb]]="2","JB2&4",Tabel1[[#This Row],[FTO_jb]]="3","JB5&6",Tabel1[[#This Row],[FTO_jb]]="4","JB7&8",Tabel1[[#This Row],[FTO_jb]]="Alle",Tabel1[[#This Row],[FTO_jb]]) -> Alle | E45: 804 | F45: 1983 | G45: =IF(Tabel1[[#This Row],[x.MQ00_20]]="NaN","",VALUE(Tabel1[[#This Row],[x.MQ00_20]])) -> 1983 | H45: 3205 | I45: =IF(Tabel1[[#This Row],[x.MQ20_40]]="NaN","",VALUE(Tabel1[[#This Row],[x.MQ20_40]])) -> 3205 | J45: 3756 | K45: =IF(Tabel1[[#This Row],[x.MQ40_60]]="NaN","",VALUE(Tabel1[[#This Row],[x.MQ40_60]])) -> 3756 | L45: 4333 | M45: =IF(Tabel1[[#This Row],[x.MQ60_80]]="NaN","",VALUE(Tabel1[[#This Row],[x.MQ60_80]])) -> 4333 | N45: 5596 | O45: =IF(Tabel1[[#This Row],[x.MQ80_100]]="NaN","",VALUE(Tabel1[[#This Row],[x.MQ80_100]])) -> 5596
A46: Vestjylland | B46: Planteavl | C46: Alle | D46: =_xlfn.IFS(Tabel1[[#This Row],[FTO_jb]]="1","JB1&3",Tabel1[[#This Row],[FTO_jb]]="2","JB2&4",Tabel1[[#This Row],[FTO_jb]]="3","JB5&6",Tabel1[[#This Row],[FTO_jb]]="4","JB7&8",Tabel1[[#This Row],[FTO_jb]]="Alle",Tabel1[[#This Row],[FTO_jb]]) -> Alle | E46: 210 | F46: 1905 | G46: =IF(Tabel1[[#This Row],[x.MQ00_20]]="NaN","",VALUE(Tabel1[[#This Row],[x.MQ00_20]])) -> 1905 | H46: 3049 | I46: =IF(Tabel1[[#This Row],[x.MQ20_40]]="NaN","",VALUE(Tabel1[[#This Row],[x.MQ20_40]])) -> 3049 | J46: 3546 | K46: =IF(Tabel1[[#This Row],[x.MQ40_60]]="NaN","",VALUE(Tabel1[[#This Row],[x.MQ40_60]])) -> 3546 | L46: 4242 | M46: =IF(Tabel1[[#This Row],[x.MQ60_80]]="NaN","",VALUE(Tabel1[[#This Row],[x.MQ60_80]])) -> 4242 | N46: 5602 | O46: =IF(Tabel1[[#This Row],[x.MQ80_100]]="NaN","",VALUE(Tabel1[[#This Row],[x.MQ80_100]])) -> 5602
A47: Østjylland-Fyn | B47: Husdyrproduktion | C47: Alle | D47: =_xlfn.IFS(Tabel1[[#This Row],[FTO_jb]]="1","JB1&3",Tabel1[[#This Row],[FTO_jb]]="2","JB2&4",Tabel1[[#This Row],[FTO_jb]]="3","JB5&6",Tabel1[[#This Row],[FTO_jb]]="4","JB7&8",Tabel1[[#This Row],[FTO_jb]]="Alle",Tabel1[[#This Row],[FTO_jb]]) -> Alle | E47: 731 | F47: 2556 | G47: =IF(Tabel1[[#This Row],[x.MQ00_20]]="NaN","",VALUE(Tabel1[[#This Row],[x.MQ00_20]])) -> 2556 | H47: 3513 | I47: =IF(Tabel1[[#This Row],[x.MQ20_40]]="NaN","",VALUE(Tabel1[[#This Row],[x.MQ20_40]])) -> 3513 | J47: 4051 | K47: =IF(Tabel1[[#This Row],[x.MQ40_60]]="NaN","",VALUE(Tabel1[[#This Row],[x.MQ40_60]])) -> 4051 | L47: 4599 | M47: =IF(Tabel1[[#This Row],[x.MQ60_80]]="NaN","",VALUE(Tabel1[[#This Row],[x.MQ60_80]])) -> 4599 | N47: 5893 | O47: =IF(Tabel1[[#This Row],[x.MQ80_100]]="NaN","",VALUE(Tabel1[[#This Row],[x.MQ80_100]])) -> 5893
A48: Østjylland-Fyn | B48: Planteavl | C48: Alle | D48: =_xlfn.IFS(Tabel1[[#This Row],[FTO_jb]]="1","JB1&3",Tabel1[[#This Row],[FTO_jb]]="2","JB2&4",Tabel1[[#This Row],[FTO_jb]]="3","JB5&6",Tabel1[[#This Row],[FTO_jb]]="4","JB7&8",Tabel1[[#This Row],[FTO_jb]]="Alle",Tabel1[[#This Row],[FTO_jb]]) -> Alle | E48: 355 | F48: 1701 | G48: =IF(Tabel1[[#This Row],[x.MQ00_20]]="NaN","",VALUE(Tabel1[[#This Row],[x.MQ00_20]])) -> 1701 | H48: 3146 | I48: =IF(Tabel1[[#This Row],[x.MQ20_40]]="NaN","",VALUE(Tabel1[[#This Row],[x.MQ20_40]])) -> 3146 | J48: 3804 | K48: =IF(Tabel1[[#This Row],[x.MQ40_60]]="NaN","",VALUE(Tabel1[[#This Row],[x.MQ40_60]])) -> 3804 | L48: 4362 | M48: =IF(Tabel1[[#This Row],[x.MQ60_80]]="NaN","",VALUE(Tabel1[[#This Row],[x.MQ60_80]])) -> 4362 | N48: 5756 | O48: =IF(Tabel1[[#This Row],[x.MQ80_100]]="NaN","",VALUE(Tabel1[[#This Row],[x.MQ80_100]])) -> 5756
A49: Lolland-Falster | B49: Alle | C49: 1 | D49: =_xlfn.IFS(Tabel1[[#This Row],[FTO_jb]]="1","JB1&3",Tabel1[[#This Row],[FTO_jb]]="2","JB2&4",Tabel1[[#This Row],[FTO_jb]]="3","JB5&6",Tabel1[[#This Row],[FTO_jb]]="4","JB7&8",Tabel1[[#This Row],[FTO_jb]]="Alle",Tabel1[[#This Row],[FTO_jb]]) -> JB1&3 | E49: 1 | F49: NaN | G49: =IF(Tabel1[[#This Row],[x.MQ00_20]]="NaN","",VALUE(Tabel1[[#This Row],[x.MQ00_20]])) ->  | H49: NaN | I49: =IF(Tabel1[[#This Row],[x.MQ20_40]]="NaN","",VALUE(Tabel1[[#This Row],[x.MQ20_40]])) ->  | J49: NaN | K49: =IF(Tabel1[[#This Row],[x.MQ40_60]]="NaN","",VALUE(Tabel1[[#This Row],[x.MQ40_60]])) ->  | L49: NaN | M49: =IF(Tabel1[[#This Row],[x.MQ60_80]]="NaN","",VALUE(Tabel1[[#This Row],[x.MQ60_80]])) ->  | N49: NaN | O49: =IF(Tabel1[[#This Row],[x.MQ80_100]]="NaN","",VALUE(Tabel1[[#This Row],[x.MQ80_100]])) -> 
A50: Lolland-Falster | B50: Alle | C50: 2 | D50: =_xlfn.IFS(Tabel1[[#This Row],[FTO_jb]]="1","JB1&3",Tabel1[[#This Row],[FTO_jb]]="2","JB2&4",Tabel1[[#This Row],[FTO_jb]]="3","JB5&6",Tabel1[[#This Row],[FTO_jb]]="4","JB7&8",Tabel1[[#This Row],[FTO_jb]]="Alle",Tabel1[[#This Row],[FTO_jb]]) -> JB2&4 | E50: 8 | F50: NaN | G50: =IF(Tabel1[[#This Row],[x.MQ00_20]]="NaN","",VALUE(Tabel1[[#This Row],[x.MQ00_20]])) ->  | H50: NaN | I50: =IF(Tabel1[[#This Row],[x.MQ20_40]]="NaN","",VALUE(Tabel1[[#This Row],[x.MQ20_40]])) ->  | J50: NaN | K50: =IF(Tabel1[[#This Row],[x.MQ40_60]]="NaN","",VALUE(Tabel1[[#This Row],[x.MQ40_60]])) ->  | L50: NaN | M50: =IF(Tabel1[[#This Row],[x.MQ60_80]]="NaN","",VALUE(Tabel1[[#This Row],[x.MQ60_80]])) ->  | N50: NaN | O50: =IF(Tabel1[[#This Row],[x.MQ80_100]]="NaN","",VALUE(Tabel1[[#This Row],[x.MQ80_100]])) -> 
A51: Lolland-Falster | B51: Alle | C51: 3 | D51: =_xlfn.IFS(Tabel1[[#This Row],[FTO_jb]]="1","JB1&3",Tabel1[[#This Row],[FTO_jb]]="2","JB2&4",Tabel1[[#This Row],[FTO_jb]]="3","JB5&6",Tabel1[[#This Row],[FTO_jb]]="4","JB7&8",Tabel1[[#This Row],[FTO_jb]]="Alle",Tabel1[[#This Row],[FTO_jb]]) -> JB5&6 | E51: 62 | F51: 3123 | G51: =IF(Tabel1[[#This Row],[x.MQ00_20]]="NaN","",VALUE(Tabel1[[#This Row],[x.MQ00_20]])) -> 3123 | H51: 5192 | I51: =IF(Tabel1[[#This Row],[x.MQ20_40]]="NaN","",VALUE(Tabel1[[#This Row],[x.MQ20_40]])) -> 5192 | J51: 5738 | K51: =IF(Tabel1[[#This Row],[x.MQ40_60]]="NaN","",VALUE(Tabel1[[#This Row],[x.MQ40_60]])) -> 5738 | L51: 6396 | M51: =IF(Tabel1[[#This Row],[x.MQ60_80]]="NaN","",VALUE(Tabel1[[#This Row],[x.MQ60_80]])) -> 6396 | N51: 7322 | O51: =IF(Tabel1[[#This Row],[x.MQ80_100]]="NaN","",VALUE(Tabel1[[#This Row],[x.MQ80_100]])) -> 7322
A52: Lolland-Falster | B52: Alle | C52: 4 | D52: =_xlfn.IFS(Tabel1[[#This Row],[FTO_jb]]="1","JB1&3",Tabel1[[#This Row],[FTO_jb]]="2","JB2&4",Tabel1[[#This Row],[FTO_jb]]="3","JB5&6",Tabel1[[#This Row],[FTO_jb]]="4","JB7&8",Tabel1[[#This Row],[FTO_jb]]="Alle",Tabel1[[#This Row],[FTO_jb]]) -> JB7&8 | E52: 48 | F52: NaN | G52: =IF(Tabel1[[#This Row],[x.MQ00_20]]="NaN","",VALUE(Tabel1[[#This Row],[x.MQ00_20]])) ->  | H52: NaN | I52: =IF(Tabel1[[#This Row],[x.MQ20_40]]="NaN","",VALUE(Tabel1[[#This Row],[x.MQ20_40]])) ->  | J52: NaN | K52: =IF(Tabel1[[#This Row],[x.MQ40_60]]="NaN","",VALUE(Tabel1[[#This Row],[x.MQ40_60]])) ->  | L52: NaN | M52: =IF(Tabel1[[#This Row],[x.MQ60_80]]="NaN","",VALUE(Tabel1[[#This Row],[x.MQ60_80]])) ->  | N52: NaN | O52: =IF(Tabel1[[#This Row],[x.MQ80_100]]="NaN","",VALUE(Tabel1[[#This Row],[x.MQ80_100]])) -> 
A53: Nordjylland | B53: Alle | C53: 1 | D53: =_xlfn.IFS(Tabel1[[#This Row],[FTO_jb]]="1","JB1&3",Tabel1[[#This Row],[FTO_jb]]="2","JB2&4",Tabel1[[#This Row],[FTO_jb]]="3","JB5&6",Tabel1[[#This Row],[FTO_jb]]="4","JB7&8",Tabel1[[#This Row],[FTO_jb]]="Alle",Tabel1[[#This Row],[FTO_jb]]) -> JB1&3 | E53: 96 | F53: 1978 | G53: =IF(Tabel1[[#This Row],[x.MQ00_20]]="NaN","",VALUE(Tabel1[[#This Row],[x.MQ00_20]])) -> 1978 | H53: 3383 | I53: =IF(Tabel1[[#This Row],[x.MQ20_40]]="NaN","",VALUE(Tabel1[[#This Row],[x.MQ20_40]])) -> 3383 | J53: 3841 | K53: =IF(Tabel1[[#This Row],[x.MQ40_60]]="NaN","",VALUE(Tabel1[[#This Row],[x.MQ40_60]])) -> 3841 | L53: 4442 | M53: =IF(Tabel1[[#This Row],[x.MQ60_80]]="NaN","",VALUE(Tabel1[[#This Row],[x.MQ60_80]])) -> 4442 | N53: 5530 | O53: =IF(Tabel1[[#This Row],[x.MQ80_100]]="NaN","",VALUE(Tabel1[[#This Row],[x.MQ80_100]])) -> 5530
A54: Nordjylland | B54: Alle | C54: 2 | D54: =_xlfn.IFS(Tabel1[[#This Row],[FTO_jb]]="1","JB1&3",Tabel1[[#This Row],[FTO_jb]]="2","JB2&4",Tabel1[[#This Row],[FTO_jb]]="3","JB5&6",Tabel1[[#This Row],[FTO_jb]]="4","JB7&8",Tabel1[[#This Row],[FTO_jb]]="Alle",Tabel1[[#This Row],[FTO_jb]]) -> JB2&4 | E54: 500 | F54: 1831 | G54: =IF(Tabel1[[#This Row],[x.MQ00_20]]="NaN","",VALUE(Tabel1[[#This Row],[x.MQ00_20]])) -> 1831 | H54: 3193 | I54: =IF(Tabel1[[#This Row],[x.MQ20_40]]="NaN","",VALUE(Tabel1[[#This Row],[x.MQ20_40]])) -> 3193 | J54: 3828 | K54: =IF(Tabel1[[#This Row],[x.MQ40_60]]="NaN","",VALUE(Tabel1[[#This Row],[x.MQ40_60]])) -> 3828 | L54: 4435 | M54: =IF(Tabel1[[#This Row],[x.MQ60_80]]="NaN","",VALUE(Tabel1[[#This Row],[x.MQ60_80]])) -> 4435 | N54: 5776 | O54: =IF(Tabel1[[#This Row],[x.MQ80_100]]="NaN","",VALUE(Tabel1[[#This Row],[x.MQ80_100]])) -> 5776
A55: Nordjylland | B55: Alle | C55: 3 | D55: =_xlfn.IFS(Tabel1[[#This Row],[FTO_jb]]="1","JB1&3",Tabel1[[#This Row],[FTO_jb]]="2","JB2&4",Tabel1[[#This Row],[FTO_jb]]="3","JB5&6",Tabel1[[#This Row],[FTO_jb]]="4","JB7&8",Tabel1[[#This Row],[FTO_jb]]="Alle",Tabel1[[#This Row],[FTO_jb]]) -> JB5&6 | E55: 74 | F55: 1797 | G55: =IF(Tabel1[[#This Row],[x.MQ00_20]]="NaN","",VALUE(Tabel1[[#This Row],[x.MQ00_20]])) -> 1797 | H55: 3872 | I55: =IF(Tabel1[[#This Row],[x.MQ20_40]]="NaN","",VALUE(Tabel1[[#This Row],[x.MQ20_40]])) -> 3872 | J55: 4394 | K55: =IF(Tabel1[[#This Row],[x.MQ40_60]]="NaN","",VALUE(Tabel1[[#This Row],[x.MQ40_60]])) -> 4394 | L55: 4933 | M55: =IF(Tabel1[[#This Row],[x.MQ60_80]]="NaN","",VALUE(Tabel1[[#This Row],[x.MQ60_80]])) -> 4933 | N55: 6209 | O55: =IF(Tabel1[[#This Row],[x.MQ80_100]]="NaN","",VALUE(Tabel1[[#This Row],[x.MQ80_100]])) -> 6209
A56: Nordjylland | B56: Alle | C56: 4 | D56: =_xlfn.IFS(Tabel1[[#This Row],[FTO_jb]]="1","JB1&3",Tabel1[[#This Row],[FTO_jb]]="2","JB2&4",Tabel1[[#This Row],[FTO_jb]]="3","JB5&6",Tabel1[[#This Row],[FTO_jb]]="4","JB7&8",Tabel1[[#This Row],[FTO_jb]]="Alle",Tabel1[[#This Row],[FTO_jb]]) -> JB7&8 | E56: 10 | F56: NaN | G56: =IF(Tabel1[[#This Row],[x.MQ00_20]]="NaN","",VALUE(Tabel1[[#This Row],[x.MQ00_20]])) ->  | H56: NaN | I56: =IF(Tabel1[[#This Row],[x.MQ20_40]]="NaN","",VALUE(Tabel1[[#This Row],[x.MQ20_40]])) ->  | J56: NaN | K56: =IF(Tabel1[[#This Row],[x.MQ40_60]]="NaN","",VALUE(Tabel1[[#This Row],[x.MQ40_60]])) ->  | L56: NaN | M56: =IF(Tabel1[[#This Row],[x.MQ60_80]]="NaN","",VALUE(Tabel1[[#This Row],[x.MQ60_80]])) ->  | N56: NaN | O56: =IF(Tabel1[[#This Row],[x.MQ80_100]]="NaN","",VALUE(Tabel1[[#This Row],[x.MQ80_100]])) -> 
A57: Sjælland Bornholm | B57: Alle | C57: 1 | D57: =_xlfn.IFS(Tabel1[[#This Row],[FTO_jb]]="1","JB1&3",Tabel1[[#This Row],[FTO_jb]]="2","JB2&4",Tabel1[[#This Row],[FTO_jb]]="3","JB5&6",Tabel1[[#This Row],[FTO_jb]]="4","JB7&8",Tabel1[[#This Row],[FTO_jb]]="Alle",Tabel1[[#This Row],[FTO_jb]]) -> JB1&3 | E57: 2 | F57: NaN | G57: =IF(Tabel1[[#This Row],[x.MQ00_20]]="NaN","",VALUE(Tabel1[[#This Row],[x.MQ00_20]])) ->  | H57: NaN | I57: =IF(Tabel1[[#This Row],[x.MQ20_40]]="NaN","",VALUE(Tabel1[[#This Row],[x.MQ20_40]])) ->  | J57: NaN | K57: =IF(Tabel1[[#This Row],[x.MQ40_60]]="NaN","",VALUE(Tabel1[[#This Row],[x.MQ40_60]])) ->  | L57: NaN | M57: =IF(Tabel1[[#This Row],[x.MQ60_80]]="NaN","",VALUE(Tabel1[[#This Row],[x.MQ60_80]])) ->  | N57: NaN | O57: =IF(Tabel1[[#This Row],[x.MQ80_100]]="NaN","",VALUE(Tabel1[[#This Row],[x.MQ80_100]])) -> 
A58: Sjælland Bornholm | B58: Alle | C58: 2 | D58: =_xlfn.IFS(Tabel1[[#This Row],[FTO_jb]]="1","JB1&3",Tabel1[[#This Row],[FTO_jb]]="2","JB2&4",Tabel1[[#This Row],[FTO_jb]]="3","JB5&6",Tabel1[[#This Row],[FTO_jb]]="4","JB7&8",Tabel1[[#This Row],[FTO_jb]]="Alle",Tabel1[[#This Row],[FTO_jb]]) -> JB2&4 | E58: 35 | F58: NaN | G58: =IF(Tabel1[[#This Row],[x.MQ00_20]]="NaN","",VALUE(Tabel1[[#This Row],[x.MQ00_20]])) ->  | H58: NaN | I58: =IF(Tabel1[[#This Row],[x.MQ20_40]]="NaN","",VALUE(Tabel1[[#This Row],[x.MQ20_40]])) ->  | J58: NaN | K58: =IF(Tabel1[[#This Row],[x.MQ40_60]]="NaN","",VALUE(Tabel1[[#This Row],[x.MQ40_60]])) ->  | L58: NaN | M58: =IF(Tabel1[[#This Row],[x.MQ60_80]]="NaN","",VALUE(Tabel1[[#This Row],[x.MQ60_80]])) ->  | N58: NaN | O58: =IF(Tabel1[[#This Row],[x.MQ80_100]]="NaN","",VALUE(Tabel1[[#This Row],[x.MQ80_100]])) -> 
A59: Sjælland Bornholm | B59: Alle | C59: 3 | D59: =_xlfn.IFS(Tabel1[[#This Row],[FTO_jb]]="1","JB1&3",Tabel1[[#This Row],[FTO_jb]]="2","JB2&4",Tabel1[[#This Row],[FTO_jb]]="3","JB5&6",Tabel1[[#This Row],[FTO_jb]]="4","JB7&8",Tabel1[[#This Row],[FTO_jb]]="Alle",Tabel1[[#This Row],[FTO_jb]]) -> JB5&6 | E59: 280 | F59: 2074 | G59: =IF(Tabel1[[#This Row],[x.MQ00_20]]="NaN","",VALUE(Tabel1[[#This Row],[x.MQ00_20]])) -> 2074 | H59: 3302 | I59: =IF(Tabel1[[#This Row],[x.MQ20_40]]="NaN","",VALUE(Tabel1[[#This Row],[x.MQ20_40]])) -> 3302 | J59: 3890 | K59: =IF(Tabel1[[#This Row],[x.MQ40_60]]="NaN","",VALUE(Tabel1[[#This Row],[x.MQ40_60]])) -> 3890 | L59: 4446 | M59: =IF(Tabel1[[#This Row],[x.MQ60_80]]="NaN","",VALUE(Tabel1[[#This Row],[x.MQ60_80]])) -> 4446 | N59: 5563 | O59: =IF(Tabel1[[#This Row],[x.MQ80_100]]="NaN","",VALUE(Tabel1[[#This Row],[x.MQ80_100]])) -> 5563
A60: Sjælland Bornholm | B60: Alle | C60: 4 | D60: =_xlfn.IFS(Tabel1[[#This Row],[FTO_jb]]="1","JB1&3",Tabel1[[#This Row],[FTO_jb]]="2","JB2&4",Tabel1[[#This Row],[FTO_jb]]="3","JB5&6",Tabel1[[#This Row],[FTO_jb]]="4","JB7&8",Tabel1[[#This Row],[FTO_jb]]="Alle",Tabel1[[#This Row],[FTO_jb]]) -> JB7&8 | E60: 62 | F60: 2286 | G60: =IF(Tabel1[[#This Row],[x.MQ00_20]]="NaN","",VALUE(Tabel1[[#This Row],[x.MQ00_20]])) -> 2286 | H60: 3424 | I60: =IF(Tabel1[[#This Row],[x.MQ20_40]]="NaN","",VALUE(Tabel1[[#This Row],[x.MQ20_40]])) -> 3424 | J60: 3970 | K60: =IF(Tabel1[[#This Row],[x.MQ40_60]]="NaN","",VALUE(Tabel1[[#This Row],[x.MQ40_60]])) -> 3970 | L60: 4372 | M60: =IF(Tabel1[[#This Row],[x.MQ60_80]]="NaN","",VALUE(Tabel1[[#This Row],[x.MQ60_80]])) -> 4372 | N60: 5448 | O60: =IF(Tabel1[[#This Row],[x.MQ80_100]]="NaN","",VALUE(Tabel1[[#This Row],[x.MQ80_100]])) -> 5448
A61: Vestjylland | B61: Alle | C61: 1 | D61: =_xlfn.IFS(Tabel1[[#This Row],[FTO_jb]]="1","JB1&3",Tabel1[[#This Row],[FTO_jb]]="2","JB2&4",Tabel1[[#This Row],[FTO_jb]]="3","JB5&6",Tabel1[[#This Row],[FTO_jb]]="4","JB7&8",Tabel1[[#This Row],[FTO_jb]]="Alle",Tabel1[[#This Row],[FTO_jb]]) -> JB1&3 | E61: 725 | F61: 1878 | G61: =IF(Tabel1[[#This Row],[x.MQ00_20]]="NaN","",VALUE(Tabel1[[#This Row],[x.MQ00_20]])) -> 1878 | H61: 3116 | I61: =IF(Tabel1[[#This Row],[x.MQ20_40]]="NaN","",VALUE(Tabel1[[#This Row],[x.MQ20_40]])) -> 3116 | J61: 3657 | K61: =IF(Tabel1[[#This Row],[x.MQ40_60]]="NaN","",VALUE(Tabel1[[#This Row],[x.MQ40_60]])) -> 3657 | L61: 4281 | M61: =IF(Tabel1[[#This Row],[x.MQ60_80]]="NaN","",VALUE(Tabel1[[#This Row],[x.MQ60_80]])) -> 4281 | N61: 5612 | O61: =IF(Tabel1[[#This Row],[x.MQ80_100]]="NaN","",VALUE(Tabel1[[#This Row],[x.MQ80_100]])) -> 5612
A62: Vestjylland | B62: Alle | C62: 2 | D62: =_xlfn.IFS(Tabel1[[#This Row],[FTO_jb]]="1","JB1&3",Tabel1[[#This Row],[FTO_jb]]="2","JB2&4",Tabel1[[#This Row],[FTO_jb]]="3","JB5&6",Tabel1[[#This Row],[FTO_jb]]="4","JB7&8",Tabel1[[#This Row],[FTO_jb]]="Alle",Tabel1[[#This Row],[FTO_jb]]) -> JB2&4 | E62: 180 | F62: 2096 | G62: =IF(Tabel1[[#This Row],[x.MQ00_20]]="NaN","",VALUE(Tabel1[[#This Row],[x.MQ00_20]])) -> 2096 | H62: 3217 | I62: =IF(Tabel1[[#This Row],[x.MQ20_40]]="NaN","",VALUE(Tabel1[[#This Row],[x.MQ20_40]])) -> 3217 | J62: 3785 | K62: =IF(Tabel1[[#This Row],[x.MQ40_60]]="NaN","",VALUE(Tabel1[[#This Row],[x.MQ40_60]])) -> 3785 | L62: 4280 | M62: =IF(Tabel1[[#This Row],[x.MQ60_80]]="NaN","",VALUE(Tabel1[[#This Row],[x.MQ60_80]])) -> 4280 | N62: 5574 | O62: =IF(Tabel1[[#This Row],[x.MQ80_100]]="NaN","",VALUE(Tabel1[[#This Row],[x.MQ80_100]])) -> 5574
A63: Vestjylland | B63: Alle | C63: 3 | D63: =_xlfn.IFS(Tabel1[[#This Row],[FTO_jb]]="1","JB1&3",Tabel1[[#This Row],[FTO_jb]]="2","JB2&4",Tabel1[[#This Row],[FTO_jb]]="3","JB5&6",Tabel1[[#This Row],[FTO_jb]]="4","JB7&8",Tabel1[[#This Row],[FTO_jb]]="Alle",Tabel1[[#This Row],[FTO_jb]]) -> JB5&6 | E63: 71 | F63: 2649 | G63: =IF(Tabel1[[#This Row],[x.MQ00_20]]="NaN","",VALUE(Tabel1[[#This Row],[x.MQ00_20]])) -> 2649 | H63: 3778 | I63: =IF(Tabel1[[#This Row],[x.MQ20_40]]="NaN","",VALUE(Tabel1[[#This Row],[x.MQ20_40]])) -> 3778 | J63: 4377 | K63: =IF(Tabel1[[#This Row],[x.MQ40_60]]="NaN","",VALUE(Tabel1[[#This Row],[x.MQ40_60]])) -> 4377 | L63: 4825 | M63: =IF(Tabel1[[#This Row],[x.MQ60_80]]="NaN","",VALUE(Tabel1[[#This Row],[x.MQ60_80]])) -> 4825 | N63: 5706 | O63: =IF(Tabel1[[#This Row],[x.MQ80_100]]="NaN","",VALUE(Tabel1[[#This Row],[x.MQ80_100]])) -> 5706
A64: Vestjylland | B64: Alle | C64: 4 | D64: =_xlfn.IFS(Tabel1[[#This Row],[FTO_jb]]="1","JB1&3",Tabel1[[#This Row],[FTO_jb]]="2","JB2&4",Tabel1[[#This Row],[FTO_jb]]="3","JB5&6",Tabel1[[#This Row],[FTO_jb]]="4","JB7&8",Tabel1[[#This Row],[FTO_jb]]="Alle",Tabel1[[#This Row],[FTO_jb]]) -> JB7&8 | E64: 38 | F64: NaN | G64: =IF(Tabel1[[#This Row],[x.MQ00_20]]="NaN","",VALUE(Tabel1[[#This Row],[x.MQ00_20]])) ->  | H64: NaN | I64: =IF(Tabel1[[#This Row],[x.MQ20_40]]="NaN","",VALUE(Tabel1[[#This Row],[x.MQ20_40]])) ->  | J64: NaN | K64: =IF(Tabel1[[#This Row],[x.MQ40_60]]="NaN","",VALUE(Tabel1[[#This Row],[x.MQ40_60]])) ->  | L64: NaN | M64: =IF(Tabel1[[#This Row],[x.MQ60_80]]="NaN","",VALUE(Tabel1[[#This Row],[x.MQ60_80]])) ->  | N64: NaN | O64: =IF(Tabel1[[#This Row],[x.MQ80_100]]="NaN","",VALUE(Tabel1[[#This Row],[x.MQ80_100]])) -> 
A65: Østjylland-Fyn | B65: Alle | C65: 1 | D65: =_xlfn.IFS(Tabel1[[#This Row],[FTO_jb]]="1","JB1&3",Tabel1[[#This Row],[FTO_jb]]="2","JB2&4",Tabel1[[#This Row],[FTO_jb]]="3","JB5&6",Tabel1[[#This Row],[FTO_jb]]="4","JB7&8",Tabel1[[#This Row],[FTO_jb]]="Alle",Tabel1[[#This Row],[FTO_jb]]) -> JB1&3 | E65: 314 | F65: 1966 | G65: =IF(Tabel1[[#This Row],[x.MQ00_20]]="NaN","",VALUE(Tabel1[[#This Row],[x.MQ00_20]])) -> 1966 | H65: 3138 | I65: =IF(Tabel1[[#This Row],[x.MQ20_40]]="NaN","",VALUE(Tabel1[[#This Row],[x.MQ20_40]])) -> 3138 | J65: 3618 | K65: =IF(Tabel1[[#This Row],[x.MQ40_60]]="NaN","",VALUE(Tabel1[[#This Row],[x.MQ40_60]])) -> 3618 | L65: 4133 | M65: =IF(Tabel1[[#This Row],[x.MQ60_80]]="NaN","",VALUE(Tabel1[[#This Row],[x.MQ60_80]])) -> 4133 | N65: 5443 | O65: =IF(Tabel1[[#This Row],[x.MQ80_100]]="NaN","",VALUE(Tabel1[[#This Row],[x.MQ80_100]])) -> 5443
A66: Østjylland-Fyn | B66: Alle | C66: 2 | D66: =_xlfn.IFS(Tabel1[[#This Row],[FTO_jb]]="1","JB1&3",Tabel1[[#This Row],[FTO_jb]]="2","JB2&4",Tabel1[[#This Row],[FTO_jb]]="3","JB5&6",Tabel1[[#This Row],[FTO_jb]]="4","JB7&8",Tabel1[[#This Row],[FTO_jb]]="Alle",Tabel1[[#This Row],[FTO_jb]]) -> JB2&4 | E66: 209 | F66: 2230 | G66: =IF(Tabel1[[#This Row],[x.MQ00_20]]="NaN","",VALUE(Tabel1[[#This Row],[x.MQ00_20]])) -> 2230 | H66: 3436 | I66: =IF(Tabel1[[#This Row],[x.MQ20_40]]="NaN","",VALUE(Tabel1[[#This Row],[x.MQ20_40]])) -> 3436 | J66: 3937 | K66: =IF(Tabel1[[#This Row],[x.MQ40_60]]="NaN","",VALUE(Tabel1[[#This Row],[x.MQ40_60]])) -> 3937 | L66: 4435 | M66: =IF(Tabel1[[#This Row],[x.MQ60_80]]="NaN","",VALUE(Tabel1[[#This Row],[x.MQ60_80]])) -> 4435 | N66: 5877 | O66: =IF(Tabel1[[#This Row],[x.MQ80_100]]="NaN","",VALUE(Tabel1[[#This Row],[x.MQ80_100]])) -> 5877
A67: Østjylland-Fyn | B67: Alle | C67: 3 | D67: =_xlfn.IFS(Tabel1[[#This Row],[FTO_jb]]="1","JB1&3",Tabel1[[#This Row],[FTO_jb]]="2","JB2&4",Tabel1[[#This Row],[FTO_jb]]="3","JB5&6",Tabel1[[#This Row],[FTO_jb]]="4","JB7&8",Tabel1[[#This Row],[FTO_jb]]="Alle",Tabel1[[#This Row],[FTO_jb]]) -> JB5&6 | E67: 516 | F67: 2460 | G67: =IF(Tabel1[[#This Row],[x.MQ00_20]]="NaN","",VALUE(Tabel1[[#This Row],[x.MQ00_20]])) -> 2460 | H67: 3654 | I67: =IF(Tabel1[[#This Row],[x.MQ20_40]]="NaN","",VALUE(Tabel1[[#This Row],[x.MQ20_40]])) -> 3654 | J67: 4200 | K67: =IF(Tabel1[[#This Row],[x.MQ40_60]]="NaN","",VALUE(Tabel1[[#This Row],[x.MQ40_60]])) -> 4200 | L67: 4740 | M67: =IF(Tabel1[[#This Row],[x.MQ60_80]]="NaN","",VALUE(Tabel1[[#This Row],[x.MQ60_80]])) -> 4740 | N67: 6027 | O67: =IF(Tabel1[[#This Row],[x.MQ80_100]]="NaN","",VALUE(Tabel1[[#This Row],[x.MQ80_100]])) -> 6027
A68: Østjylland-Fyn | B68: Alle | C68: 4 | D68: =_xlfn.IFS(Tabel1[[#This Row],[FTO_jb]]="1","JB1&3",Tabel1[[#This Row],[FTO_jb]]="2","JB2&4",Tabel1[[#This Row],[FTO_jb]]="3","JB5&6",Tabel1[[#This Row],[FTO_jb]]="4","JB7&8",Tabel1[[#This Row],[FTO_jb]]="Alle",Tabel1[[#This Row],[FTO_jb]]) -> JB7&8 | E68: 47 | F68: NaN | G68: =IF(Tabel1[[#This Row],[x.MQ00_20]]="NaN","",VALUE(Tabel1[[#This Row],[x.MQ00_20]])) ->  | H68: NaN | I68: =IF(Tabel1[[#This Row],[x.MQ20_40]]="NaN","",VALUE(Tabel1[[#This Row],[x.MQ20_40]])) ->  | J68: NaN | K68: =IF(Tabel1[[#This Row],[x.MQ40_60]]="NaN","",VALUE(Tabel1[[#This Row],[x.MQ40_60]])) ->  | L68: NaN | M68: =IF(Tabel1[[#This Row],[x.MQ60_80]]="NaN","",VALUE(Tabel1[[#This Row],[x.MQ60_80]])) ->  | N68: NaN | O68: =IF(Tabel1[[#This Row],[x.MQ80_100]]="NaN","",VALUE(Tabel1[[#This Row],[x.MQ80_100]])) -> 
A69: Lolland-Falster | B69: Alle | C69: Alle | D69: =_xlfn.IFS(Tabel1[[#This Row],[FTO_jb]]="1","JB1&3",Tabel1[[#This Row],[FTO_jb]]="2","JB2&4",Tabel1[[#This Row],[FTO_jb]]="3","JB5&6",Tabel1[[#This Row],[FTO_jb]]="4","JB7&8",Tabel1[[#This Row],[FTO_jb]]="Alle",Tabel1[[#This Row],[FTO_jb]]) -> Alle | E69: 119 | F69: 3204 | G69: =IF(Tabel1[[#This Row],[x.MQ00_20]]="NaN","",VALUE(Tabel1[[#This Row],[x.MQ00_20]])) -> 3204 | H69: 5257 | I69: =IF(Tabel1[[#This Row],[x.MQ20_40]]="NaN","",VALUE(Tabel1[[#This Row],[x.MQ20_40]])) -> 5257 | J69: 5965 | K69: =IF(Tabel1[[#This Row],[x.MQ40_60]]="NaN","",VALUE(Tabel1[[#This Row],[x.MQ40_60]])) -> 5965 | L69: 6570 | M69: =IF(Tabel1[[#This Row],[x.MQ60_80]]="NaN","",VALUE(Tabel1[[#This Row],[x.MQ60_80]])) -> 6570 | N69: 7754 | O69: =IF(Tabel1[[#This Row],[x.MQ80_100]]="NaN","",VALUE(Tabel1[[#This Row],[x.MQ80_100]])) -> 7754
A70: Nordjylland | B70: Alle | C70: Alle | D70: =_xlfn.IFS(Tabel1[[#This Row],[FTO_jb]]="1","JB1&3",Tabel1[[#This Row],[FTO_jb]]="2","JB2&4",Tabel1[[#This Row],[FTO_jb]]="3","JB5&6",Tabel1[[#This Row],[FTO_jb]]="4","JB7&8",Tabel1[[#This Row],[FTO_jb]]="Alle",Tabel1[[#This Row],[FTO_jb]]) -> Alle | E70: 680 | F70: 1818 | G70: =IF(Tabel1[[#This Row],[x.MQ00_20]]="NaN","",VALUE(Tabel1[[#This Row],[x.MQ00_20]])) -> 1818 | H70: 3277 | I70: =IF(Tabel1[[#This Row],[x.MQ20_40]]="NaN","",VALUE(Tabel1[[#This Row],[x.MQ20_40]])) -> 3277 | J70: 3894 | K70: =IF(Tabel1[[#This Row],[x.MQ40_60]]="NaN","",VALUE(Tabel1[[#This Row],[x.MQ40_60]])) -> 3894 | L70: 4516 | M70: =IF(Tabel1[[#This Row],[x.MQ60_80]]="NaN","",VALUE(Tabel1[[#This Row],[x.MQ60_80]])) -> 4516 | N70: 5807 | O70: =IF(Tabel1[[#This Row],[x.MQ80_100]]="NaN","",VALUE(Tabel1[[#This Row],[x.MQ80_100]])) -> 5807
A71: Sjælland Bornholm | B71: Alle | C71: Alle | D71: =_xlfn.IFS(Tabel1[[#This Row],[FTO_jb]]="1","JB1&3",Tabel1[[#This Row],[FTO_jb]]="2","JB2&4",Tabel1[[#This Row],[FTO_jb]]="3","JB5&6",Tabel1[[#This Row],[FTO_jb]]="4","JB7&8",Tabel1[[#This Row],[FTO_jb]]="Alle",Tabel1[[#This Row],[FTO_jb]]) -> Alle | E71: 379 | F71: 1973 | G71: =IF(Tabel1[[#This Row],[x.MQ00_20]]="NaN","",VALUE(Tabel1[[#This Row],[x.MQ00_20]])) -> 1973 | H71: 3250 | I71: =IF(Tabel1[[#This Row],[x.MQ20_40]]="NaN","",VALUE(Tabel1[[#This Row],[x.MQ20_40]])) -> 3250 | J71: 3849 | K71: =IF(Tabel1[[#This Row],[x.MQ40_60]]="NaN","",VALUE(Tabel1[[#This Row],[x.MQ40_60]])) -> 3849 | L71: 4380 | M71: =IF(Tabel1[[#This Row],[x.MQ60_80]]="NaN","",VALUE(Tabel1[[#This Row],[x.MQ60_80]])) -> 4380 | N71: 5492 | O71: =IF(Tabel1[[#This Row],[x.MQ80_100]]="NaN","",VALUE(Tabel1[[#This Row],[x.MQ80_100]])) -> 5492
A72: Vestjylland | B72: Alle | C72: Alle | D72: =_xlfn.IFS(Tabel1[[#This Row],[FTO_jb]]="1","JB1&3",Tabel1[[#This Row],[FTO_jb]]="2","JB2&4",Tabel1[[#This Row],[FTO_jb]]="3","JB5&6",Tabel1[[#This Row],[FTO_jb]]="4","JB7&8",Tabel1[[#This Row],[FTO_jb]]="Alle",Tabel1[[#This Row],[FTO_jb]]) -> Alle | E72: 1014 | F72: 1965 | G72: =IF(Tabel1[[#This Row],[x.MQ00_20]]="NaN","",VALUE(Tabel1[[#This Row],[x.MQ00_20]])) -> 1965 | H72: 3167 | I72: =IF(Tabel1[[#This Row],[x.MQ20_40]]="NaN","",VALUE(Tabel1[[#This Row],[x.MQ20_40]])) -> 3167 | J72: 3718 | K72: =IF(Tabel1[[#This Row],[x.MQ40_60]]="NaN","",VALUE(Tabel1[[#This Row],[x.MQ40_60]])) -> 3718 | L72: 4317 | M72: =IF(Tabel1[[#This Row],[x.MQ60_80]]="NaN","",VALUE(Tabel1[[#This Row],[x.MQ60_80]])) -> 4317 | N72: 5597 | O72: =IF(Tabel1[[#This Row],[x.MQ80_100]]="NaN","",VALUE(Tabel1[[#This Row],[x.MQ80_100]])) -> 5597
A73: Østjylland-Fyn | B73: Alle | C73: Alle | D73: =_xlfn.IFS(Tabel1[[#This Row],[FTO_jb]]="1","JB1&3",Tabel1[[#This Row],[FTO_jb]]="2","JB2&4",Tabel1[[#This Row],[FTO_jb]]="3","JB5&6",Tabel1[[#This Row],[FTO_jb]]="4","JB7&8",Tabel1[[#This Row],[FTO_jb]]="Alle",Tabel1[[#This Row],[FTO_jb]]) -> Alle | E73: 1086 | F73: 2239 | G73: =IF(Tabel1[[#This Row],[x.MQ00_20]]="NaN","",VALUE(Tabel1[[#This Row],[x.MQ00_20]])) -> 2239 | H73: 3419 | I73: =IF(Tabel1[[#This Row],[x.MQ20_40]]="NaN","",VALUE(Tabel1[[#This Row],[x.MQ20_40]])) -> 3419 | J73: 3970 | K73: =IF(Tabel1[[#This Row],[x.MQ40_60]]="NaN","",VALUE(Tabel1[[#This Row],[x.MQ40_60]])) -> 3970 | L73: 4530 | M73: =IF(Tabel1[[#This Row],[x.MQ60_80]]="NaN","",VALUE(Tabel1[[#This Row],[x.MQ60_80]])) -> 4530 | N73: 5852 | O73: =IF(Tabel1[[#This Row],[x.MQ80_100]]="NaN","",VALUE(Tabel1[[#This Row],[x.MQ80_100]])) -> 5852
A74: Alle | B74: Husdyrproduktion | C74: 1 | D74: =_xlfn.IFS(Tabel1[[#This Row],[FTO_jb]]="1","JB1&3",Tabel1[[#This Row],[FTO_jb]]="2","JB2&4",Tabel1[[#This Row],[FTO_jb]]="3","JB5&6",Tabel1[[#This Row],[FTO_jb]]="4","JB7&8",Tabel1[[#This Row],[FTO_jb]]="Alle",Tabel1[[#This Row],[FTO_jb]]) -> JB1&3 | E74: 887 | F74: 2050 | G74: =IF(Tabel1[[#This Row],[x.MQ00_20]]="NaN","",VALUE(Tabel1[[#This Row],[x.MQ00_20]])) -> 2050 | H74: 3197 | I74: =IF(Tabel1[[#This Row],[x.MQ20_40]]="NaN","",VALUE(Tabel1[[#This Row],[x.MQ20_40]])) -> 3197 | J74: 3699 | K74: =IF(Tabel1[[#This Row],[x.MQ40_60]]="NaN","",VALUE(Tabel1[[#This Row],[x.MQ40_60]])) -> 3699 | L74: 4264 | M74: =IF(Tabel1[[#This Row],[x.MQ60_80]]="NaN","",VALUE(Tabel1[[#This Row],[x.MQ60_80]])) -> 4264 | N74: 5587 | O74: =IF(Tabel1[[#This Row],[x.MQ80_100]]="NaN","",VALUE(Tabel1[[#This Row],[x.MQ80_100]])) -> 5587
A75: Alle | B75: Husdyrproduktion | C75: 2 | D75: =_xlfn.IFS(Tabel1[[#This Row],[FTO_jb]]="1","JB1&3",Tabel1[[#This Row],[FTO_jb]]="2","JB2&4",Tabel1[[#This Row],[FTO_jb]]="3","JB5&6",Tabel1[[#This Row],[FTO_jb]]="4","JB7&8",Tabel1[[#This Row],[FTO_jb]]="Alle",Tabel1[[#This Row],[FTO_jb]]) -> JB2&4 | E75: 701 | F75: 2125 | G75: =IF(Tabel1[[#This Row],[x.MQ00_20]]="NaN","",VALUE(Tabel1[[#This Row],[x.MQ00_20]])) -> 2125 | H75: 3347 | I75: =IF(Tabel1[[#This Row],[x.MQ20_40]]="NaN","",VALUE(Tabel1[[#This Row],[x.MQ20_40]])) -> 3347 | J75: 3912 | K75: =IF(Tabel1[[#This Row],[x.MQ40_60]]="NaN","",VALUE(Tabel1[[#This Row],[x.MQ40_60]])) -> 3912 | L75: 4475 | M75: =IF(Tabel1[[#This Row],[x.MQ60_80]]="NaN","",VALUE(Tabel1[[#This Row],[x.MQ60_80]])) -> 4475 | N75: 5822 | O75: =IF(Tabel1[[#This Row],[x.MQ80_100]]="NaN","",VALUE(Tabel1[[#This Row],[x.MQ80_100]])) -> 5822
A76: Alle | B76: Husdyrproduktion | C76: 3 | D76: =_xlfn.IFS(Tabel1[[#This Row],[FTO_jb]]="1","JB1&3",Tabel1[[#This Row],[FTO_jb]]="2","JB2&4",Tabel1[[#This Row],[FTO_jb]]="3","JB5&6",Tabel1[[#This Row],[FTO_jb]]="4","JB7&8",Tabel1[[#This Row],[FTO_jb]]="Alle",Tabel1[[#This Row],[FTO_jb]]) -> JB5&6 | E76: 557 | F76: 2627 | G76: =IF(Tabel1[[#This Row],[x.MQ00_20]]="NaN","",VALUE(Tabel1[[#This Row],[x.MQ00_20]])) -> 2627 | H76: 3782 | I76: =IF(Tabel1[[#This Row],[x.MQ20_40]]="NaN","",VALUE(Tabel1[[#This Row],[x.MQ20_40]])) -> 3782 | J76: 4347 | K76: =IF(Tabel1[[#This Row],[x.MQ40_60]]="NaN","",VALUE(Tabel1[[#This Row],[x.MQ40_60]])) -> 4347 | L76: 4928 | M76: =IF(Tabel1[[#This Row],[x.MQ60_80]]="NaN","",VALUE(Tabel1[[#This Row],[x.MQ60_80]])) -> 4928 | N76: 6201 | O76: =IF(Tabel1[[#This Row],[x.MQ80_100]]="NaN","",VALUE(Tabel1[[#This Row],[x.MQ80_100]])) -> 6201
A77: Alle | B77: Husdyrproduktion | C77: 4 | D77: =_xlfn.IFS(Tabel1[[#This Row],[FTO_jb]]="1","JB1&3",Tabel1[[#This Row],[FTO_jb]]="2","JB2&4",Tabel1[[#This Row],[FTO_jb]]="3","JB5&6",Tabel1[[#This Row],[FTO_jb]]="4","JB7&8",Tabel1[[#This Row],[FTO_jb]]="Alle",Tabel1[[#This Row],[FTO_jb]]) -> JB7&8 | E77: 103 | F77: 2447 | G77: =IF(Tabel1[[#This Row],[x.MQ00_20]]="NaN","",VALUE(Tabel1[[#This Row],[x.MQ00_20]])) -> 2447 | H77: 3506 | I77: =IF(Tabel1[[#This Row],[x.MQ20_40]]="NaN","",VALUE(Tabel1[[#This Row],[x.MQ20_40]])) -> 3506 | J77: 4061 | K77: =IF(Tabel1[[#This Row],[x.MQ40_60]]="NaN","",VALUE(Tabel1[[#This Row],[x.MQ40_60]])) -> 4061 | L77: 4663 | M77: =IF(Tabel1[[#This Row],[x.MQ60_80]]="NaN","",VALUE(Tabel1[[#This Row],[x.MQ60_80]])) -> 4663 | N77: 6241 | O77: =IF(Tabel1[[#This Row],[x.MQ80_100]]="NaN","",VALUE(Tabel1[[#This Row],[x.MQ80_100]])) -> 6241
A78: Alle | B78: Planteavl | C78: 1 | D78: =_xlfn.IFS(Tabel1[[#This Row],[FTO_jb]]="1","JB1&3",Tabel1[[#This Row],[FTO_jb]]="2","JB2&4",Tabel1[[#This Row],[FTO_jb]]="3","JB5&6",Tabel1[[#This Row],[FTO_jb]]="4","JB7&8",Tabel1[[#This Row],[FTO_jb]]="Alle",Tabel1[[#This Row],[FTO_jb]]) -> JB1&3 | E78: 251 | F78: 1505 | G78: =IF(Tabel1[[#This Row],[x.MQ00_20]]="NaN","",VALUE(Tabel1[[#This Row],[x.MQ00_20]])) -> 1505 | H78: 2887 | I78: =IF(Tabel1[[#This Row],[x.MQ20_40]]="NaN","",VALUE(Tabel1[[#This Row],[x.MQ20_40]])) -> 2887 | J78: 3524 | K78: =IF(Tabel1[[#This Row],[x.MQ40_60]]="NaN","",VALUE(Tabel1[[#This Row],[x.MQ40_60]])) -> 3524 | L78: 4200 | M78: =IF(Tabel1[[#This Row],[x.MQ60_80]]="NaN","",VALUE(Tabel1[[#This Row],[x.MQ60_80]])) -> 4200 | N78: 5479 | O78: =IF(Tabel1[[#This Row],[x.MQ80_100]]="NaN","",VALUE(Tabel1[[#This Row],[x.MQ80_100]])) -> 5479
A79: Alle | B79: Planteavl | C79: 2 | D79: =_xlfn.IFS(Tabel1[[#This Row],[FTO_jb]]="1","JB1&3",Tabel1[[#This Row],[FTO_jb]]="2","JB2&4",Tabel1[[#This Row],[FTO_jb]]="3","JB5&6",Tabel1[[#This Row],[FTO_jb]]="4","JB7&8",Tabel1[[#This Row],[FTO_jb]]="Alle",Tabel1[[#This Row],[FTO_jb]]) -> JB2&4 | E79: 231 | F79: 1439 | G79: =IF(Tabel1[[#This Row],[x.MQ00_20]]="NaN","",VALUE(Tabel1[[#This Row],[x.MQ00_20]])) -> 1439 | H79: 2880 | I79: =IF(Tabel1[[#This Row],[x.MQ20_40]]="NaN","",VALUE(Tabel1[[#This Row],[x.MQ20_40]])) -> 2880 | J79: 3629 | K79: =IF(Tabel1[[#This Row],[x.MQ40_60]]="NaN","",VALUE(Tabel1[[#This Row],[x.MQ40_60]])) -> 3629 | L79: 4113 | M79: =IF(Tabel1[[#This Row],[x.MQ60_80]]="NaN","",VALUE(Tabel1[[#This Row],[x.MQ60_80]])) -> 4113 | N79: 5466 | O79: =IF(Tabel1[[#This Row],[x.MQ80_100]]="NaN","",VALUE(Tabel1[[#This Row],[x.MQ80_100]])) -> 5466
A80: Alle | B80: Planteavl | C80: 3 | D80: =_xlfn.IFS(Tabel1[[#This Row],[FTO_jb]]="1","JB1&3",Tabel1[[#This Row],[FTO_jb]]="2","JB2&4",Tabel1[[#This Row],[FTO_jb]]="3","JB5&6",Tabel1[[#This Row],[FTO_jb]]="4","JB7&8",Tabel1[[#This Row],[FTO_jb]]="Alle",Tabel1[[#This Row],[FTO_jb]]) -> JB5&6 | E80: 446 | F80: 2003 | G80: =IF(Tabel1[[#This Row],[x.MQ00_20]]="NaN","",VALUE(Tabel1[[#This Row],[x.MQ00_20]])) -> 2003 | H80: 3352 | I80: =IF(Tabel1[[#This Row],[x.MQ20_40]]="NaN","",VALUE(Tabel1[[#This Row],[x.MQ20_40]])) -> 3352 | J80: 4001 | K80: =IF(Tabel1[[#This Row],[x.MQ40_60]]="NaN","",VALUE(Tabel1[[#This Row],[x.MQ40_60]])) -> 4001 | L80: 4581 | M80: =IF(Tabel1[[#This Row],[x.MQ60_80]]="NaN","",VALUE(Tabel1[[#This Row],[x.MQ60_80]])) -> 4581 | N80: 5981 | O80: =IF(Tabel1[[#This Row],[x.MQ80_100]]="NaN","",VALUE(Tabel1[[#This Row],[x.MQ80_100]])) -> 5981
A81: Alle | B81: Planteavl | C81: 4 | D81: =_xlfn.IFS(Tabel1[[#This Row],[FTO_jb]]="1","JB1&3",Tabel1[[#This Row],[FTO_jb]]="2","JB2&4",Tabel1[[#This Row],[FTO_jb]]="3","JB5&6",Tabel1[[#This Row],[FTO_jb]]="4","JB7&8",Tabel1[[#This Row],[FTO_jb]]="Alle",Tabel1[[#This Row],[FTO_jb]]) -> JB7&8 | E81: 102 | F81: 2269 | G81: =IF(Tabel1[[#This Row],[x.MQ00_20]]="NaN","",VALUE(Tabel1[[#This Row],[x.MQ00_20]])) -> 2269 | H81: 3504 | I81: =IF(Tabel1[[#This Row],[x.MQ20_40]]="NaN","",VALUE(Tabel1[[#This Row],[x.MQ20_40]])) -> 3504 | J81: 4305 | K81: =IF(Tabel1[[#This Row],[x.MQ40_60]]="NaN","",VALUE(Tabel1[[#This Row],[x.MQ40_60]])) -> 4305 | L81: 5459 | M81: =IF(Tabel1[[#This Row],[x.MQ60_80]]="NaN","",VALUE(Tabel1[[#This Row],[x.MQ60_80]])) -> 5459 | N81: 7336 | O81: =IF(Tabel1[[#This Row],[x.MQ80_100]]="NaN","",VALUE(Tabel1[[#This Row],[x.MQ80_100]])) -> 7336
A82: Alle | B82: Husdyrproduktion | C82: Alle | D82: =_xlfn.IFS(Tabel1[[#This Row],[FTO_jb]]="1","JB1&3",Tabel1[[#This Row],[FTO_jb]]="2","JB2&4",Tabel1[[#This Row],[FTO_jb]]="3","JB5&6",Tabel1[[#This Row],[FTO_jb]]="4","JB7&8",Tabel1[[#This Row],[FTO_jb]]="Alle",Tabel1[[#This Row],[FTO_jb]]) -> Alle | E82: 2248 | F82: 2199 | G82: =IF(Tabel1[[#This Row],[x.MQ00_20]]="NaN","",VALUE(Tabel1[[#This Row],[x.MQ00_20]])) -> 2199 | H82: 3377 | I82: =IF(Tabel1[[#This Row],[x.MQ20_40]]="NaN","",VALUE(Tabel1[[#This Row],[x.MQ20_40]])) -> 3377 | J82: 3935 | K82: =IF(Tabel1[[#This Row],[x.MQ40_60]]="NaN","",VALUE(Tabel1[[#This Row],[x.MQ40_60]])) -> 3935 | L82: 4535 | M82: =IF(Tabel1[[#This Row],[x.MQ60_80]]="NaN","",VALUE(Tabel1[[#This Row],[x.MQ60_80]])) -> 4535 | N82: 5889 | O82: =IF(Tabel1[[#This Row],[x.MQ80_100]]="NaN","",VALUE(Tabel1[[#This Row],[x.MQ80_100]])) -> 5889
A83: Alle | B83: Planteavl | C83: Alle | D83: =_xlfn.IFS(Tabel1[[#This Row],[FTO_jb]]="1","JB1&3",Tabel1[[#This Row],[FTO_jb]]="2","JB2&4",Tabel1[[#This Row],[FTO_jb]]="3","JB5&6",Tabel1[[#This Row],[FTO_jb]]="4","JB7&8",Tabel1[[#This Row],[FTO_jb]]="Alle",Tabel1[[#This Row],[FTO_jb]]) -> Alle | E83: 1030 | F83: 1732 | G83: =IF(Tabel1[[#This Row],[x.MQ00_20]]="NaN","",VALUE(Tabel1[[#This Row],[x.MQ00_20]])) -> 1732 | H83: 3126 | I83: =IF(Tabel1[[#This Row],[x.MQ20_40]]="NaN","",VALUE(Tabel1[[#This Row],[x.MQ20_40]])) -> 3126 | J83: 3812 | K83: =IF(Tabel1[[#This Row],[x.MQ40_60]]="NaN","",VALUE(Tabel1[[#This Row],[x.MQ40_60]])) -> 3812 | L83: 4452 | M83: =IF(Tabel1[[#This Row],[x.MQ60_80]]="NaN","",VALUE(Tabel1[[#This Row],[x.MQ60_80]])) -> 4452 | N83: 5978 | O83: =IF(Tabel1[[#This Row],[x.MQ80_100]]="NaN","",VALUE(Tabel1[[#This Row],[x.MQ80_100]])) -> 5978
A84: Alle | B84: Alle | C84: 1 | D84: =_xlfn.IFS(Tabel1[[#This Row],[FTO_jb]]="1","JB1&3",Tabel1[[#This Row],[FTO_jb]]="2","JB2&4",Tabel1[[#This Row],[FTO_jb]]="3","JB5&6",Tabel1[[#This Row],[FTO_jb]]="4","JB7&8",Tabel1[[#This Row],[FTO_jb]]="Alle",Tabel1[[#This Row],[FTO_jb]]) -> JB1&3 | E84: 1138 | F84: 1906 | G84: =IF(Tabel1[[#This Row],[x.MQ00_20]]="NaN","",VALUE(Tabel1[[#This Row],[x.MQ00_20]])) -> 1906 | H84: 3138 | I84: =IF(Tabel1[[#This Row],[x.MQ20_40]]="NaN","",VALUE(Tabel1[[#This Row],[x.MQ20_40]])) -> 3138 | J84: 3664 | K84: =IF(Tabel1[[#This Row],[x.MQ40_60]]="NaN","",VALUE(Tabel1[[#This Row],[x.MQ40_60]])) -> 3664 | L84: 4253 | M84: =IF(Tabel1[[#This Row],[x.MQ60_80]]="NaN","",VALUE(Tabel1[[#This Row],[x.MQ60_80]])) -> 4253 | N84: 5568 | O84: =IF(Tabel1[[#This Row],[x.MQ80_100]]="NaN","",VALUE(Tabel1[[#This Row],[x.MQ80_100]])) -> 5568
A85: Alle | B85: Alle | C85: 2 | D85: =_xlfn.IFS(Tabel1[[#This Row],[FTO_jb]]="1","JB1&3",Tabel1[[#This Row],[FTO_jb]]="2","JB2&4",Tabel1[[#This Row],[FTO_jb]]="3","JB5&6",Tabel1[[#This Row],[FTO_jb]]="4","JB7&8",Tabel1[[#This Row],[FTO_jb]]="Alle",Tabel1[[#This Row],[FTO_jb]]) -> JB2&4 | E85: 932 | F85: 1920 | G85: =IF(Tabel1[[#This Row],[x.MQ00_20]]="NaN","",VALUE(Tabel1[[#This Row],[x.MQ00_20]])) -> 1920 | H85: 3240 | I85: =IF(Tabel1[[#This Row],[x.MQ20_40]]="NaN","",VALUE(Tabel1[[#This Row],[x.MQ20_40]])) -> 3240 | J85: 3840 | K85: =IF(Tabel1[[#This Row],[x.MQ40_60]]="NaN","",VALUE(Tabel1[[#This Row],[x.MQ40_60]])) -> 3840 | L85: 4392 | M85: =IF(Tabel1[[#This Row],[x.MQ60_80]]="NaN","",VALUE(Tabel1[[#This Row],[x.MQ60_80]])) -> 4392 | N85: 5750 | O85: =IF(Tabel1[[#This Row],[x.MQ80_100]]="NaN","",VALUE(Tabel1[[#This Row],[x.MQ80_100]])) -> 5750
A86: Alle | B86: Alle | C86: 3 | D86: =_xlfn.IFS(Tabel1[[#This Row],[FTO_jb]]="1","JB1&3",Tabel1[[#This Row],[FTO_jb]]="2","JB2&4",Tabel1[[#This Row],[FTO_jb]]="3","JB5&6",Tabel1[[#This Row],[FTO_jb]]="4","JB7&8",Tabel1[[#This Row],[FTO_jb]]="Alle",Tabel1[[#This Row],[FTO_jb]]) -> JB5&6 | E86: 1003 | F86: 2301 | G86: =IF(Tabel1[[#This Row],[x.MQ00_20]]="NaN","",VALUE(Tabel1[[#This Row],[x.MQ00_20]])) -> 2301 | H86: 3600 | I86: =IF(Tabel1[[#This Row],[x.MQ20_40]]="NaN","",VALUE(Tabel1[[#This Row],[x.MQ20_40]])) -> 3600 | J86: 4196 | K86: =IF(Tabel1[[#This Row],[x.MQ40_60]]="NaN","",VALUE(Tabel1[[#This Row],[x.MQ40_60]])) -> 4196 | L86: 4788 | M86: =IF(Tabel1[[#This Row],[x.MQ60_80]]="NaN","",VALUE(Tabel1[[#This Row],[x.MQ60_80]])) -> 4788 | N86: 6123 | O86: =IF(Tabel1[[#This Row],[x.MQ80_100]]="NaN","",VALUE(Tabel1[[#This Row],[x.MQ80_100]])) -> 6123
A87: Alle | B87: Alle | C87: 4 | D87: =_xlfn.IFS(Tabel1[[#This Row],[FTO_jb]]="1","JB1&3",Tabel1[[#This Row],[FTO_jb]]="2","JB2&4",Tabel1[[#This Row],[FTO_jb]]="3","JB5&6",Tabel1[[#This Row],[FTO_jb]]="4","JB7&8",Tabel1[[#This Row],[FTO_jb]]="Alle",Tabel1[[#This Row],[FTO_jb]]) -> JB7&8 | E87: 205 | F87: 2338 | G87: =IF(Tabel1[[#This Row],[x.MQ00_20]]="NaN","",VALUE(Tabel1[[#This Row],[x.MQ00_20]])) -> 2338 | H87: 3484 | I87: =IF(Tabel1[[#This Row],[x.MQ20_40]]="NaN","",VALUE(Tabel1[[#This Row],[x.MQ20_40]])) -> 3484 | J87: 4190 | K87: =IF(Tabel1[[#This Row],[x.MQ40_60]]="NaN","",VALUE(Tabel1[[#This Row],[x.MQ40_60]])) -> 4190 | L87: 5016 | M87: =IF(Tabel1[[#This Row],[x.MQ60_80]]="NaN","",VALUE(Tabel1[[#This Row],[x.MQ60_80]])) -> 5016 | N87: 6918 | O87: =IF(Tabel1[[#This Row],[x.MQ80_100]]="NaN","",VALUE(Tabel1[[#This Row],[x.MQ80_100]])) -> 6918
